Workbook

Sheet Einstellung
B3: Futterberechnung z. Fütterung d. Milchkühe, Zuchtrinder, Mastrinder, Schafe u. Ziegen GfE 2001
B4: Gruber Tabelle, 48. Auflage / November 2024 www.LfL.bayern.de Update vom 19.03.2026
C5: Tierhaltungsschule | F5: Triesdorf
C6: Markgrafenstraße 1 | F6: 09 000 000 0000
C7: 91746 | E7: Weidenbach
C8: Futterberechnung mit Gruber Tabelle | G8: ths@triesdorf.de
C9: Freie Software, keinerlei Gewährleistung
C11: Daten für die Berechnung von Erhaltungsbedarf :
C12: Lebendmasse | E12: nxP | F12: NEL MJ
C13: kg LM | D13: 700 | E13: 470 | F13: 39.9
C14: Milchinhaltstoffe | E14: =IF(D15=0,"Trockensteher","") -> 
C15: Fett % | D15: 4 | F15: =IF(D15>=3,(D15-3.5)*0.4+3.1,0) -> 3.3
C16: Eiweiß % | D16: 3.5 | E16: =IF(D16>=2.5,(D16-3.2)*(20)+81,0) -> 87
C17: geschätzte TM Aufnahme kg | E17: GF | F17: GF+KF
E18: 14 | F18: 21
B20: Erhaltungsbedarf | D20: Ca | E20: P | F20: Mg | G20: Na | H20: K | I20: Cl | J20: S | K20: Empfehlung zur Versorgung mit Mengenelementen Gruber Tabelle Seite 34 | M20: www.triesdorf.de
B22: in g pro kg TM - Aufn. | D22: 2 | E22: 1.43 | F22: 0.8 | G22: 0.6 | H22: 8.8 | I22: 1.5 | J22: 1.5
B23: für Leistung g/kg Milch | D23: 2.5 | E23: 1.43 | F23: 0.8 | G23: 0.64 | H23: 1.6 | I23: 1.4 | J23: 0.6

Sheet Ration
A2: 11 | B2: Bitte Gruppe auswählen! | F2: =B36 -> Bitte Gruppe auswählen! | Z2: Spurenelemente in mg / kg TM
A3: Nr | B3: Futterart | C3: TM % | D3: TM g | E3: FM kg | F3: TM kg | G3: aNDFom | H3: CP g | I3: nxP g | J3: UDP g | K3: RNB | L3: NEL MJ | M3: ME MJ | N3: ST+ZU | O3: bST | P3: CL | Q3: Ca | R3: P | S3: Mg | T3: Na | U3: K | V3: Cl | W3: S | X3: Preis / dt | Y3: Typ | Z3: Fe | AA3: Cu | AB3: Zn | AC3: Mn | AD3: Co | AE3: J | AF3: Se
B4: =IFERROR(VLOOKUP(A4,'Gruber Tabelle'!$A$6:$W$359,2,0),0) -> 0 | C4: =IFERROR(VLOOKUP(A4,'Gruber Tabelle'!$A$6:$W$359,3,0),0)/1000 -> 0 | D4: =IFERROR(VLOOKUP(A4,'Gruber Tabelle'!$A$6:$W$359,3,0),0) -> 0 | E4: =IFERROR(F15/C15,0) -> 0 | G4: =IFERROR(VLOOKUP(A4,'Gruber Tabelle'!$A$6:$W$359,5,0),0) -> 0 | H4: =IFERROR(VLOOKUP(A4,'Gruber Tabelle'!$A$6:$W$359,7,0),0) -> 0 | I4: =IFERROR(VLOOKUP(A4,'Gruber Tabelle'!$A$6:$W$359,8,0),0) -> 0 | J4: =IFERROR(VLOOKUP(A4,'Gruber Tabelle'!$A$6:$W$359,9,0)/100,0) -> 0 | K4: =IFERROR(VLOOKUP(A4,'Gruber Tabelle'!$A$6:$W$359,10,0),0) -> 0 | L4: =IFERROR(VLOOKUP(A4,'Gruber Tabelle'!$A$6:$W$359,11,0),0) -> 0 | M4: =IFERROR(VLOOKUP(A4,'Gruber Tabelle'!$A$6:$W$359,12,0),0) -> 0 | N4: =IFERROR(VLOOKUP(A4,'Gruber Tabelle'!$A$6:$W$359,13,0),0) -> 0 | O4: =IFERROR(VLOOKUP(A4,'Gruber Tabelle'!$A$6:$W$359,14,0),0) -> 0 | P4: =IFERROR(VLOOKUP(A4,'Gruber Tabelle'!$A$6:$W$359,15,0),0) -> 0 | Q4: =IFERROR(VLOOKUP(A4,'Gruber Tabelle'!$A$6:$W$359,16,0),0) -> 0 | R4: =IFERROR(VLOOKUP(A4,'Gruber Tabelle'!$A$6:$W$359,17,0),0) -> 0 | S4: =IFERROR(VLOOKUP(A4,'Gruber Tabelle'!$A$6:$W$359,18,0),0) -> 0 | T4: =IFERROR(VLOOKUP(A4,'Gruber Tabelle'!$A$6:$W$359,19,0),0) -> 0 | U4: =IFERROR(VLOOKUP(A4,'Gruber Tabelle'!$A$6:$W$359,20,0),0) -> 0 | V4: =IFERROR(VLOOKUP(A4,'Gruber Tabelle'!$A$6:$W$359,21,0),0) -> 0 | W4: =IFERROR(VLOOKUP(A4,'Gruber Tabelle'!$A$6:$W$359,22,0),0) -> 0 | X4: =IFERROR(VLOOKUP(A4,'Gruber Tabelle'!$A$6:$W$359,23,0),0) -> 0 | Y4: =IFERROR(VLOOKUP(A4,'Gruber Tabelle'!$A$6:$X$359,24,0),0) -> 0 | Z4: =IFERROR(VLOOKUP(A4,'Gruber Tabelle'!$A$6:$AE$359,25,0),0) -> 0 | AA4: =IFERROR(VLOOKUP(A4,'Gruber Tabelle'!$A$6:$AE$359,26,0),0) -> 0 | AB4: =IFERROR(VLOOKUP(A4,'Gruber Tabelle'!$A$6:$AE$359,27,0),0) -> 0 | AC4: =IFERROR(VLOOKUP(A4,'Gruber Tabelle'!$A$6:$AE$359,28,0),0) -> 0 | AD4: =IFERROR(VLOOKUP(A4,'Gruber Tabelle'!$A$6:$AE$359,29,0),0) -> 0 | AE4: =IFERROR(VLOOKUP(A4,'Gruber Tabelle'!$A$6:$AE$359,30,0),0) -> 0 | AF4: =IFERROR(VLOOKUP(A4,'Gruber Tabelle'!$A$6:$AE$359,31,0),0) -> 0
B5: =IFERROR(VLOOKUP(A5,'Gruber Tabelle'!$A$6:$W$359,2,0),0) -> 0 | C5: =IFERROR(VLOOKUP(A5,'Gruber Tabelle'!$A$6:$W$359,3,0),0)/1000 -> 0 | D5: =IFERROR(VLOOKUP(A5,'Gruber Tabelle'!$A$6:$W$359,3,0),0) -> 0 | E5: =IFERROR(F16/C16,0) -> 0 | G5: =IFERROR(VLOOKUP(A5,'Gruber Tabelle'!$A$6:$W$359,5,0),0) -> 0 | H5: =IFERROR(VLOOKUP(A5,'Gruber Tabelle'!$A$6:$W$359,7,0),0) -> 0 | I5: =IFERROR(VLOOKUP(A5,'Gruber Tabelle'!$A$6:$W$359,8,0),0) -> 0 | J5: =IFERROR(VLOOKUP(A5,'Gruber Tabelle'!$A$6:$W$359,9,0)/100,0) -> 0 | K5: =IFERROR(VLOOKUP(A5,'Gruber Tabelle'!$A$6:$W$359,10,0),0) -> 0 | L5: =IFERROR(VLOOKUP(A5,'Gruber Tabelle'!$A$6:$W$359,11,0),0) -> 0 | M5: =IFERROR(VLOOKUP(A5,'Gruber Tabelle'!$A$6:$W$359,12,0),0) -> 0 | N5: =IFERROR(VLOOKUP(A5,'Gruber Tabelle'!$A$6:$W$359,13,0),0) -> 0 | O5: =IFERROR(VLOOKUP(A5,'Gruber Tabelle'!$A$6:$W$359,14,0),0) -> 0 | P5: =IFERROR(VLOOKUP(A5,'Gruber Tabelle'!$A$6:$W$359,15,0),0) -> 0 | Q5: =IFERROR(VLOOKUP(A5,'Gruber Tabelle'!$A$6:$W$359,16,0),0) -> 0 | R5: =IFERROR(VLOOKUP(A5,'Gruber Tabelle'!$A$6:$W$359,17,0),0) -> 0 | S5: =IFERROR(VLOOKUP(A5,'Gruber Tabelle'!$A$6:$W$359,18,0),0) -> 0 | T5: =IFERROR(VLOOKUP(A5,'Gruber Tabelle'!$A$6:$W$359,19,0),0) -> 0 | U5: =IFERROR(VLOOKUP(A5,'Gruber Tabelle'!$A$6:$W$359,20,0),0) -> 0 | V5: =IFERROR(VLOOKUP(A5,'Gruber Tabelle'!$A$6:$W$359,21,0),0) -> 0 | W5: =IFERROR(VLOOKUP(A5,'Gruber Tabelle'!$A$6:$W$359,22,0),0) -> 0 | X5: =IFERROR(VLOOKUP(A5,'Gruber Tabelle'!$A$6:$W$359,23,0),0) -> 0 | Y5: =IFERROR(VLOOKUP(A5,'Gruber Tabelle'!$A$6:$X$359,24,0),0) -> 0 | Z5: =IFERROR(VLOOKUP(A5,'Gruber Tabelle'!$A$6:$AE$359,25,0),0) -> 0 | AA5: =IFERROR(VLOOKUP(A5,'Gruber Tabelle'!$A$6:$AE$359,26,0),0) -> 0 | AB5: =IFERROR(VLOOKUP(A5,'Gruber Tabelle'!$A$6:$AE$359,27,0),0) -> 0 | AC5: =IFERROR(VLOOKUP(A5,'Gruber Tabelle'!$A$6:$AE$359,28,0),0) -> 0 | AD5: =IFERROR(VLOOKUP(A5,'Gruber Tabelle'!$A$6:$AE$359,29,0),0) -> 0 | AE5: =IFERROR(VLOOKUP(A5,'Gruber Tabelle'!$A$6:$AE$359,30,0),0) -> 0 | AF5: =IFERROR(VLOOKUP(A5,'Gruber Tabelle'!$A$6:$AE$359,31,0),0) -> 0
B6: =IFERROR(VLOOKUP(A6,'Gruber Tabelle'!$A$6:$W$359,2,0),0) -> 0 | C6: =IFERROR(VLOOKUP(A6,'Gruber Tabelle'!$A$6:$W$359,3,0),0)/1000 -> 0 | D6: =IFERROR(VLOOKUP(A6,'Gruber Tabelle'!$A$6:$W$359,3,0),0) -> 0 | E6: 0 | G6: =IFERROR(VLOOKUP(A6,'Gruber Tabelle'!$A$6:$W$359,5,0),0) -> 0 | H6: =IFERROR(VLOOKUP(A6,'Gruber Tabelle'!$A$6:$W$359,7,0),0) -> 0 | I6: =IFERROR(VLOOKUP(A6,'Gruber Tabelle'!$A$6:$W$359,8,0),0) -> 0 | J6: =IFERROR(VLOOKUP(A6,'Gruber Tabelle'!$A$6:$W$359,9,0)/100,0) -> 0 | K6: =IFERROR(VLOOKUP(A6,'Gruber Tabelle'!$A$6:$W$359,10,0),0) -> 0 | L6: =IFERROR(VLOOKUP(A6,'Gruber Tabelle'!$A$6:$W$359,11,0),0) -> 0 | M6: =IFERROR(VLOOKUP(A6,'Gruber Tabelle'!$A$6:$W$359,12,0),0) -> 0 | N6: =IFERROR(VLOOKUP(A6,'Gruber Tabelle'!$A$6:$W$359,13,0),0) -> 0 | O6: =IFERROR(VLOOKUP(A6,'Gruber Tabelle'!$A$6:$W$359,14,0),0) -> 0 | P6: =IFERROR(VLOOKUP(A6,'Gruber Tabelle'!$A$6:$W$359,15,0),0) -> 0 | Q6: =IFERROR(VLOOKUP(A6,'Gruber Tabelle'!$A$6:$W$359,16,0),0) -> 0 | R6: =IFERROR(VLOOKUP(A6,'Gruber Tabelle'!$A$6:$W$359,17,0),0) -> 0 | S6: =IFERROR(VLOOKUP(A6,'Gruber Tabelle'!$A$6:$W$359,18,0),0) -> 0 | T6: =IFERROR(VLOOKUP(A6,'Gruber Tabelle'!$A$6:$W$359,19,0),0) -> 0 | U6: =IFERROR(VLOOKUP(A6,'Gruber Tabelle'!$A$6:$W$359,20,0),0) -> 0 | V6: =IFERROR(VLOOKUP(A6,'Gruber Tabelle'!$A$6:$W$359,21,0),0) -> 0 | W6: =IFERROR(VLOOKUP(A6,'Gruber Tabelle'!$A$6:$W$359,22,0),0) -> 0 | X6: =IFERROR(VLOOKUP(A6,'Gruber Tabelle'!$A$6:$W$359,23,0),0) -> 0 | Y6: =IFERROR(VLOOKUP(A6,'Gruber Tabelle'!$A$6:$X$359,24,0),0) -> 0 | Z6: =IFERROR(VLOOKUP(A6,'Gruber Tabelle'!$A$6:$AE$359,25,0),0) -> 0 | AA6: =IFERROR(VLOOKUP(A6,'Gruber Tabelle'!$A$6:$AE$359,26,0),0) -> 0 | AB6: =IFERROR(VLOOKUP(A6,'Gruber Tabelle'!$A$6:$AE$359,27,0),0) -> 0 | AC6: =IFERROR(VLOOKUP(A6,'Gruber Tabelle'!$A$6:$AE$359,28,0),0) -> 0 | AD6: =IFERROR(VLOOKUP(A6,'Gruber Tabelle'!$A$6:$AE$359,29,0),0) -> 0 | AE6: =IFERROR(VLOOKUP(A6,'Gruber Tabelle'!$A$6:$AE$359,30,0),0) -> 0 | AF6: =IFERROR(VLOOKUP(A6,'Gruber Tabelle'!$A$6:$AE$359,31,0),0) -> 0
B7: =IFERROR(VLOOKUP(A7,'Gruber Tabelle'!$A$6:$W$359,2,0),0) -> 0 | C7: =IFERROR(VLOOKUP(A7,'Gruber Tabelle'!$A$6:$W$359,3,0),0)/1000 -> 0 | D7: =IFERROR(VLOOKUP(A7,'Gruber Tabelle'!$A$6:$W$359,3,0),0) -> 0 | E7: 0 | G7: =IFERROR(VLOOKUP(A7,'Gruber Tabelle'!$A$6:$W$359,5,0),0) -> 0 | H7: =IFERROR(VLOOKUP(A7,'Gruber Tabelle'!$A$6:$W$359,7,0),0) -> 0 | I7: =IFERROR(VLOOKUP(A7,'Gruber Tabelle'!$A$6:$W$359,8,0),0) -> 0 | J7: =IFERROR(VLOOKUP(A7,'Gruber Tabelle'!$A$6:$W$359,9,0)/100,0) -> 0 | K7: =IFERROR(VLOOKUP(A7,'Gruber Tabelle'!$A$6:$W$359,10,0),0) -> 0 | L7: =IFERROR(VLOOKUP(A7,'Gruber Tabelle'!$A$6:$W$359,11,0),0) -> 0 | M7: =IFERROR(VLOOKUP(A7,'Gruber Tabelle'!$A$6:$W$359,12,0),0) -> 0 | N7: =IFERROR(VLOOKUP(A7,'Gruber Tabelle'!$A$6:$W$359,13,0),0) -> 0 | O7: =IFERROR(VLOOKUP(A7,'Gruber Tabelle'!$A$6:$W$359,14,0),0) -> 0 | P7: =IFERROR(VLOOKUP(A7,'Gruber Tabelle'!$A$6:$W$359,15,0),0) -> 0 | Q7: =IFERROR(VLOOKUP(A7,'Gruber Tabelle'!$A$6:$W$359,16,0),0) -> 0 | R7: =IFERROR(VLOOKUP(A7,'Gruber Tabelle'!$A$6:$W$359,17,0),0) -> 0 | S7: =IFERROR(VLOOKUP(A7,'Gruber Tabelle'!$A$6:$W$359,18,0),0) -> 0 | T7: =IFERROR(VLOOKUP(A7,'Gruber Tabelle'!$A$6:$W$359,19,0),0) -> 0 | U7: =IFERROR(VLOOKUP(A7,'Gruber Tabelle'!$A$6:$W$359,20,0),0) -> 0 | V7: =IFERROR(VLOOKUP(A7,'Gruber Tabelle'!$A$6:$W$359,21,0),0) -> 0 | W7: =IFERROR(VLOOKUP(A7,'Gruber Tabelle'!$A$6:$W$359,22,0),0) -> 0 | X7: =IFERROR(VLOOKUP(A7,'Gruber Tabelle'!$A$6:$W$359,23,0),0) -> 0 | Y7: =IFERROR(VLOOKUP(A7,'Gruber Tabelle'!$A$6:$X$359,24,0),0) -> 0 | Z7: =IFERROR(VLOOKUP(A7,'Gruber Tabelle'!$A$6:$AE$359,25,0),0) -> 0 | AA7: =IFERROR(VLOOKUP(A7,'Gruber Tabelle'!$A$6:$AE$359,26,0),0) -> 0 | AB7: =IFERROR(VLOOKUP(A7,'Gruber Tabelle'!$A$6:$AE$359,27,0),0) -> 0 | AC7: =IFERROR(VLOOKUP(A7,'Gruber Tabelle'!$A$6:$AE$359,28,0),0) -> 0 | AD7: =IFERROR(VLOOKUP(A7,'Gruber Tabelle'!$A$6:$AE$359,29,0),0) -> 0 | AE7: =IFERROR(VLOOKUP(A7,'Gruber Tabelle'!$A$6:$AE$359,30,0),0) -> 0 | AF7: =IFERROR(VLOOKUP(A7,'Gruber Tabelle'!$A$6:$AE$359,31,0),0) -> 0
B8: =IFERROR(VLOOKUP(A8,'Gruber Tabelle'!$A$6:$W$359,2,0),0) -> 0 | C8: =IFERROR(VLOOKUP(A8,'Gruber Tabelle'!$A$6:$W$359,3,0),0)/1000 -> 0 | D8: =IFERROR(VLOOKUP(A8,'Gruber Tabelle'!$A$6:$W$359,3,0),0) -> 0 | E8: 0 | G8: =IFERROR(VLOOKUP(A8,'Gruber Tabelle'!$A$6:$W$359,5,0),0) -> 0 | H8: =IFERROR(VLOOKUP(A8,'Gruber Tabelle'!$A$6:$W$359,7,0),0) -> 0 | I8: =IFERROR(VLOOKUP(A8,'Gruber Tabelle'!$A$6:$W$359,8,0),0) -> 0 | J8: =IFERROR(VLOOKUP(A8,'Gruber Tabelle'!$A$6:$W$359,9,0)/100,0) -> 0 | K8: =IFERROR(VLOOKUP(A8,'Gruber Tabelle'!$A$6:$W$359,10,0),0) -> 0 | L8: =IFERROR(VLOOKUP(A8,'Gruber Tabelle'!$A$6:$W$359,11,0),0) -> 0 | M8: =IFERROR(VLOOKUP(A8,'Gruber Tabelle'!$A$6:$W$359,12,0),0) -> 0 | N8: =IFERROR(VLOOKUP(A8,'Gruber Tabelle'!$A$6:$W$359,13,0),0) -> 0 | O8: =IFERROR(VLOOKUP(A8,'Gruber Tabelle'!$A$6:$W$359,14,0),0) -> 0 | P8: =IFERROR(VLOOKUP(A8,'Gruber Tabelle'!$A$6:$W$359,15,0),0) -> 0 | Q8: =IFERROR(VLOOKUP(A8,'Gruber Tabelle'!$A$6:$W$359,16,0),0) -> 0 | R8: =IFERROR(VLOOKUP(A8,'Gruber Tabelle'!$A$6:$W$359,17,0),0) -> 0 | S8: =IFERROR(VLOOKUP(A8,'Gruber Tabelle'!$A$6:$W$359,18,0),0) -> 0 | T8: =IFERROR(VLOOKUP(A8,'Gruber Tabelle'!$A$6:$W$359,19,0),0) -> 0 | U8: =IFERROR(VLOOKUP(A8,'Gruber Tabelle'!$A$6:$W$359,20,0),0) -> 0 | V8: =IFERROR(VLOOKUP(A8,'Gruber Tabelle'!$A$6:$W$359,21,0),0) -> 0 | W8: =IFERROR(VLOOKUP(A8,'Gruber Tabelle'!$A$6:$W$359,22,0),0) -> 0 | X8: =IFERROR(VLOOKUP(A8,'Gruber Tabelle'!$A$6:$W$359,23,0),0) -> 0 | Y8: =IFERROR(VLOOKUP(A8,'Gruber Tabelle'!$A$6:$X$359,24,0),0) -> 0 | Z8: =IFERROR(VLOOKUP(A8,'Gruber Tabelle'!$A$6:$AE$359,25,0),0) -> 0 | AA8: =IFERROR(VLOOKUP(A8,'Gruber Tabelle'!$A$6:$AE$359,26,0),0) -> 0 | AB8: =IFERROR(VLOOKUP(A8,'Gruber Tabelle'!$A$6:$AE$359,27,0),0) -> 0 | AC8: =IFERROR(VLOOKUP(A8,'Gruber Tabelle'!$A$6:$AE$359,28,0),0) -> 0 | AD8: =IFERROR(VLOOKUP(A8,'Gruber Tabelle'!$A$6:$AE$359,29,0),0) -> 0 | AE8: =IFERROR(VLOOKUP(A8,'Gruber Tabelle'!$A$6:$AE$359,30,0),0) -> 0 | AF8: =IFERROR(VLOOKUP(A8,'Gruber Tabelle'!$A$6:$AE$359,31,0),0) -> 0
B9: =IFERROR(VLOOKUP(A9,'Gruber Tabelle'!$A$6:$W$359,2,0),0) -> 0 | C9: =IFERROR(VLOOKUP(A9,'Gruber Tabelle'!$A$6:$W$359,3,0),0)/1000 -> 0 | D9: =IFERROR(VLOOKUP(A9,'Gruber Tabelle'!$A$6:$W$359,3,0),0) -> 0 | E9: 0 | G9: =IFERROR(VLOOKUP(A9,'Gruber Tabelle'!$A$6:$W$359,5,0),0) -> 0 | H9: =IFERROR(VLOOKUP(A9,'Gruber Tabelle'!$A$6:$W$359,7,0),0) -> 0 | I9: =IFERROR(VLOOKUP(A9,'Gruber Tabelle'!$A$6:$W$359,8,0),0) -> 0 | J9: =IFERROR(VLOOKUP(A9,'Gruber Tabelle'!$A$6:$W$359,9,0)/100,0) -> 0 | K9: =IFERROR(VLOOKUP(A9,'Gruber Tabelle'!$A$6:$W$359,10,0),0) -> 0 | L9: =IFERROR(VLOOKUP(A9,'Gruber Tabelle'!$A$6:$W$359,11,0),0) -> 0 | M9: =IFERROR(VLOOKUP(A9,'Gruber Tabelle'!$A$6:$W$359,12,0),0) -> 0 | N9: =IFERROR(VLOOKUP(A9,'Gruber Tabelle'!$A$6:$W$359,13,0),0) -> 0 | O9: =IFERROR(VLOOKUP(A9,'Gruber Tabelle'!$A$6:$W$359,14,0),0) -> 0 | P9: =IFERROR(VLOOKUP(A9,'Gruber Tabelle'!$A$6:$W$359,15,0),0) -> 0 | Q9: =IFERROR(VLOOKUP(A9,'Gruber Tabelle'!$A$6:$W$359,16,0),0) -> 0 | R9: =IFERROR(VLOOKUP(A9,'Gruber Tabelle'!$A$6:$W$359,17,0),0) -> 0 | S9: =IFERROR(VLOOKUP(A9,'Gruber Tabelle'!$A$6:$W$359,18,0),0) -> 0 | T9: =IFERROR(VLOOKUP(A9,'Gruber Tabelle'!$A$6:$W$359,19,0),0) -> 0 | U9: =IFERROR(VLOOKUP(A9,'Gruber Tabelle'!$A$6:$W$359,20,0),0) -> 0 | V9: =IFERROR(VLOOKUP(A9,'Gruber Tabelle'!$A$6:$W$359,21,0),0) -> 0 | W9: =IFERROR(VLOOKUP(A9,'Gruber Tabelle'!$A$6:$W$359,22,0),0) -> 0 | X9: =IFERROR(VLOOKUP(A9,'Gruber Tabelle'!$A$6:$W$359,23,0),0) -> 0 | Y9: =IFERROR(VLOOKUP(A9,'Gruber Tabelle'!$A$6:$X$359,24,0),0) -> 0 | Z9: =IFERROR(VLOOKUP(A9,'Gruber Tabelle'!$A$6:$AE$359,25,0),0) -> 0 | AA9: =IFERROR(VLOOKUP(A9,'Gruber Tabelle'!$A$6:$AE$359,26,0),0) -> 0 | AB9: =IFERROR(VLOOKUP(A9,'Gruber Tabelle'!$A$6:$AE$359,27,0),0) -> 0 | AC9: =IFERROR(VLOOKUP(A9,'Gruber Tabelle'!$A$6:$AE$359,28,0),0) -> 0 | AD9: =IFERROR(VLOOKUP(A9,'Gruber Tabelle'!$A$6:$AE$359,29,0),0) -> 0 | AE9: =IFERROR(VLOOKUP(A9,'Gruber Tabelle'!$A$6:$AE$359,30,0),0) -> 0 | AF9: =IFERROR(VLOOKUP(A9,'Gruber Tabelle'!$A$6:$AE$359,31,0),0) -> 0
B10: =IFERROR(VLOOKUP(A10,'Gruber Tabelle'!$A$6:$W$359,2,0),0) -> 0 | C10: =IFERROR(VLOOKUP(A10,'Gruber Tabelle'!$A$6:$W$359,3,0),0)/1000 -> 0 | D10: =IFERROR(VLOOKUP(A10,'Gruber Tabelle'!$A$6:$W$359,3,0),0) -> 0 | E10: 0 | G10: =IFERROR(VLOOKUP(A10,'Gruber Tabelle'!$A$6:$W$359,5,0),0) -> 0 | H10: =IFERROR(VLOOKUP(A10,'Gruber Tabelle'!$A$6:$W$359,7,0),0) -> 0 | I10: =IFERROR(VLOOKUP(A10,'Gruber Tabelle'!$A$6:$W$359,8,0),0) -> 0 | J10: =IFERROR(VLOOKUP(A10,'Gruber Tabelle'!$A$6:$W$359,9,0)/100,0) -> 0 | K10: =IFERROR(VLOOKUP(A10,'Gruber Tabelle'!$A$6:$W$359,10,0),0) -> 0 | L10: =IFERROR(VLOOKUP(A10,'Gruber Tabelle'!$A$6:$W$359,11,0),0) -> 0 | M10: =IFERROR(VLOOKUP(A10,'Gruber Tabelle'!$A$6:$W$359,12,0),0) -> 0 | N10: =IFERROR(VLOOKUP(A10,'Gruber Tabelle'!$A$6:$W$359,13,0),0) -> 0 | O10: =IFERROR(VLOOKUP(A10,'Gruber Tabelle'!$A$6:$W$359,14,0),0) -> 0 | P10: =IFERROR(VLOOKUP(A10,'Gruber Tabelle'!$A$6:$W$359,15,0),0) -> 0 | Q10: =IFERROR(VLOOKUP(A10,'Gruber Tabelle'!$A$6:$W$359,16,0),0) -> 0 | R10: =IFERROR(VLOOKUP(A10,'Gruber Tabelle'!$A$6:$W$359,17,0),0) -> 0 | S10: =IFERROR(VLOOKUP(A10,'Gruber Tabelle'!$A$6:$W$359,18,0),0) -> 0 | T10: =IFERROR(VLOOKUP(A10,'Gruber Tabelle'!$A$6:$W$359,19,0),0) -> 0 | U10: =IFERROR(VLOOKUP(A10,'Gruber Tabelle'!$A$6:$W$359,20,0),0) -> 0 | V10: =IFERROR(VLOOKUP(A10,'Gruber Tabelle'!$A$6:$W$359,21,0),0) -> 0 | W10: =IFERROR(VLOOKUP(A10,'Gruber Tabelle'!$A$6:$W$359,22,0),0) -> 0 | X10: =IFERROR(VLOOKUP(A10,'Gruber Tabelle'!$A$6:$W$359,23,0),0) -> 0 | Y10: =IFERROR(VLOOKUP(A10,'Gruber Tabelle'!$A$6:$X$359,24,0),0) -> 0 | Z10: =IFERROR(VLOOKUP(A10,'Gruber Tabelle'!$A$6:$AE$359,25,0),0) -> 0 | AA10: =IFERROR(VLOOKUP(A10,'Gruber Tabelle'!$A$6:$AE$359,26,0),0) -> 0 | AB10: =IFERROR(VLOOKUP(A10,'Gruber Tabelle'!$A$6:$AE$359,27,0),0) -> 0 | AC10: =IFERROR(VLOOKUP(A10,'Gruber Tabelle'!$A$6:$AE$359,28,0),0) -> 0 | AD10: =IFERROR(VLOOKUP(A10,'Gruber Tabelle'!$A$6:$AE$359,29,0),0) -> 0 | AE10: =IFERROR(VLOOKUP(A10,'Gruber Tabelle'!$A$6:$AE$359,30,0),0) -> 0 | AF10: =IFERROR(VLOOKUP(A10,'Gruber Tabelle'!$A$6:$AE$359,31,0),0) -> 0
B11: =IFERROR(VLOOKUP(A11,'Gruber Tabelle'!$A$6:$W$359,2,0),0) -> 0 | C11: =IFERROR(VLOOKUP(A11,'Gruber Tabelle'!$A$6:$W$359,3,0),0)/1000 -> 0 | D11: =IFERROR(VLOOKUP(A11,'Gruber Tabelle'!$A$6:$W$359,3,0),0) -> 0 | E11: 0 | G11: =IFERROR(VLOOKUP(A11,'Gruber Tabelle'!$A$6:$W$359,5,0),0) -> 0 | H11: =IFERROR(VLOOKUP(A11,'Gruber Tabelle'!$A$6:$W$359,7,0),0) -> 0 | I11: =IFERROR(VLOOKUP(A11,'Gruber Tabelle'!$A$6:$W$359,8,0),0) -> 0 | J11: =IFERROR(VLOOKUP(A11,'Gruber Tabelle'!$A$6:$W$359,9,0)/100,0) -> 0 | K11: =IFERROR(VLOOKUP(A11,'Gruber Tabelle'!$A$6:$W$359,10,0),0) -> 0 | L11: =IFERROR(VLOOKUP(A11,'Gruber Tabelle'!$A$6:$W$359,11,0),0) -> 0 | M11: =IFERROR(VLOOKUP(A11,'Gruber Tabelle'!$A$6:$W$359,12,0),0) -> 0 | N11: =IFERROR(VLOOKUP(A11,'Gruber Tabelle'!$A$6:$W$359,13,0),0) -> 0 | O11: =IFERROR(VLOOKUP(A11,'Gruber Tabelle'!$A$6:$W$359,14,0),0) -> 0 | P11: =IFERROR(VLOOKUP(A11,'Gruber Tabelle'!$A$6:$W$359,15,0),0) -> 0 | Q11: =IFERROR(VLOOKUP(A11,'Gruber Tabelle'!$A$6:$W$359,16,0),0) -> 0 | R11: =IFERROR(VLOOKUP(A11,'Gruber Tabelle'!$A$6:$W$359,17,0),0) -> 0 | S11: =IFERROR(VLOOKUP(A11,'Gruber Tabelle'!$A$6:$W$359,18,0),0) -> 0 | T11: =IFERROR(VLOOKUP(A11,'Gruber Tabelle'!$A$6:$W$359,19,0),0) -> 0 | U11: =IFERROR(VLOOKUP(A11,'Gruber Tabelle'!$A$6:$W$359,20,0),0) -> 0 | V11: =IFERROR(VLOOKUP(A11,'Gruber Tabelle'!$A$6:$W$359,21,0),0) -> 0 | W11: =IFERROR(VLOOKUP(A11,'Gruber Tabelle'!$A$6:$W$359,22,0),0) -> 0 | X11: =IFERROR(VLOOKUP(A11,'Gruber Tabelle'!$A$6:$W$359,23,0),0) -> 0 | Y11: =IFERROR(VLOOKUP(A11,'Gruber Tabelle'!$A$6:$X$359,24,0),0) -> 0 | Z11: =IFERROR(VLOOKUP(A11,'Gruber Tabelle'!$A$6:$AE$359,25,0),0) -> 0 | AA11: =IFERROR(VLOOKUP(A11,'Gruber Tabelle'!$A$6:$AE$359,26,0),0) -> 0 | AB11: =IFERROR(VLOOKUP(A11,'Gruber Tabelle'!$A$6:$AE$359,27,0),0) -> 0 | AC11: =IFERROR(VLOOKUP(A11,'Gruber Tabelle'!$A$6:$AE$359,28,0),0) -> 0 | AD11: =IFERROR(VLOOKUP(A11,'Gruber Tabelle'!$A$6:$AE$359,29,0),0) -> 0 | AE11: =IFERROR(VLOOKUP(A11,'Gruber Tabelle'!$A$6:$AE$359,30,0),0) -> 0 | AF11: =IFERROR(VLOOKUP(A11,'Gruber Tabelle'!$A$6:$AE$359,31,0),0) -> 0
B12: =IFERROR(VLOOKUP(A12,'Gruber Tabelle'!$A$6:$W$359,2,0),0) -> 0 | C12: =IFERROR(VLOOKUP(A12,'Gruber Tabelle'!$A$6:$W$359,3,0),0)/1000 -> 0 | D12: =IFERROR(VLOOKUP(A12,'Gruber Tabelle'!$A$6:$W$359,3,0),0) -> 0 | E12: 0 | G12: =IFERROR(VLOOKUP(A12,'Gruber Tabelle'!$A$6:$W$359,5,0),0) -> 0 | H12: =IFERROR(VLOOKUP(A12,'Gruber Tabelle'!$A$6:$W$359,7,0),0) -> 0 | I12: =IFERROR(VLOOKUP(A12,'Gruber Tabelle'!$A$6:$W$359,8,0),0) -> 0 | J12: =IFERROR(VLOOKUP(A12,'Gruber Tabelle'!$A$6:$W$359,9,0)/100,0) -> 0 | K12: =IFERROR(VLOOKUP(A12,'Gruber Tabelle'!$A$6:$W$359,10,0),0) -> 0 | L12: =IFERROR(VLOOKUP(A12,'Gruber Tabelle'!$A$6:$W$359,11,0),0) -> 0 | M12: =IFERROR(VLOOKUP(A12,'Gruber Tabelle'!$A$6:$W$359,12,0),0) -> 0 | N12: =IFERROR(VLOOKUP(A12,'Gruber Tabelle'!$A$6:$W$359,13,0),0) -> 0 | O12: =IFERROR(VLOOKUP(A12,'Gruber Tabelle'!$A$6:$W$359,14,0),0) -> 0 | P12: =IFERROR(VLOOKUP(A12,'Gruber Tabelle'!$A$6:$W$359,15,0),0) -> 0 | Q12: =IFERROR(VLOOKUP(A12,'Gruber Tabelle'!$A$6:$W$359,16,0),0) -> 0 | R12: =IFERROR(VLOOKUP(A12,'Gruber Tabelle'!$A$6:$W$359,17,0),0) -> 0 | S12: =IFERROR(VLOOKUP(A12,'Gruber Tabelle'!$A$6:$W$359,18,0),0) -> 0 | T12: =IFERROR(VLOOKUP(A12,'Gruber Tabelle'!$A$6:$W$359,19,0),0) -> 0 | U12: =IFERROR(VLOOKUP(A12,'Gruber Tabelle'!$A$6:$W$359,20,0),0) -> 0 | V12: =IFERROR(VLOOKUP(A12,'Gruber Tabelle'!$A$6:$W$359,21,0),0) -> 0 | W12: =IFERROR(VLOOKUP(A12,'Gruber Tabelle'!$A$6:$W$359,22,0),0) -> 0 | X12: =IFERROR(VLOOKUP(A12,'Gruber Tabelle'!$A$6:$W$359,23,0),0) -> 0 | Y12: =IFERROR(VLOOKUP(A12,'Gruber Tabelle'!$A$6:$X$359,24,0),0) -> 0 | Z12: =IFERROR(VLOOKUP(A12,'Gruber Tabelle'!$A$6:$AE$359,25,0),0) -> 0 | AA12: =IFERROR(VLOOKUP(A12,'Gruber Tabelle'!$A$6:$AE$359,26,0),0) -> 0 | AB12: =IFERROR(VLOOKUP(A12,'Gruber Tabelle'!$A$6:$AE$359,27,0),0) -> 0 | AC12: =IFERROR(VLOOKUP(A12,'Gruber Tabelle'!$A$6:$AE$359,28,0),0) -> 0 | AD12: =IFERROR(VLOOKUP(A12,'Gruber Tabelle'!$A$6:$AE$359,29,0),0) -> 0 | AE12: =IFERROR(VLOOKUP(A12,'Gruber Tabelle'!$A$6:$AE$359,30,0),0) -> 0 | AF12: =IFERROR(VLOOKUP(A12,'Gruber Tabelle'!$A$6:$AE$359,31,0),0) -> 0
B13: =IFERROR(VLOOKUP(A13,'Gruber Tabelle'!$A$6:$W$359,2,0),0) -> 0 | C13: =IFERROR(VLOOKUP(A13,'Gruber Tabelle'!$A$6:$W$359,3,0),0)/1000 -> 0 | D13: =IFERROR(VLOOKUP(A13,'Gruber Tabelle'!$A$6:$W$359,3,0),0) -> 0 | E13: 0 | G13: =IFERROR(VLOOKUP(A13,'Gruber Tabelle'!$A$6:$W$359,5,0),0) -> 0 | H13: =IFERROR(VLOOKUP(A13,'Gruber Tabelle'!$A$6:$W$359,7,0),0) -> 0 | I13: =IFERROR(VLOOKUP(A13,'Gruber Tabelle'!$A$6:$W$359,8,0),0) -> 0 | J13: =IFERROR(VLOOKUP(A13,'Gruber Tabelle'!$A$6:$W$359,9,0)/100,0) -> 0 | K13: =IFERROR(VLOOKUP(A13,'Gruber Tabelle'!$A$6:$W$359,10,0),0) -> 0 | L13: =IFERROR(VLOOKUP(A13,'Gruber Tabelle'!$A$6:$W$359,11,0),0) -> 0 | M13: =IFERROR(VLOOKUP(A13,'Gruber Tabelle'!$A$6:$W$359,12,0),0) -> 0 | N13: =IFERROR(VLOOKUP(A13,'Gruber Tabelle'!$A$6:$W$359,13,0),0) -> 0 | O13: =IFERROR(VLOOKUP(A13,'Gruber Tabelle'!$A$6:$W$359,14,0),0) -> 0 | P13: =IFERROR(VLOOKUP(A13,'Gruber Tabelle'!$A$6:$W$359,15,0),0) -> 0 | Q13: =IFERROR(VLOOKUP(A13,'Gruber Tabelle'!$A$6:$W$359,16,0),0) -> 0 | R13: =IFERROR(VLOOKUP(A13,'Gruber Tabelle'!$A$6:$W$359,17,0),0) -> 0 | S13: =IFERROR(VLOOKUP(A13,'Gruber Tabelle'!$A$6:$W$359,18,0),0) -> 0 | T13: =IFERROR(VLOOKUP(A13,'Gruber Tabelle'!$A$6:$W$359,19,0),0) -> 0 | U13: =IFERROR(VLOOKUP(A13,'Gruber Tabelle'!$A$6:$W$359,20,0),0) -> 0 | V13: =IFERROR(VLOOKUP(A13,'Gruber Tabelle'!$A$6:$W$359,21,0),0) -> 0 | W13: =IFERROR(VLOOKUP(A13,'Gruber Tabelle'!$A$6:$W$359,22,0),0) -> 0 | X13: =IFERROR(VLOOKUP(A13,'Gruber Tabelle'!$A$6:$W$359,23,0),0) -> 0 | Y13: =IFERROR(VLOOKUP(A13,'Gruber Tabelle'!$A$6:$X$359,24,0),0) -> 0 | Z13: =IFERROR(VLOOKUP(A13,'Gruber Tabelle'!$A$6:$AE$359,25,0),0) -> 0 | AA13: =IFERROR(VLOOKUP(A13,'Gruber Tabelle'!$A$6:$AE$359,26,0),0) -> 0 | AB13: =IFERROR(VLOOKUP(A13,'Gruber Tabelle'!$A$6:$AE$359,27,0),0) -> 0 | AC13: =IFERROR(VLOOKUP(A13,'Gruber Tabelle'!$A$6:$AE$359,28,0),0) -> 0 | AD13: =IFERROR(VLOOKUP(A13,'Gruber Tabelle'!$A$6:$AE$359,29,0),0) -> 0 | AE13: =IFERROR(VLOOKUP(A13,'Gruber Tabelle'!$A$6:$AE$359,30,0),0) -> 0 | AF13: =IFERROR(VLOOKUP(A13,'Gruber Tabelle'!$A$6:$AE$359,31,0),0) -> 0
A14: Nr | B14: Eingabe der Futtermengen | C14: TM % | D14: TM kg | E14: FM kg | F14: TM kg | G14: aNDFom | H14: CP g | I14: nxP g | J14: UDP g | K14: RNB | L14: NEL MJ | M14: ME MJ | N14: ST+ZU | O14: bST | P14: CL | Q14: Ca | R14: P | S14: Mg | T14: Na | U14: K | V14: Cl | W14: S | X14: Preis | Y14: NDFomGF | Z14: Fe | AA14: Cu | AB14: Zn | AC14: Mn | AD14: Co | AE14: J | AF14: Se
A15: =A4 -> 0 | B15: 0 | F15: =IF(A15=0,0,IF(AND(D15>0,E15=0),D15,IF(AND(E15>0,D15=0),E15*C15,IF(AND(D15>=0,E15>=0),"TM o. FM?")))) -> 0 | G15: =IFERROR(G4*F15,0) -> 0 | H15: =IFERROR(H4*F15,0) -> 0 | I15: =IFERROR(I4*F15,0) -> 0 | J15: =IFERROR((H4*J4)*F15,0) -> 0 | K15: =IFERROR(K4*F15,0) -> 0 | L15: =IFERROR(L4*F15,0) -> 0 | M15: =IFERROR(M4*G15,0) -> 0 | N15: =IFERROR(N4*F15,0) -> 0 | O15: =IFERROR(O4*F15,0) -> 0 | P15: =IFERROR(P4*F15,0) -> 0 | Q15: =IFERROR(Q4*F15,0) -> 0 | R15: =IFERROR(R4*F15,0) -> 0 | S15: =IFERROR(S4*F15,0) -> 0 | T15: =IFERROR(T4*F15,0) -> 0 | U15: =IFERROR(U4*F15,0) -> 0 | V15: =IFERROR(V4*F15,0) -> 0 | W15: =IFERROR(W4*F15,0) -> 0 | X15: =IF(F15>0,X4*E4/100,0) -> 0 | Y15: =IFERROR(IF(Y4="GF",G4*F15,0),0) -> 0 | Z15: =IFERROR(Z4*F15,0) -> 0 | AA15: =IFERROR(AA4*F15,0) -> 0 | AB15: =IFERROR(AB4*F15,0) -> 0 | AC15: =IFERROR(AC4*F15,0) -> 0 | AD15: =IFERROR(AD4*F15,0) -> 0 | AE15: =IFERROR(AE4*F15,0) -> 0 | AF15: =IFERROR(AF4*F15,0) -> 0
A16: 0 | B16: 0 | F16: =IF(A16=0,0,IF(AND(D16>0,E16=0),D16,IF(AND(E16>0,D16=0),E16*C16,IF(AND(D16>=0,E16>=0),"TM o. FM?")))) -> 0 | G16: =IFERROR(G5*F16,0) -> 0 | H16: 0 | I16: 0 | J16: =IFERROR((H5*J5)*F16,0) -> 0 | K16: 0 | L16: =IFERROR(L5*F16,0) -> 0 | M16: =M5*D16 -> 0 | N16: 0 | O16: 0 | P16: 0 | Q16: 0 | R16: 0 | S16: 0 | T16: 0 | U16: 0 | V16: 0 | W16: 0 | X16: 0 | Y16: =IFERROR(IF(Y5="GF",G5*F16,0),0) -> 0 | Z16: =IFERROR(Z5*F16,0) -> 0 | AA16: =IFERROR(AA5*F16,0) -> 0 | AB16: =IFERROR(AB5*F16,0) -> 0 | AC16: =IFERROR(AC5*F16,0) -> 0 | AD16: =IFERROR(AD5*F16,0) -> 0 | AE16: =IFERROR(AE5*F16,0) -> 0 | AF16: =IFERROR(AF5*F16,0) -> 0
A17: 0 | B17: 0 | F17: 0 | G17: =IFERROR(G6*F17,0) -> 0 | H17: 0 | I17: 0 | J17: 0 | K17: 0 | L17: 0 | M17: 0 | N17: 0 | O17: 0 | P17: 0 | Q17: 0 | R17: 0 | S17: 0 | T17: 0 | U17: 0 | V17: 0 | W17: 0 | X17: 0 | Y17: 0 | Z17: 0 | AA17: 0 | AB17: 0 | AC17: 0 | AD17: 0 | AE17: 0 | AF17: 0
A18: 0 | B18: 0 | F18: 0 | G18: 0 | H18: 0 | I18: 0 | J18: 0 | K18: 0 | L18: 0 | M18: 0 | N18: 0 | O18: 0 | P18: 0 | Q18: 0 | R18: 0 | S18: 0 | T18: 0 | U18: 0 | V18: 0 | W18: 0 | X18: 0 | Y18: 0 | Z18: 0 | AA18: 0 | AB18: 0 | AC18: 0 | AD18: 0 | AE18: 0 | AF18: 0
A19: 0 | B19: 0 | F19: 0 | G19: 0 | H19: 0 | I19: 0 | J19: 0 | K19: 0 | L19: 0 | M19: 0 | N19: 0 | O19: 0 | P19: 0 | Q19: 0 | R19: 0 | S19: 0 | T19: 0 | U19: 0 | V19: 0 | W19: 0 | X19: 0 | Y19: 0 | Z19: 0 | AA19: 0 | AB19: 0 | AC19: 0 | AD19: 0 | AE19: 0 | AF19: 0
A20: 0 | B20: 0 | F20: 0 | G20: 0 | H20: 0 | I20: 0 | J20: 0 | K20: 0 | L20: 0 | M20: 0 | N20: 0 | O20: 0 | P20: 0 | Q20: 0 | R20: 0 | S20: 0 | T20: 0 | U20: 0 | V20: 0 | W20: 0 | X20: 0 | Y20: =IFERROR(IF(Y9="GF",G9*F20,0),0) -> 0 | Z20: 0 | AA20: 0 | AB20: 0 | AC20: 0 | AD20: 0 | AE20: 0 | AF20: 0
A21: 0 | B21: 0 | F21: 0 | G21: 0 | H21: 0 | I21: 0 | J21: 0 | K21: 0 | L21: 0 | M21: 0 | N21: 0 | O21: 0 | P21: 0 | Q21: 0 | R21: 0 | S21: 0 | T21: 0 | U21: 0 | V21: 0 | W21: 0 | X21: 0 | Y21: 0 | Z21: 0 | AA21: 0 | AB21: 0 | AC21: 0 | AD21: 0 | AE21: 0 | AF21: 0
A22: 0 | B22: 0 | F22: 0 | G22: 0 | H22: 0 | I22: 0 | J22: 0 | K22: 0 | L22: 0 | M22: 0 | N22: 0 | O22: 0 | P22: 0 | Q22: 0 | R22: 0 | S22: 0 | T22: 0 | U22: 0 | V22: 0 | W22: 0 | X22: 0 | Y22: 0 | Z22: 0 | AA22: 0 | AB22: 0 | AC22: 0 | AD22: 0 | AE22: 0 | AF22: 0
A23: 0 | B23: 0 | F23: 0 | G23: 0 | H23: 0 | I23: 0 | J23: 0 | K23: 0 | L23: 0 | M23: 0 | N23: 0 | O23: 0 | P23: 0 | Q23: 0 | R23: 0 | S23: 0 | T23: 0 | U23: 0 | V23: 0 | W23: 0 | X23: 0 | Y23: 0 | Z23: 0 | AA23: 0 | AB23: 0 | AC23: 0 | AD23: 0 | AE23: 0 | AF23: 0
A24: 0 | B24: 0 | F24: 0 | G24: 0 | H24: 0 | I24: 0 | J24: 0 | K24: 0 | L24: 0 | M24: 0 | N24: 0 | O24: 0 | P24: 0 | Q24: 0 | R24: 0 | S24: 0 | T24: 0 | U24: 0 | V24: 0 | W24: 0 | X24: 0 | Y24: 0 | Z24: 0 | AA24: 0 | AB24: 0 | AC24: 0 | AD24: 0 | AE24: 0 | AF24: 0
A25: Summen FM, TM und Gehaltswerte: | E25: =SUM(E4:E13) -> 0 | F25: =SUM(F15:F24) -> 0 | G25: =SUM(G15:G24) -> 0 | H25: =SUM(H15:H24) -> 0 | I25: 0 | J25: 0 | K25: =SUM(H25-I25)/6.25 -> 0 | L25: 0 | M25: 0 | N25: 0 | O25: 0 | P25: 0 | Q25: 0 | R25: 0 | S25: 0 | T25: 0 | U25: 0 | V25: 0 | W25: 0 | X25: 0 | Y25: 0 | Z25: =SUM(Z15:Z24) -> 0 | AA25: =SUM(AA15:AA24) -> 0 | AB25: 0 | AC25: 0 | AD25: 0 | AE25: 0 | AF25: 0
A26: Basisration + Konzentratfutter + Wasser
A27: Zugabe von KF-Mischung 1 in kg: | F27: =IF(E27,SUM('Mischung 1'!E25*Ration!E27),0) -> 0 | G27: =IF($E$27>0,'Mischung 1'!H25*Ration!$E$27,0) -> 0 | H27: =IF($E$27>0,'Mischung 1'!I25*Ration!$E$27,0) -> 0 | I27: =IF($E$27>0,'Mischung 1'!J25*Ration!$E$27,0) -> 0 | J27: =IF($E$27>0,'Mischung 1'!K25*Ration!$E$27,0) -> 0 | K27: =IF($E$27>0,'Mischung 1'!L25*Ration!$E$27,0) -> 0 | L27: =IF($E$27>0,'Mischung 1'!M25*Ration!$E$27,0) -> 0 | M27: =IF($E$27>0,'Mischung 1'!N25*Ration!$E$27,0) -> 0 | N27: =IF($E$27>0,'Mischung 1'!O25*Ration!$E$27,0) -> 0 | O27: =IF($E$27>0,'Mischung 1'!P25*Ration!$E$27,0) -> 0 | P27: =IF($E$27>0,'Mischung 1'!Q25*Ration!$E$27,0) -> 0 | Q27: =IF($E$27>0,'Mischung 1'!R25*Ration!$E$27,0) -> 0 | R27: =IF($E$27>0,'Mischung 1'!S25*Ration!$E$27,0) -> 0 | S27: =IF($E$27>0,'Mischung 1'!T25*Ration!$E$27,0) -> 0 | T27: =IF($E$27>0,'Mischung 1'!U25*Ration!$E$27,0) -> 0 | U27: =IF($E$27>0,'Mischung 1'!V25*Ration!$E$27,0) -> 0 | V27: =IF($E$27>0,'Mischung 1'!W25*Ration!$E$27,0) -> 0 | W27: =IF($E$27>0,'Mischung 1'!X25*Ration!$E$27,0) -> 0 | X27: =IF($E$27>0,'Mischung 1'!Y25*Ration!$E$27,0) -> 0 | Z27: =IF($E$27>0,'Mischung 1'!Z25*Ration!$E$27,0) -> 0 | AA27: =IF($E$27>0,'Mischung 1'!AA25*Ration!$E$27,0) -> 0 | AB27: =IF($E$27>0,'Mischung 1'!AB25*Ration!$E$27,0) -> 0 | AC27: =IF($E$27>0,'Mischung 1'!AC25*Ration!$E$27,0) -> 0 | AD27: =IF($E$27>0,'Mischung 1'!AD25*Ration!$E$27,0) -> 0 | AE27: =IF($E$27>0,'Mischung 1'!AE25*Ration!$E$27,0) -> 0 | AF27: =IF($E$27>0,'Mischung 1'!AF25*Ration!$E$27,0) -> 0
A28: Zugabe von KF-Mischung 2 in kg: | F28: =IF(E28,SUM('Mischung 2'!E25*Ration!E28),0) -> 0 | G28: =IF($E$28>0,'Mischung 2'!H25*Ration!$E$28,0) -> 0 | H28: =IF($E$28>0,'Mischung 2'!I25*Ration!$E$28,0) -> 0 | I28: =IF($E$28>0,'Mischung 2'!J25*Ration!$E$28,0) -> 0 | J28: =IF($E$28>0,'Mischung 2'!K25*Ration!$E$28,0) -> 0 | K28: =IF($E$28>0,'Mischung 2'!L25*Ration!$E$28,0) -> 0 | L28: =IF($E$28>0,'Mischung 2'!M25*Ration!$E$28,0) -> 0 | M28: =IF($E$28>0,'Mischung 2'!N25*Ration!$E$28,0) -> 0 | N28: =IF($E$28>0,'Mischung 2'!O25*Ration!$E$28,0) -> 0 | O28: =IF($E$28>0,'Mischung 2'!P25*Ration!$E$28,0) -> 0 | P28: =IF($E$28>0,'Mischung 2'!Q25*Ration!$E$28,0) -> 0 | Q28: =IF($E$28>0,'Mischung 2'!R25*Ration!$E$28,0) -> 0 | R28: =IF($E$28>0,'Mischung 2'!S25*Ration!$E$28,0) -> 0 | S28: =IF($E$28>0,'Mischung 2'!T25*Ration!$E$28,0) -> 0 | T28: =IF($E$28>0,'Mischung 2'!U25*Ration!$E$28,0) -> 0 | U28: =IF($E$28>0,'Mischung 2'!V25*Ration!$E$28,0) -> 0 | V28: =IF($E$28>0,'Mischung 2'!W25*Ration!$E$28,0) -> 0 | W28: =IF($E$28>0,'Mischung 2'!X25*Ration!$E$28,0) -> 0 | X28: =IF($E$28>0,'Mischung 2'!Y25*Ration!$E$28,0) -> 0 | Z28: =IF($E$28>0,'Mischung 2'!Z25*Ration!$E$28,0) -> 0 | AA28: =IF($E$28>0,'Mischung 2'!AA25*Ration!$E$28,0) -> 0 | AB28: =IF($E$28>0,'Mischung 2'!AB25*Ration!$E$28,0) -> 0 | AC28: =IF($E$28>0,'Mischung 2'!AC25*Ration!$E$28,0) -> 0 | AD28: =IF($E$28>0,'Mischung 2'!AD25*Ration!$E$28,0) -> 0 | AE28: =IF($E$28>0,'Mischung 2'!AE25*Ration!$E$28,0) -> 0 | AF28: =IF($E$28>0,'Mischung 2'!AF25*Ration!$E$28,0) -> 0
A29: Zugabe von Wasser (Liter o. kg):
A30: Summe Gesamt-Ration Inhaltsw.: | E30: =SUM(E25+E27+E28+E29) -> 0 | F30: =SUM(F25+F27+F28) -> 0 | G30: =SUM(G25+G27+G28) -> 0 | H30: =SUM(H25+H27+H28) -> 0 | I30: =SUM(I25+I27+I28) -> 0 | J30: =SUM(J25+J27+J28) -> 0 | L30: =SUM(L25+L27+L28) -> 0 | M30: 0 | N30: 0 | O30: 0 | P30: 0 | Q30: 0 | R30: 0 | S30: 0 | T30: 0 | U30: 0 | V30: 0 | W30: 0 | X30: 0 | Z30: =SUM(Z25+Z27+Z28) -> 0 | AA30: =SUM(AA25+AA27+AA28) -> 0 | AB30: 0 | AC30: 0 | AD30: 0 | AE30: 0 | AF30: 0
A31: Gehaltswerte in g je kg TM oder Anteile in % | F31: =IF(F30,F30/E30,0) -> 0 | G31: =IF(Y25>0,Y25/F30/1000,0) -> 0 | H31: =IF(H30>0,SUM(H30/F30)/1000,0) -> 0 | I31: =IF(I30>0,SUM(I30/F30/1000),0) -> 0 | J31: =IF(J30>0,SUM(J30/H30),0) -> 0 | K31: =IF(H30>0,(H30-I30)/6.25,0) -> 0 | L31: =IF(L30>0,L30/F30,0) -> 0 | M31: =IF(M30>0,M30/D30,0) -> 0 | N31: =IF(N30>0,N30/F30/1000,0) -> 0 | O31: =IF(O30>0,O30/F30/1000,0) -> 0 | P31: =IF(P30>0,P30/F30/1000,0) -> 0 | Q31: =IF(Q30,Q30/F30,0) -> 0 | R31: =IF(R30,R30/F30,0) -> 0 | S31: =IF(S30,S30/F30,0) -> 0 | T31: =IF(T30,T30/F30,0) -> 0 | U31: =IF(U30,U30/F30,0) -> 0 | V31: =IF(V30,V30/F30,0) -> 0 | W31: =IF(W30,W30/F30,0) -> 0 | Z31: =IF(Z30,Z30/F30,0) -> 0 | AA31: =IF(AA30,AA30/F30,0) -> 0 | AB31: =IF(AB30,AB30/F30,0) -> 0 | AC31: =IF(AC30,AC30/F30,0) -> 0 | AD31: =IF(AD30,AD30/F30,0) -> 0 | AE31: =IF(AE30,AE30/F30,0) -> 0 | AF31: =IF(AF30,AF30/F30,0) -> 0
A32: Kennzahlen Gesamtration | F32: SI : | G32: =IF(K32>100,100,K32) -> 0 | K32: =IF(Y25>0,Y25/1000/(Y25/1000+(P32-2.8)/0.36)*100,0) -> 0 | L32: pab KH kg : | P32: =IF(N30,(N30-O30)/1000,0) -> 0 | Q32: =IF(F30>0,SUM(P32/F30),0) -> 0 | T32: DCAB (mEq/kg) : | V32: =IF(F30>0,((43.5*T30)+(25.6*U30)-(28.2*V30)-(62.4*W30))/F30,0) -> 0
A34: Milcherzeugungswert (MEW) in kg: | H34: =IF(Einstellung!D16,SUM(H30-Einstellung!E13)/Einstellung!E16,"TS") -> -5.402298851 | I34: =IF(Einstellung!D16,SUM(I30-Einstellung!E13)/Einstellung!E16,"TS") -> -5.402298851 | L34: =IF(Einstellung!D15,SUM(L30-Einstellung!F13)/Einstellung!F15,"TS") -> -12.09090909 | Q34: =IF(Einstellung!F15,(Q30-(Einstellung!D22*F30))/Einstellung!D23,"TS") -> 0 | R34: =IF(Einstellung!F15,(R30-(Einstellung!E22*F30))/Einstellung!E23,"TS") -> 0 | T34: =IF(Einstellung!F15,(T30-(Einstellung!G22*F30))/Einstellung!G23,"TS") -> 0 | X34: =IF(Einstellung!F15,X30/L34,0) -> 0
A36: Ziel- | B36: =INDEX(Zielwerte!A6:A16,Ration!A2) -> Bitte Gruppe auswählen! | F36: TM | G36: aNDFom | H36: CP | I36: sidP | K36: RNB | L36: NEL MJ | N36: ST+ZU | O36: bST | P36: CL | Q36: Ca | R36: P | S36: Mg | T36: Na | U36: K | X36: DCAB | Z36: Fe | AA36: Cu | AB36: Zn | AC36: Mn | AD36: Co | AE36: J | AF36: Se
A37: Werte: | F37: kg | G37: %/TM | H37: %/kgTM | I37: %/kgTM | K37: g | L37: MJ/kg TM | N37: %/kgTM | O37: %/kgTM | P37: %/kgTM | Q37: g/kg TM | R37: g/kg TM | S37: g/kg TM | T37: g/kg TM | U37: g/kg TM | X37: mEq/kg TM | Z37: mg/kg TM | AA37: mg/kg TM | AB37: mg/kg TM | AC37: mg/kg TM | AD37: mg/kg TM | AE37: mg/kg TM | AF37: mg/kg TM
A38: Die Werte stehen in der Tabelle 'Zielwerte'. Damit können die Ergebnisse der Berechnung bewertet werden. Abweichungen von mehr als +/- 4% sind farblich gekennzeichnet. | E38: min | F38: =IFERROR(VLOOKUP($B$36,Zielwerte!$A$6:$AJ$15,3,0),0) -> 0 | G38: =IFERROR(VLOOKUP($B$36,Zielwerte!$A$6:$AJ$15,7,0),0) -> 0 | H38: =IFERROR(VLOOKUP($B$36,Zielwerte!$A$6:$AJ$15,11,0),0) -> 0 | I38: =IFERROR(VLOOKUP($B$36,Zielwerte!$A$6:$AJ$15,13,0),0) -> 0 | K38: =IFERROR(VLOOKUP($B$36,Zielwerte!$A$6:$AJ$15,15,0),0) -> 0 | L38: =IFERROR(VLOOKUP($B$36,Zielwerte!$A$6:$AJ$15,17,0),0) -> 0 | M38: =IFERROR(VLOOKUP($B$36,Zielwerte!$A$6:$AJ$15,3,0),0) -> 0 | N38: =IFERROR(VLOOKUP($B$36,Zielwerte!$A$6:$AJ$15,19,0),0) -> 0 | O38: =IFERROR(VLOOKUP($B$36,Zielwerte!$A$6:$AJ$15,21,0),0) -> 0 | P38: =IFERROR(VLOOKUP($B$36,Zielwerte!$A$6:$AJ$15,23,0),0) -> 0 | Q38: =IFERROR(VLOOKUP($B$36,Zielwerte!$A$6:$AJ$15,25,0),0) -> 0 | R38: =IFERROR(VLOOKUP($B$36,Zielwerte!$A$6:$AJ$15,27,0),0) -> 0 | S38: =IFERROR(VLOOKUP($B$36,Zielwerte!$A$6:$AJ$15,29,0),0) -> 0 | T38: =IFERROR(VLOOKUP($B$36,Zielwerte!$A$6:$AJ$15,31,0),0) -> 0 | U38: =IFERROR(VLOOKUP($B$36,Zielwerte!$A$6:$AJ$15,33,0),0) -> 0 | X38: =IFERROR(VLOOKUP($B$36,Zielwerte!$A$6:$AJ$15,35,0),0) -> 0 | Z38: =IFERROR(VLOOKUP($B$36,Zielwerte!$A$6:$AX$15,37,0),0) -> 0 | AA38: =IFERROR(VLOOKUP($B$36,Zielwerte!$A$6:$AX$15,39,0),0) -> 0 | AB38: =IFERROR(VLOOKUP($B$36,Zielwerte!$A$6:$AX$15,41,0),0) -> 0 | AC38: =IFERROR(VLOOKUP($B$36,Zielwerte!$A$6:$AX$15,43,0),0) -> 0 | AD38: =IFERROR(VLOOKUP($B$36,Zielwerte!$A$6:$AX$15,45,0),0) -> 0 | AE38: =IFERROR(VLOOKUP($B$36,Zielwerte!$A$6:$AX$15,47,0),0) -> 0 | AF38: =IFERROR(VLOOKUP($B$36,Zielwerte!$A$6:$AX$15,49,0),0) -> 0
E39: max | F39: =IFERROR(VLOOKUP($B$36,Zielwerte!$A$6:$AJ$15,4,0),0) -> 0 | G39: =IFERROR(VLOOKUP($B$36,Zielwerte!$A$6:$AJ$15,8,0),0) -> 0 | H39: =IFERROR(VLOOKUP($B$36,Zielwerte!$A$6:$AJ$15,12,0),0) -> 0 | I39: =IFERROR(VLOOKUP($B$36,Zielwerte!$A$6:$AJ$15,14,0),0) -> 0 | K39: =IFERROR(VLOOKUP($B$36,Zielwerte!$A$6:$AJ$15,16,0),0) -> 0 | L39: =IFERROR(VLOOKUP($B$36,Zielwerte!$A$6:$AJ$15,18,0),0) -> 0 | M39: =IFERROR(VLOOKUP($B$36,Zielwerte!$A$6:$AJ$15,4,0),0) -> 0 | N39: =IFERROR(VLOOKUP($B$36,Zielwerte!$A$6:$AJ$15,20,0),0) -> 0 | O39: =IFERROR(VLOOKUP($B$36,Zielwerte!$A$6:$AJ$15,22,0),0) -> 0 | P39: =IFERROR(VLOOKUP($B$36,Zielwerte!$A$6:$AJ$15,24,0),0) -> 0 | Q39: =IFERROR(VLOOKUP($B$36,Zielwerte!$A$6:$AJ$15,26,0),0) -> 0 | R39: =IFERROR(VLOOKUP($B$36,Zielwerte!$A$6:$AJ$15,28,0),0) -> 0 | S39: =IFERROR(VLOOKUP($B$36,Zielwerte!$A$6:$AJ$15,30,0),0) -> 0 | T39: =IFERROR(VLOOKUP($B$36,Zielwerte!$A$6:$AJ$15,32,0),0) -> 0 | U39: =IFERROR(VLOOKUP($B$36,Zielwerte!$A$6:$AJ$15,34,0),0) -> 0 | X39: =IFERROR(VLOOKUP($B$36,Zielwerte!$A$6:$AJ$15,36,0),0) -> 0 | Z39: =IFERROR(VLOOKUP($B$36,Zielwerte!$A$6:$AX$15,38,0),0) -> 0 | AA39: =IFERROR(VLOOKUP($B$36,Zielwerte!$A$6:$AX$15,40,0),0) -> 0 | AB39: =IFERROR(VLOOKUP($B$36,Zielwerte!$A$6:$AX$15,42,0),0) -> 0 | AC39: =IFERROR(VLOOKUP($B$36,Zielwerte!$A$6:$AX$15,44,0),0) -> 0 | AD39: =IFERROR(VLOOKUP($B$36,Zielwerte!$A$6:$AX$15,46,0),0) -> 0 | AE39: =IFERROR(VLOOKUP($B$36,Zielwerte!$A$6:$AX$15,48,0),0) -> 0 | AF39: =IFERROR(VLOOKUP($B$36,Zielwerte!$A$6:$AX$15,50,0),0) -> 0

Sheet Mischung 1
A2: KF – Berechnung 1 | G2: Nähr- und Mineralstoffgehalte je kg TM | Z2: Spurenelemente mg / kg TM
A3: Nr | B3: Futterart | G3: XF g | H3: aNDFom | I3: CP g | J3: nxP g | K3: UDP g | L3: RNB | M3: NEL MJ | N3: ME MJ | O3: ST+ZU | P3: bST | Q3: CL | R3: Ca | S3: P | T3: Mg | U3: Na | V3: K | W3: Cl | X3: S | Y3: Preis / dt | Z3: Fe | AA3: Cu | AB3: Zn | AC3: Mn | AD3: Co | AE3: J | AF3: Se
B4: =IFERROR(VLOOKUP(A4,'Gruber Tabelle'!$A$6:$W$359,2,0),0) -> 0 | G4: =IFERROR(VLOOKUP(A4,'Gruber Tabelle'!$A$6:$W$359,4,0),0) -> 0 | H4: =IFERROR(VLOOKUP(A4,'Gruber Tabelle'!$A$6:$W$359,5,0),0) -> 0 | I4: =IFERROR(VLOOKUP(A4,'Gruber Tabelle'!$A$6:$W$359,7,0),0) -> 0 | J4: =IFERROR(VLOOKUP(A4,'Gruber Tabelle'!$A$6:$W$359,8,0),0) -> 0 | K4: =IFERROR(VLOOKUP(A4,'Gruber Tabelle'!$A$6:$W$359,9,0)/100,0) -> 0 | L4: =IFERROR(VLOOKUP(A4,'Gruber Tabelle'!$A$6:$W$359,10,0),0) -> 0 | M4: =IFERROR(VLOOKUP(A4,'Gruber Tabelle'!$A$6:$W$359,11,0),0) -> 0 | N4: =IFERROR(VLOOKUP(A4,'Gruber Tabelle'!$A$6:$W$359,12,0),0) -> 0 | O4: =IFERROR(VLOOKUP(A4,'Gruber Tabelle'!$A$6:$W$359,13,0),0) -> 0 | P4: =IFERROR(VLOOKUP(A4,'Gruber Tabelle'!$A$6:$W$359,14,0),0) -> 0 | Q4: =IFERROR(VLOOKUP(A4,'Gruber Tabelle'!$A$6:$W$359,15,0),0) -> 0 | R4: =IFERROR(VLOOKUP(A4,'Gruber Tabelle'!$A$6:$W$359,16,0),0) -> 0 | S4: =IFERROR(VLOOKUP(A4,'Gruber Tabelle'!$A$6:$W$359,17,0),0) -> 0 | T4: =IFERROR(VLOOKUP(A4,'Gruber Tabelle'!$A$6:$W$359,18,0),0) -> 0 | U4: =IFERROR(VLOOKUP(A4,'Gruber Tabelle'!$A$6:$W$359,19,0),0) -> 0 | V4: =IFERROR(VLOOKUP(A4,'Gruber Tabelle'!$A$6:$W$359,20,0),0) -> 0 | W4: =IFERROR(VLOOKUP(A4,'Gruber Tabelle'!$A$6:$W$359,21,0),0) -> 0 | X4: =IFERROR(VLOOKUP(A4,'Gruber Tabelle'!$A$6:$W$359,22,0),0) -> 0 | Y4: =IFERROR(VLOOKUP(A4,'Gruber Tabelle'!$A$6:$W$359,23,0),0) -> 0 | Z4: =IFERROR(VLOOKUP(A4,'Gruber Tabelle'!$A$6:$AE$359,25,0),0) -> 0 | AA4: =IFERROR(VLOOKUP(A4,'Gruber Tabelle'!$A$6:$AE$359,26,0),0) -> 0 | AB4: =IFERROR(VLOOKUP(A4,'Gruber Tabelle'!$A$6:$AE$359,27,0),0) -> 0 | AC4: =IFERROR(VLOOKUP(A4,'Gruber Tabelle'!$A$6:$AE$359,28,0),0) -> 0 | AD4: =IFERROR(VLOOKUP(A4,'Gruber Tabelle'!$A$6:$AE$359,29,0),0) -> 0 | AE4: =IFERROR(VLOOKUP(A4,'Gruber Tabelle'!$A$6:$AE$359,30,0),0) -> 0 | AF4: =IFERROR(VLOOKUP(A4,'Gruber Tabelle'!$A$6:$AE$359,31,0),0) -> 0
B5: =IFERROR(VLOOKUP(A5,'Gruber Tabelle'!$A$6:$W$359,2,0),0) -> 0 | G5: =IFERROR(VLOOKUP(A5,'Gruber Tabelle'!$A$6:$W$359,4,0),0) -> 0 | H5: =IFERROR(VLOOKUP(A5,'Gruber Tabelle'!$A$6:$W$359,5,0),0) -> 0 | I5: =IFERROR(VLOOKUP(A5,'Gruber Tabelle'!$A$6:$W$359,7,0),0) -> 0 | J5: =IFERROR(VLOOKUP(A5,'Gruber Tabelle'!$A$6:$W$359,8,0),0) -> 0 | K5: =IFERROR(VLOOKUP(A5,'Gruber Tabelle'!$A$6:$W$359,9,0)/100,0) -> 0 | L5: =IFERROR(VLOOKUP(A5,'Gruber Tabelle'!$A$6:$W$359,10,0),0) -> 0 | M5: =IFERROR(VLOOKUP(A5,'Gruber Tabelle'!$A$6:$W$359,11,0),0) -> 0 | N5: =IFERROR(VLOOKUP(A5,'Gruber Tabelle'!$A$6:$W$359,12,0),0) -> 0 | O5: =IFERROR(VLOOKUP(A5,'Gruber Tabelle'!$A$6:$W$359,13,0),0) -> 0 | P5: =IFERROR(VLOOKUP(A5,'Gruber Tabelle'!$A$6:$W$359,14,0),0) -> 0 | Q5: =IFERROR(VLOOKUP(A5,'Gruber Tabelle'!$A$6:$W$359,15,0),0) -> 0 | R5: =IFERROR(VLOOKUP(A5,'Gruber Tabelle'!$A$6:$W$359,16,0),0) -> 0 | S5: =IFERROR(VLOOKUP(A5,'Gruber Tabelle'!$A$6:$W$359,17,0),0) -> 0 | T5: =IFERROR(VLOOKUP(A5,'Gruber Tabelle'!$A$6:$W$359,18,0),0) -> 0 | U5: =IFERROR(VLOOKUP(A5,'Gruber Tabelle'!$A$6:$W$359,19,0),0) -> 0 | V5: =IFERROR(VLOOKUP(A5,'Gruber Tabelle'!$A$6:$W$359,20,0),0) -> 0 | W5: =IFERROR(VLOOKUP(A5,'Gruber Tabelle'!$A$6:$W$359,21,0),0) -> 0 | X5: =IFERROR(VLOOKUP(A5,'Gruber Tabelle'!$A$6:$W$359,22,0),0) -> 0 | Y5: =IFERROR(VLOOKUP(A5,'Gruber Tabelle'!$A$6:$W$359,23,0),0) -> 0 | Z5: =IFERROR(VLOOKUP(A5,'Gruber Tabelle'!$A$6:$AE$359,25,0),0) -> 0 | AA5: =IFERROR(VLOOKUP(A5,'Gruber Tabelle'!$A$6:$AE$359,26,0),0) -> 0 | AB5: =IFERROR(VLOOKUP(A5,'Gruber Tabelle'!$A$6:$AE$359,27,0),0) -> 0 | AC5: =IFERROR(VLOOKUP(A5,'Gruber Tabelle'!$A$6:$AE$359,28,0),0) -> 0 | AD5: =IFERROR(VLOOKUP(A5,'Gruber Tabelle'!$A$6:$AE$359,29,0),0) -> 0 | AE5: =IFERROR(VLOOKUP(A5,'Gruber Tabelle'!$A$6:$AE$359,30,0),0) -> 0 | AF5: =IFERROR(VLOOKUP(A5,'Gruber Tabelle'!$A$6:$AE$359,31,0),0) -> 0
B6: =IFERROR(VLOOKUP(A6,'Gruber Tabelle'!$A$6:$W$359,2,0),0) -> 0 | G6: =IFERROR(VLOOKUP(A6,'Gruber Tabelle'!$A$6:$W$359,4,0),0) -> 0 | H6: =IFERROR(VLOOKUP(A6,'Gruber Tabelle'!$A$6:$W$359,5,0),0) -> 0 | I6: =IFERROR(VLOOKUP(A6,'Gruber Tabelle'!$A$6:$W$359,7,0),0) -> 0 | J6: =IFERROR(VLOOKUP(A6,'Gruber Tabelle'!$A$6:$W$359,8,0),0) -> 0 | K6: =IFERROR(VLOOKUP(A6,'Gruber Tabelle'!$A$6:$W$359,9,0)/100,0) -> 0 | L6: =IFERROR(VLOOKUP(A6,'Gruber Tabelle'!$A$6:$W$359,10,0),0) -> 0 | M6: =IFERROR(VLOOKUP(A6,'Gruber Tabelle'!$A$6:$W$359,11,0),0) -> 0 | N6: =IFERROR(VLOOKUP(A6,'Gruber Tabelle'!$A$6:$W$359,12,0),0) -> 0 | O6: =IFERROR(VLOOKUP(A6,'Gruber Tabelle'!$A$6:$W$359,13,0),0) -> 0 | P6: =IFERROR(VLOOKUP(A6,'Gruber Tabelle'!$A$6:$W$359,14,0),0) -> 0 | Q6: =IFERROR(VLOOKUP(A6,'Gruber Tabelle'!$A$6:$W$359,15,0),0) -> 0 | R6: =IFERROR(VLOOKUP(A6,'Gruber Tabelle'!$A$6:$W$359,16,0),0) -> 0 | S6: =IFERROR(VLOOKUP(A6,'Gruber Tabelle'!$A$6:$W$359,17,0),0) -> 0 | T6: =IFERROR(VLOOKUP(A6,'Gruber Tabelle'!$A$6:$W$359,18,0),0) -> 0 | U6: =IFERROR(VLOOKUP(A6,'Gruber Tabelle'!$A$6:$W$359,19,0),0) -> 0 | V6: =IFERROR(VLOOKUP(A6,'Gruber Tabelle'!$A$6:$W$359,20,0),0) -> 0 | W6: =IFERROR(VLOOKUP(A6,'Gruber Tabelle'!$A$6:$W$359,21,0),0) -> 0 | X6: =IFERROR(VLOOKUP(A6,'Gruber Tabelle'!$A$6:$W$359,22,0),0) -> 0 | Y6: =IFERROR(VLOOKUP(A6,'Gruber Tabelle'!$A$6:$W$359,23,0),0) -> 0 | Z6: =IFERROR(VLOOKUP(A6,'Gruber Tabelle'!$A$6:$AE$359,25,0),0) -> 0 | AA6: =IFERROR(VLOOKUP(A6,'Gruber Tabelle'!$A$6:$AE$359,26,0),0) -> 0 | AB6: =IFERROR(VLOOKUP(A6,'Gruber Tabelle'!$A$6:$AE$359,27,0),0) -> 0 | AC6: =IFERROR(VLOOKUP(A6,'Gruber Tabelle'!$A$6:$AE$359,28,0),0) -> 0 | AD6: =IFERROR(VLOOKUP(A6,'Gruber Tabelle'!$A$6:$AE$359,29,0),0) -> 0 | AE6: =IFERROR(VLOOKUP(A6,'Gruber Tabelle'!$A$6:$AE$359,30,0),0) -> 0 | AF6: =IFERROR(VLOOKUP(A6,'Gruber Tabelle'!$A$6:$AE$359,31,0),0) -> 0
B7: =IFERROR(VLOOKUP(A7,'Gruber Tabelle'!$A$6:$W$359,2,0),0) -> 0 | G7: =IFERROR(VLOOKUP(A7,'Gruber Tabelle'!$A$6:$W$359,4,0),0) -> 0 | H7: =IFERROR(VLOOKUP(A7,'Gruber Tabelle'!$A$6:$W$359,5,0),0) -> 0 | I7: =IFERROR(VLOOKUP(A7,'Gruber Tabelle'!$A$6:$W$359,7,0),0) -> 0 | J7: =IFERROR(VLOOKUP(A7,'Gruber Tabelle'!$A$6:$W$359,8,0),0) -> 0 | K7: =IFERROR(VLOOKUP(A7,'Gruber Tabelle'!$A$6:$W$359,9,0)/100,0) -> 0 | L7: =IFERROR(VLOOKUP(A7,'Gruber Tabelle'!$A$6:$W$359,10,0),0) -> 0 | M7: =IFERROR(VLOOKUP(A7,'Gruber Tabelle'!$A$6:$W$359,11,0),0) -> 0 | N7: =IFERROR(VLOOKUP(A7,'Gruber Tabelle'!$A$6:$W$359,12,0),0) -> 0 | O7: =IFERROR(VLOOKUP(A7,'Gruber Tabelle'!$A$6:$W$359,13,0),0) -> 0 | P7: =IFERROR(VLOOKUP(A7,'Gruber Tabelle'!$A$6:$W$359,14,0),0) -> 0 | Q7: =IFERROR(VLOOKUP(A7,'Gruber Tabelle'!$A$6:$W$359,15,0),0) -> 0 | R7: =IFERROR(VLOOKUP(A7,'Gruber Tabelle'!$A$6:$W$359,16,0),0) -> 0 | S7: =IFERROR(VLOOKUP(A7,'Gruber Tabelle'!$A$6:$W$359,17,0),0) -> 0 | T7: =IFERROR(VLOOKUP(A7,'Gruber Tabelle'!$A$6:$W$359,18,0),0) -> 0 | U7: =IFERROR(VLOOKUP(A7,'Gruber Tabelle'!$A$6:$W$359,19,0),0) -> 0 | V7: =IFERROR(VLOOKUP(A7,'Gruber Tabelle'!$A$6:$W$359,20,0),0) -> 0 | W7: =IFERROR(VLOOKUP(A7,'Gruber Tabelle'!$A$6:$W$359,21,0),0) -> 0 | X7: =IFERROR(VLOOKUP(A7,'Gruber Tabelle'!$A$6:$W$359,22,0),0) -> 0 | Y7: =IFERROR(VLOOKUP(A7,'Gruber Tabelle'!$A$6:$W$359,23,0),0) -> 0 | Z7: =IFERROR(VLOOKUP(A7,'Gruber Tabelle'!$A$6:$AE$359,25,0),0) -> 0 | AA7: =IFERROR(VLOOKUP(A7,'Gruber Tabelle'!$A$6:$AE$359,26,0),0) -> 0 | AB7: =IFERROR(VLOOKUP(A7,'Gruber Tabelle'!$A$6:$AE$359,27,0),0) -> 0 | AC7: =IFERROR(VLOOKUP(A7,'Gruber Tabelle'!$A$6:$AE$359,28,0),0) -> 0 | AD7: =IFERROR(VLOOKUP(A7,'Gruber Tabelle'!$A$6:$AE$359,29,0),0) -> 0 | AE7: =IFERROR(VLOOKUP(A7,'Gruber Tabelle'!$A$6:$AE$359,30,0),0) -> 0 | AF7: =IFERROR(VLOOKUP(A7,'Gruber Tabelle'!$A$6:$AE$359,31,0),0) -> 0
B8: =IFERROR(VLOOKUP(A8,'Gruber Tabelle'!$A$6:$W$359,2,0),0) -> 0 | G8: =IFERROR(VLOOKUP(A8,'Gruber Tabelle'!$A$6:$W$359,4,0),0) -> 0 | H8: =IFERROR(VLOOKUP(A8,'Gruber Tabelle'!$A$6:$W$359,5,0),0) -> 0 | I8: =IFERROR(VLOOKUP(A8,'Gruber Tabelle'!$A$6:$W$359,7,0),0) -> 0 | J8: =IFERROR(VLOOKUP(A8,'Gruber Tabelle'!$A$6:$W$359,8,0),0) -> 0 | K8: =IFERROR(VLOOKUP(A8,'Gruber Tabelle'!$A$6:$W$359,9,0)/100,0) -> 0 | L8: =IFERROR(VLOOKUP(A8,'Gruber Tabelle'!$A$6:$W$359,10,0),0) -> 0 | M8: =IFERROR(VLOOKUP(A8,'Gruber Tabelle'!$A$6:$W$359,11,0),0) -> 0 | N8: =IFERROR(VLOOKUP(A8,'Gruber Tabelle'!$A$6:$W$359,12,0),0) -> 0 | O8: =IFERROR(VLOOKUP(A8,'Gruber Tabelle'!$A$6:$W$359,13,0),0) -> 0 | P8: =IFERROR(VLOOKUP(A8,'Gruber Tabelle'!$A$6:$W$359,14,0),0) -> 0 | Q8: =IFERROR(VLOOKUP(A8,'Gruber Tabelle'!$A$6:$W$359,15,0),0) -> 0 | R8: =IFERROR(VLOOKUP(A8,'Gruber Tabelle'!$A$6:$W$359,16,0),0) -> 0 | S8: =IFERROR(VLOOKUP(A8,'Gruber Tabelle'!$A$6:$W$359,17,0),0) -> 0 | T8: =IFERROR(VLOOKUP(A8,'Gruber Tabelle'!$A$6:$W$359,18,0),0) -> 0 | U8: =IFERROR(VLOOKUP(A8,'Gruber Tabelle'!$A$6:$W$359,19,0),0) -> 0 | V8: =IFERROR(VLOOKUP(A8,'Gruber Tabelle'!$A$6:$W$359,20,0),0) -> 0 | W8: =IFERROR(VLOOKUP(A8,'Gruber Tabelle'!$A$6:$W$359,21,0),0) -> 0 | X8: =IFERROR(VLOOKUP(A8,'Gruber Tabelle'!$A$6:$W$359,22,0),0) -> 0 | Y8: =IFERROR(VLOOKUP(A8,'Gruber Tabelle'!$A$6:$W$359,23,0),0) -> 0 | Z8: =IFERROR(VLOOKUP(A8,'Gruber Tabelle'!$A$6:$AE$359,25,0),0) -> 0 | AA8: =IFERROR(VLOOKUP(A8,'Gruber Tabelle'!$A$6:$AE$359,26,0),0) -> 0 | AB8: =IFERROR(VLOOKUP(A8,'Gruber Tabelle'!$A$6:$AE$359,27,0),0) -> 0 | AC8: =IFERROR(VLOOKUP(A8,'Gruber Tabelle'!$A$6:$AE$359,28,0),0) -> 0 | AD8: =IFERROR(VLOOKUP(A8,'Gruber Tabelle'!$A$6:$AE$359,29,0),0) -> 0 | AE8: =IFERROR(VLOOKUP(A8,'Gruber Tabelle'!$A$6:$AE$359,30,0),0) -> 0 | AF8: =IFERROR(VLOOKUP(A8,'Gruber Tabelle'!$A$6:$AE$359,31,0),0) -> 0
B9: =IFERROR(VLOOKUP(A9,'Gruber Tabelle'!$A$6:$W$359,2,0),0) -> 0 | G9: =IFERROR(VLOOKUP(A9,'Gruber Tabelle'!$A$6:$W$359,4,0),0) -> 0 | H9: =IFERROR(VLOOKUP(A9,'Gruber Tabelle'!$A$6:$W$359,5,0),0) -> 0 | I9: =IFERROR(VLOOKUP(A9,'Gruber Tabelle'!$A$6:$W$359,7,0),0) -> 0 | J9: =IFERROR(VLOOKUP(A9,'Gruber Tabelle'!$A$6:$W$359,8,0),0) -> 0 | K9: =IFERROR(VLOOKUP(A9,'Gruber Tabelle'!$A$6:$W$359,9,0)/100,0) -> 0 | L9: =IFERROR(VLOOKUP(A9,'Gruber Tabelle'!$A$6:$W$359,10,0),0) -> 0 | M9: =IFERROR(VLOOKUP(A9,'Gruber Tabelle'!$A$6:$W$359,11,0),0) -> 0 | N9: =IFERROR(VLOOKUP(A9,'Gruber Tabelle'!$A$6:$W$359,12,0),0) -> 0 | O9: =IFERROR(VLOOKUP(A9,'Gruber Tabelle'!$A$6:$W$359,13,0),0) -> 0 | P9: =IFERROR(VLOOKUP(A9,'Gruber Tabelle'!$A$6:$W$359,14,0),0) -> 0 | Q9: =IFERROR(VLOOKUP(A9,'Gruber Tabelle'!$A$6:$W$359,15,0),0) -> 0 | R9: =IFERROR(VLOOKUP(A9,'Gruber Tabelle'!$A$6:$W$359,16,0),0) -> 0 | S9: =IFERROR(VLOOKUP(A9,'Gruber Tabelle'!$A$6:$W$359,17,0),0) -> 0 | T9: =IFERROR(VLOOKUP(A9,'Gruber Tabelle'!$A$6:$W$359,18,0),0) -> 0 | U9: =IFERROR(VLOOKUP(A9,'Gruber Tabelle'!$A$6:$W$359,19,0),0) -> 0 | V9: =IFERROR(VLOOKUP(A9,'Gruber Tabelle'!$A$6:$W$359,20,0),0) -> 0 | W9: =IFERROR(VLOOKUP(A9,'Gruber Tabelle'!$A$6:$W$359,21,0),0) -> 0 | X9: =IFERROR(VLOOKUP(A9,'Gruber Tabelle'!$A$6:$W$359,22,0),0) -> 0 | Y9: =IFERROR(VLOOKUP(A9,'Gruber Tabelle'!$A$6:$W$359,23,0),0) -> 0 | Z9: =IFERROR(VLOOKUP(A9,'Gruber Tabelle'!$A$6:$AE$359,25,0),0) -> 0 | AA9: =IFERROR(VLOOKUP(A9,'Gruber Tabelle'!$A$6:$AE$359,26,0),0) -> 0 | AB9: =IFERROR(VLOOKUP(A9,'Gruber Tabelle'!$A$6:$AE$359,27,0),0) -> 0 | AC9: =IFERROR(VLOOKUP(A9,'Gruber Tabelle'!$A$6:$AE$359,28,0),0) -> 0 | AD9: =IFERROR(VLOOKUP(A9,'Gruber Tabelle'!$A$6:$AE$359,29,0),0) -> 0 | AE9: =IFERROR(VLOOKUP(A9,'Gruber Tabelle'!$A$6:$AE$359,30,0),0) -> 0 | AF9: =IFERROR(VLOOKUP(A9,'Gruber Tabelle'!$A$6:$AE$359,31,0),0) -> 0
B10: =IFERROR(VLOOKUP(A10,'Gruber Tabelle'!$A$6:$W$359,2,0),0) -> 0 | G10: =IFERROR(VLOOKUP(A10,'Gruber Tabelle'!$A$6:$W$359,4,0),0) -> 0 | H10: =IFERROR(VLOOKUP(A10,'Gruber Tabelle'!$A$6:$W$359,5,0),0) -> 0 | I10: =IFERROR(VLOOKUP(A10,'Gruber Tabelle'!$A$6:$W$359,7,0),0) -> 0 | J10: =IFERROR(VLOOKUP(A10,'Gruber Tabelle'!$A$6:$W$359,8,0),0) -> 0 | K10: =IFERROR(VLOOKUP(A10,'Gruber Tabelle'!$A$6:$W$359,9,0)/100,0) -> 0 | L10: =IFERROR(VLOOKUP(A10,'Gruber Tabelle'!$A$6:$W$359,10,0),0) -> 0 | M10: =IFERROR(VLOOKUP(A10,'Gruber Tabelle'!$A$6:$W$359,11,0),0) -> 0 | N10: =IFERROR(VLOOKUP(A10,'Gruber Tabelle'!$A$6:$W$359,12,0),0) -> 0 | O10: =IFERROR(VLOOKUP(A10,'Gruber Tabelle'!$A$6:$W$359,13,0),0) -> 0 | P10: =IFERROR(VLOOKUP(A10,'Gruber Tabelle'!$A$6:$W$359,14,0),0) -> 0 | Q10: =IFERROR(VLOOKUP(A10,'Gruber Tabelle'!$A$6:$W$359,15,0),0) -> 0 | R10: =IFERROR(VLOOKUP(A10,'Gruber Tabelle'!$A$6:$W$359,16,0),0) -> 0 | S10: =IFERROR(VLOOKUP(A10,'Gruber Tabelle'!$A$6:$W$359,17,0),0) -> 0 | T10: =IFERROR(VLOOKUP(A10,'Gruber Tabelle'!$A$6:$W$359,18,0),0) -> 0 | U10: =IFERROR(VLOOKUP(A10,'Gruber Tabelle'!$A$6:$W$359,19,0),0) -> 0 | V10: =IFERROR(VLOOKUP(A10,'Gruber Tabelle'!$A$6:$W$359,20,0),0) -> 0 | W10: =IFERROR(VLOOKUP(A10,'Gruber Tabelle'!$A$6:$W$359,21,0),0) -> 0 | X10: =IFERROR(VLOOKUP(A10,'Gruber Tabelle'!$A$6:$W$359,22,0),0) -> 0 | Y10: =IFERROR(VLOOKUP(A10,'Gruber Tabelle'!$A$6:$W$359,23,0),0) -> 0 | Z10: =IFERROR(VLOOKUP(A10,'Gruber Tabelle'!$A$6:$AE$359,25,0),0) -> 0 | AA10: =IFERROR(VLOOKUP(A10,'Gruber Tabelle'!$A$6:$AE$359,26,0),0) -> 0 | AB10: =IFERROR(VLOOKUP(A10,'Gruber Tabelle'!$A$6:$AE$359,27,0),0) -> 0 | AC10: =IFERROR(VLOOKUP(A10,'Gruber Tabelle'!$A$6:$AE$359,28,0),0) -> 0 | AD10: =IFERROR(VLOOKUP(A10,'Gruber Tabelle'!$A$6:$AE$359,29,0),0) -> 0 | AE10: =IFERROR(VLOOKUP(A10,'Gruber Tabelle'!$A$6:$AE$359,30,0),0) -> 0 | AF10: =IFERROR(VLOOKUP(A10,'Gruber Tabelle'!$A$6:$AE$359,31,0),0) -> 0
B11: =IFERROR(VLOOKUP(A11,'Gruber Tabelle'!$A$6:$W$359,2,0),0) -> 0 | G11: =IFERROR(VLOOKUP(A11,'Gruber Tabelle'!$A$6:$W$359,4,0),0) -> 0 | H11: =IFERROR(VLOOKUP(A11,'Gruber Tabelle'!$A$6:$W$359,5,0),0) -> 0 | I11: =IFERROR(VLOOKUP(A11,'Gruber Tabelle'!$A$6:$W$359,7,0),0) -> 0 | J11: =IFERROR(VLOOKUP(A11,'Gruber Tabelle'!$A$6:$W$359,8,0),0) -> 0 | K11: =IFERROR(VLOOKUP(A11,'Gruber Tabelle'!$A$6:$W$359,9,0)/100,0) -> 0 | L11: =IFERROR(VLOOKUP(A11,'Gruber Tabelle'!$A$6:$W$359,10,0),0) -> 0 | M11: =IFERROR(VLOOKUP(A11,'Gruber Tabelle'!$A$6:$W$359,11,0),0) -> 0 | N11: =IFERROR(VLOOKUP(A11,'Gruber Tabelle'!$A$6:$W$359,12,0),0) -> 0 | O11: =IFERROR(VLOOKUP(A11,'Gruber Tabelle'!$A$6:$W$359,13,0),0) -> 0 | P11: =IFERROR(VLOOKUP(A11,'Gruber Tabelle'!$A$6:$W$359,14,0),0) -> 0 | Q11: =IFERROR(VLOOKUP(A11,'Gruber Tabelle'!$A$6:$W$359,15,0),0) -> 0 | R11: =IFERROR(VLOOKUP(A11,'Gruber Tabelle'!$A$6:$W$359,16,0),0) -> 0 | S11: =IFERROR(VLOOKUP(A11,'Gruber Tabelle'!$A$6:$W$359,17,0),0) -> 0 | T11: =IFERROR(VLOOKUP(A11,'Gruber Tabelle'!$A$6:$W$359,18,0),0) -> 0 | U11: =IFERROR(VLOOKUP(A11,'Gruber Tabelle'!$A$6:$W$359,19,0),0) -> 0 | V11: =IFERROR(VLOOKUP(A11,'Gruber Tabelle'!$A$6:$W$359,20,0),0) -> 0 | W11: =IFERROR(VLOOKUP(A11,'Gruber Tabelle'!$A$6:$W$359,21,0),0) -> 0 | X11: =IFERROR(VLOOKUP(A11,'Gruber Tabelle'!$A$6:$W$359,22,0),0) -> 0 | Y11: =IFERROR(VLOOKUP(A11,'Gruber Tabelle'!$A$6:$W$359,23,0),0) -> 0 | Z11: =IFERROR(VLOOKUP(A11,'Gruber Tabelle'!$A$6:$AE$359,25,0),0) -> 0 | AA11: =IFERROR(VLOOKUP(A11,'Gruber Tabelle'!$A$6:$AE$359,26,0),0) -> 0 | AB11: =IFERROR(VLOOKUP(A11,'Gruber Tabelle'!$A$6:$AE$359,27,0),0) -> 0 | AC11: =IFERROR(VLOOKUP(A11,'Gruber Tabelle'!$A$6:$AE$359,28,0),0) -> 0 | AD11: =IFERROR(VLOOKUP(A11,'Gruber Tabelle'!$A$6:$AE$359,29,0),0) -> 0 | AE11: =IFERROR(VLOOKUP(A11,'Gruber Tabelle'!$A$6:$AE$359,30,0),0) -> 0 | AF11: =IFERROR(VLOOKUP(A11,'Gruber Tabelle'!$A$6:$AE$359,31,0),0) -> 0
B12: =IFERROR(VLOOKUP(A12,'Gruber Tabelle'!$A$6:$W$359,2,0),0) -> 0 | G12: =IFERROR(VLOOKUP(A12,'Gruber Tabelle'!$A$6:$W$359,4,0),0) -> 0 | H12: =IFERROR(VLOOKUP(A12,'Gruber Tabelle'!$A$6:$W$359,5,0),0) -> 0 | I12: =IFERROR(VLOOKUP(A12,'Gruber Tabelle'!$A$6:$W$359,7,0),0) -> 0 | J12: =IFERROR(VLOOKUP(A12,'Gruber Tabelle'!$A$6:$W$359,8,0),0) -> 0 | K12: =IFERROR(VLOOKUP(A12,'Gruber Tabelle'!$A$6:$W$359,9,0)/100,0) -> 0 | L12: =IFERROR(VLOOKUP(A12,'Gruber Tabelle'!$A$6:$W$359,10,0),0) -> 0 | M12: =IFERROR(VLOOKUP(A12,'Gruber Tabelle'!$A$6:$W$359,11,0),0) -> 0 | N12: =IFERROR(VLOOKUP(A12,'Gruber Tabelle'!$A$6:$W$359,12,0),0) -> 0 | O12: =IFERROR(VLOOKUP(A12,'Gruber Tabelle'!$A$6:$W$359,13,0),0) -> 0 | P12: =IFERROR(VLOOKUP(A12,'Gruber Tabelle'!$A$6:$W$359,14,0),0) -> 0 | Q12: =IFERROR(VLOOKUP(A12,'Gruber Tabelle'!$A$6:$W$359,15,0),0) -> 0 | R12: =IFERROR(VLOOKUP(A12,'Gruber Tabelle'!$A$6:$W$359,16,0),0) -> 0 | S12: =IFERROR(VLOOKUP(A12,'Gruber Tabelle'!$A$6:$W$359,17,0),0) -> 0 | T12: =IFERROR(VLOOKUP(A12,'Gruber Tabelle'!$A$6:$W$359,18,0),0) -> 0 | U12: =IFERROR(VLOOKUP(A12,'Gruber Tabelle'!$A$6:$W$359,19,0),0) -> 0 | V12: =IFERROR(VLOOKUP(A12,'Gruber Tabelle'!$A$6:$W$359,20,0),0) -> 0 | W12: =IFERROR(VLOOKUP(A12,'Gruber Tabelle'!$A$6:$W$359,21,0),0) -> 0 | X12: =IFERROR(VLOOKUP(A12,'Gruber Tabelle'!$A$6:$W$359,22,0),0) -> 0 | Y12: =IFERROR(VLOOKUP(A12,'Gruber Tabelle'!$A$6:$W$359,23,0),0) -> 0 | Z12: =IFERROR(VLOOKUP(A12,'Gruber Tabelle'!$A$6:$AE$359,25,0),0) -> 0 | AA12: =IFERROR(VLOOKUP(A12,'Gruber Tabelle'!$A$6:$AE$359,26,0),0) -> 0 | AB12: =IFERROR(VLOOKUP(A12,'Gruber Tabelle'!$A$6:$AE$359,27,0),0) -> 0 | AC12: =IFERROR(VLOOKUP(A12,'Gruber Tabelle'!$A$6:$AE$359,28,0),0) -> 0 | AD12: =IFERROR(VLOOKUP(A12,'Gruber Tabelle'!$A$6:$AE$359,29,0),0) -> 0 | AE12: =IFERROR(VLOOKUP(A12,'Gruber Tabelle'!$A$6:$AE$359,30,0),0) -> 0 | AF12: =IFERROR(VLOOKUP(A12,'Gruber Tabelle'!$A$6:$AE$359,31,0),0) -> 0
B13: =IFERROR(VLOOKUP(A13,'Gruber Tabelle'!$A$6:$W$359,2,0),0) -> 0 | G13: =IFERROR(VLOOKUP(A13,'Gruber Tabelle'!$A$6:$W$359,4,0),0) -> 0 | H13: =IFERROR(VLOOKUP(A13,'Gruber Tabelle'!$A$6:$W$359,5,0),0) -> 0 | I13: =IFERROR(VLOOKUP(A13,'Gruber Tabelle'!$A$6:$W$359,7,0),0) -> 0 | J13: =IFERROR(VLOOKUP(A13,'Gruber Tabelle'!$A$6:$W$359,8,0),0) -> 0 | K13: =IFERROR(VLOOKUP(A13,'Gruber Tabelle'!$A$6:$W$359,9,0)/100,0) -> 0 | L13: =IFERROR(VLOOKUP(A13,'Gruber Tabelle'!$A$6:$W$359,10,0),0) -> 0 | M13: =IFERROR(VLOOKUP(A13,'Gruber Tabelle'!$A$6:$W$359,11,0),0) -> 0 | N13: =IFERROR(VLOOKUP(A13,'Gruber Tabelle'!$A$6:$W$359,12,0),0) -> 0 | O13: =IFERROR(VLOOKUP(A13,'Gruber Tabelle'!$A$6:$W$359,13,0),0) -> 0 | P13: =IFERROR(VLOOKUP(A13,'Gruber Tabelle'!$A$6:$W$359,14,0),0) -> 0 | Q13: =IFERROR(VLOOKUP(A13,'Gruber Tabelle'!$A$6:$W$359,15,0),0) -> 0 | R13: =IFERROR(VLOOKUP(A13,'Gruber Tabelle'!$A$6:$W$359,16,0),0) -> 0 | S13: =IFERROR(VLOOKUP(A13,'Gruber Tabelle'!$A$6:$W$359,17,0),0) -> 0 | T13: =IFERROR(VLOOKUP(A13,'Gruber Tabelle'!$A$6:$W$359,18,0),0) -> 0 | U13: =IFERROR(VLOOKUP(A13,'Gruber Tabelle'!$A$6:$W$359,19,0),0) -> 0 | V13: =IFERROR(VLOOKUP(A13,'Gruber Tabelle'!$A$6:$W$359,20,0),0) -> 0 | W13: =IFERROR(VLOOKUP(A13,'Gruber Tabelle'!$A$6:$W$359,21,0),0) -> 0 | X13: =IFERROR(VLOOKUP(A13,'Gruber Tabelle'!$A$6:$W$359,22,0),0) -> 0 | Y13: =IFERROR(VLOOKUP(A13,'Gruber Tabelle'!$A$6:$W$359,23,0),0) -> 0 | Z13: =IFERROR(VLOOKUP(A13,'Gruber Tabelle'!$A$6:$AE$359,25,0),0) -> 0 | AA13: =IFERROR(VLOOKUP(A13,'Gruber Tabelle'!$A$6:$AE$359,26,0),0) -> 0 | AB13: =IFERROR(VLOOKUP(A13,'Gruber Tabelle'!$A$6:$AE$359,27,0),0) -> 0 | AC13: =IFERROR(VLOOKUP(A13,'Gruber Tabelle'!$A$6:$AE$359,28,0),0) -> 0 | AD13: =IFERROR(VLOOKUP(A13,'Gruber Tabelle'!$A$6:$AE$359,29,0),0) -> 0 | AE13: =IFERROR(VLOOKUP(A13,'Gruber Tabelle'!$A$6:$AE$359,30,0),0) -> 0 | AF13: =IFERROR(VLOOKUP(A13,'Gruber Tabelle'!$A$6:$AE$359,31,0),0) -> 0
A14: Nr | B14: Futterart | C14: Anteil in % | D14: TM % | E14: TM kg | F14: FM kg | G14: XF g | H14: aNDFom | I14: CP g | J14: nxP g | K14: UDP g | L14: RNB | M14: NEL MJ | N14: ME MJ | O14: ST+ZU | P14: bST | Q14: CL | R14: Ca | S14: P | T14: Mg | U14: Na | V14: K | W14: Cl | X14: S | Y14: Preis | Z14: Fe | AA14: Cu | AB14: Zn | AC14: Mn | AD14: Co | AE14: J | AF14: Se
A15: =A4 -> 0 | B15: =B4 -> 0 | D15: =IFERROR(VLOOKUP(A4,'Gruber Tabelle'!$A$6:$W$359,3,0)/1000,0) -> 0 | E15: =IF(F15>0,F15*D15,0) -> 0 | F15: =IF(C15>0,(1*C15),0) -> 0 | G15: =IF(G4>0,(G4*C15)*D15,0) -> 0 | H15: =IF(H4>0,(H4*C15)*D15,0) -> 0 | I15: =IF(I4>0,(I4*C15)*D15,0) -> 0 | J15: =IF(J4>0,(J4*C15)*D15,0) -> 0 | K15: =IF(K4>0,(I4*K4)*E15,0) -> 0 | L15: =IFERROR(SUM((I15-J15)/6.25),0) -> 0 | M15: =IF(M4>0,(M4*C15)*D15,0) -> 0 | N15: =IF(N4>0,(N4*C15)*D15,0) -> 0 | O15: =IF(O4>0,(O4*C15)*D15,0) -> 0 | P15: =IF(P4>0,(P4*C15)*D15,0) -> 0 | Q15: =IF(Q4>0,(Q4*C15)*D15,0) -> 0 | R15: =IF(R4>0,(R4*C15)*D15,0) -> 0 | S15: =IF(S4>0,(S4*C15)*D15,0) -> 0 | T15: =IF(T4>0,(T4*C15)*D15,0) -> 0 | U15: =IF(U4>0,(U4*C15)*D15,0) -> 0 | V15: =IF(V4>0,(V4*C15)*D15,0) -> 0 | W15: =IF(W4>0,(W4*C15)*D15,0) -> 0 | X15: =IF(X4>0,(X4*C15)*D15,0) -> 0 | Y15: =IF(C15>0,Y4*F15/100,0) -> 0 | Z15: =IF(Z4>0,(Z4*C15)*D15,0) -> 0 | AA15: =IF(AA4>0,(AA4*C15)*D15,0) -> 0 | AB15: =IF(AB4>0,(AB4*C15)*D15,0) -> 0 | AC15: =IF(AC4>0,(AC4*C15)*D15,0) -> 0 | AD15: =IF(AD4>0,(AD4*C15)*D15,0) -> 0 | AE15: =IF(AE4>0,(AE4*C15)*D15,0) -> 0 | AF15: =IF(AF4>0,(AF4*C15)*D15,0) -> 0
A16: =A5 -> 0 | B16: 0 | D16: =IFERROR(VLOOKUP(A5,'Gruber Tabelle'!$A$6:$W$359,3,0)/1000,0) -> 0 | E16: =IF(F16>0,F16*D16,0) -> 0 | F16: =IF(C16>0,(1*C16),0) -> 0 | G16: =IF(G5>0,(G5*C16)*D16,0) -> 0 | H16: =IF(H5>0,(H5*C16)*D16,0) -> 0 | I16: =IF(I5>0,(I5*C16)*D16,0) -> 0 | J16: =IF(J5>0,(J5*C16)*D16,0) -> 0 | K16: =IF(K5>0,(I5*K5)*E16,0) -> 0 | L16: 0 | M16: =IF(M5>0,(M5*C16)*D16,0) -> 0 | N16: =IF(N5>0,(N5*C16)*D16,0) -> 0 | O16: =IF(O5>0,(O5*C16)*D16,0) -> 0 | P16: =IF(P5>0,(P5*C16)*D16,0) -> 0 | Q16: =IF(Q5>0,(Q5*C16)*D16,0) -> 0 | R16: =IF(R5>0,(R5*C16)*D16,0) -> 0 | S16: =IF(S5>0,(S5*C16)*D16,0) -> 0 | T16: =IF(T5>0,(T5*C16)*D16,0) -> 0 | U16: =IF(U5>0,(U5*C16)*D16,0) -> 0 | V16: =IF(V5>0,(V5*C16)*D16,0) -> 0 | W16: =IF(W5>0,(W5*C16)*D16,0) -> 0 | X16: =IF(X5>0,(X5*C16)*D16,0) -> 0 | Y16: 0 | Z16: =IF(Z5>0,(Z5*C16)*D16,0) -> 0 | AA16: =IF(AA5>0,(AA5*C16)*D16,0) -> 0 | AB16: =IF(AB5>0,(AB5*C16)*D16,0) -> 0 | AC16: =IF(AC5>0,(AC5*C16)*D16,0) -> 0 | AD16: =IF(AD5>0,(AD5*C16)*D16,0) -> 0 | AE16: =IF(AE5>0,(AE5*C16)*D16,0) -> 0 | AF16: =IF(AF5>0,(AF5*C16)*D16,0) -> 0
A17: 0 | B17: 0 | D17: =IFERROR(VLOOKUP(A6,'Gruber Tabelle'!$A$6:$W$359,3,0)/1000,0) -> 0 | E17: 0 | F17: 0 | G17: 0 | H17: 0 | I17: 0 | J17: 0 | K17: 0 | L17: 0 | M17: 0 | N17: 0 | O17: 0 | P17: 0 | Q17: 0 | R17: 0 | S17: 0 | T17: 0 | U17: 0 | V17: 0 | W17: 0 | X17: 0 | Y17: 0 | Z17: 0 | AA17: 0 | AB17: 0 | AC17: 0 | AD17: 0 | AE17: 0 | AF17: 0
A18: 0 | B18: 0 | D18: =IFERROR(VLOOKUP(A7,'Gruber Tabelle'!$A$6:$W$359,3,0)/1000,0) -> 0 | E18: 0 | F18: 0 | G18: 0 | H18: 0 | I18: 0 | J18: 0 | K18: 0 | L18: 0 | M18: 0 | N18: 0 | O18: 0 | P18: 0 | Q18: 0 | R18: 0 | S18: 0 | T18: 0 | U18: 0 | V18: 0 | W18: 0 | X18: 0 | Y18: 0 | Z18: 0 | AA18: 0 | AB18: 0 | AC18: 0 | AD18: 0 | AE18: 0 | AF18: 0
A19: 0 | B19: 0 | D19: =IFERROR(VLOOKUP(A8,'Gruber Tabelle'!$A$6:$W$359,3,0)/1000,0) -> 0 | E19: 0 | F19: 0 | G19: 0 | H19: 0 | I19: 0 | J19: 0 | K19: 0 | L19: 0 | M19: 0 | N19: 0 | O19: 0 | P19: 0 | Q19: 0 | R19: 0 | S19: 0 | T19: 0 | U19: 0 | V19: 0 | W19: 0 | X19: 0 | Y19: 0 | Z19: 0 | AA19: 0 | AB19: 0 | AC19: 0 | AD19: 0 | AE19: 0 | AF19: 0
A20: 0 | B20: 0 | D20: =IFERROR(VLOOKUP(A9,'Gruber Tabelle'!$A$6:$W$359,3,0)/1000,0) -> 0 | E20: 0 | F20: 0 | G20: 0 | H20: 0 | I20: 0 | J20: 0 | K20: 0 | L20: 0 | M20: 0 | N20: 0 | O20: 0 | P20: 0 | Q20: 0 | R20: 0 | S20: 0 | T20: 0 | U20: 0 | V20: 0 | W20: 0 | X20: 0 | Y20: 0 | Z20: 0 | AA20: 0 | AB20: 0 | AC20: 0 | AD20: 0 | AE20: 0 | AF20: 0
A21: 0 | B21: 0 | D21: =IFERROR(VLOOKUP(A10,'Gruber Tabelle'!$A$6:$W$359,3,0)/1000,0) -> 0 | E21: 0 | F21: 0 | G21: 0 | H21: 0 | I21: 0 | J21: 0 | K21: 0 | L21: 0 | M21: 0 | N21: 0 | O21: 0 | P21: 0 | Q21: 0 | R21: 0 | S21: 0 | T21: 0 | U21: 0 | V21: 0 | W21: 0 | X21: 0 | Y21: 0 | Z21: 0 | AA21: 0 | AB21: 0 | AC21: 0 | AD21: 0 | AE21: 0 | AF21: 0
A22: 0 | B22: 0 | D22: =IFERROR(VLOOKUP(A11,'Gruber Tabelle'!$A$6:$W$359,3,0)/1000,0) -> 0 | E22: 0 | F22: 0 | G22: 0 | H22: 0 | I22: 0 | J22: 0 | K22: 0 | L22: 0 | M22: 0 | N22: 0 | O22: 0 | P22: 0 | Q22: 0 | R22: 0 | S22: 0 | T22: 0 | U22: 0 | V22: 0 | W22: 0 | X22: 0 | Y22: 0 | Z22: 0 | AA22: 0 | AB22: 0 | AC22: 0 | AD22: 0 | AE22: 0 | AF22: 0
A23: 0 | B23: 0 | D23: =IFERROR(VLOOKUP(A12,'Gruber Tabelle'!$A$6:$W$359,3,0)/1000,0) -> 0 | E23: 0 | F23: 0 | G23: 0 | H23: 0 | I23: 0 | J23: 0 | K23: 0 | L23: 0 | M23: 0 | N23: 0 | O23: 0 | P23: 0 | Q23: 0 | R23: 0 | S23: 0 | T23: 0 | U23: 0 | V23: 0 | W23: 0 | X23: 0 | Y23: 0 | Z23: 0 | AA23: 0 | AB23: 0 | AC23: 0 | AD23: 0 | AE23: 0 | AF23: 0
A24: 0 | B24: 0 | D24: =IFERROR(VLOOKUP(A13,'Gruber Tabelle'!$A$6:$W$359,3,0)/1000,0) -> 0 | E24: 0 | F24: 0 | G24: 0 | H24: 0 | I24: 0 | J24: 0 | K24: 0 | L24: 0 | M24: 0 | N24: 0 | O24: 0 | P24: 0 | Q24: 0 | R24: 0 | S24: 0 | T24: 0 | U24: 0 | V24: 0 | W24: 0 | X24: 0 | Y24: 0 | Z24: 0 | AA24: 0 | AB24: 0 | AC24: 0 | AD24: 0 | AE24: 0 | AF24: 0
B25: Summe je kg FM : | C25: =SUM(C15:C24) -> 0 | E25: =SUM(E15:E24) -> 0 | F25: =SUM(F15:F24) -> 0 | G25: 0 | H25: 0 | I25: 0 | J25: 0 | K25: 0 | L25: =SUM(L15:L24) -> 0 | M25: 0 | N25: 0 | O25: 0 | P25: 0 | Q25: 0 | R25: 0 | S25: 0 | T25: 0 | U25: 0 | V25: 0 | W25: 0 | X25: 0 | Y25: 0 | Z25: =SUM(Z15:Z24) -> 0 | AA25: =SUM(AA15:AA24) -> 0 | AB25: 0 | AC25: 0 | AD25: 0 | AE25: 0 | AF25: =SUM(AF15:AF24) -> 0
A26: Milcherzeugungswerte / Kennzahlen | H26: =IF(C25=100%,H25/1000,0) -> 0 | I26: =IFERROR(I25/Einstellung!E16,0) -> 0 | J26: =IFERROR(J25/Einstellung!E16,0) -> 0 | K26: =IF(K25>0,K25/I25,0) -> 0 | L26: =SUM(I25-J25)/6.25 -> 0 | M26: =IFERROR(M25/Einstellung!F15,0) -> 0 | N26: Mengenelem. f. kg Milch : | R26: =IF(R25>0,(R25/Einstellung!D23),0) -> 0 | S26: =IF(S25>0,(S25/Einstellung!E23),0) -> 0 | T26: =IF(T25>0,(T25/Einstellung!F23),0) -> 0 | U26: =IF(U25>0,(U25/Einstellung!G23),0) -> 0 | Y26: =IFERROR(Y25/M26,0) -> 0

Sheet Mischung 2
A2: KF – Berechnung 2 | G2: Nähr- und Mineralstoffgehalte je kg TM | Z2: Spurenelemente mg / kg TM
A3: Nr | B3: Futterart | G3: XF g | H3: aNDFom | I3: CP g | J3: nxP g | K3: UDP g | L3: RNB | M3: Nel MJ | N3: ME MJ | O3: ST+ZU | P3: bST | Q3: CL | R3: Ca | S3: P | T3: Mg | U3: Na | V3: K | W3: Cl | X3: S | Y3: Preis / dt | Z3: Fe | AA3: Cu | AB3: Zn | AC3: Mn | AD3: Co | AE3: J | AF3: Se
B4: =IFERROR(VLOOKUP(A4,'Gruber Tabelle'!$A$6:$W$359,2,0),0) -> 0 | G4: =IFERROR(VLOOKUP(A4,'Gruber Tabelle'!$A$6:$W$359,4,0),0) -> 0 | H4: =IFERROR(VLOOKUP(A4,'Gruber Tabelle'!$A$6:$W$359,5,0),0) -> 0 | I4: =IFERROR(VLOOKUP(A4,'Gruber Tabelle'!$A$6:$W$359,7,0),0) -> 0 | J4: =IFERROR(VLOOKUP(A4,'Gruber Tabelle'!$A$6:$W$359,8,0),0) -> 0 | K4: =IFERROR(VLOOKUP(A4,'Gruber Tabelle'!$A$6:$W$359,9,0)/100,0) -> 0 | L4: =IFERROR(VLOOKUP(A4,'Gruber Tabelle'!$A$6:$W$359,10,0),0) -> 0 | M4: =IFERROR(VLOOKUP(A4,'Gruber Tabelle'!$A$6:$W$359,11,0),0) -> 0 | N4: =IFERROR(VLOOKUP(A4,'Gruber Tabelle'!$A$6:$W$359,12,0),0) -> 0 | O4: =IFERROR(VLOOKUP(A4,'Gruber Tabelle'!$A$6:$W$359,13,0),0) -> 0 | P4: =IFERROR(VLOOKUP(A4,'Gruber Tabelle'!$A$6:$W$359,14,0),0) -> 0 | Q4: =IFERROR(VLOOKUP(A4,'Gruber Tabelle'!$A$6:$W$359,15,0),0) -> 0 | R4: =IFERROR(VLOOKUP(A4,'Gruber Tabelle'!$A$6:$W$359,16,0),0) -> 0 | S4: =IFERROR(VLOOKUP(A4,'Gruber Tabelle'!$A$6:$W$359,17,0),0) -> 0 | T4: =IFERROR(VLOOKUP(A4,'Gruber Tabelle'!$A$6:$W$359,18,0),0) -> 0 | U4: =IFERROR(VLOOKUP(A4,'Gruber Tabelle'!$A$6:$W$359,19,0),0) -> 0 | V4: =IFERROR(VLOOKUP(A4,'Gruber Tabelle'!$A$6:$W$359,20,0),0) -> 0 | W4: =IFERROR(VLOOKUP(A4,'Gruber Tabelle'!$A$6:$W$359,21,0),0) -> 0 | X4: =IFERROR(VLOOKUP(A4,'Gruber Tabelle'!$A$6:$W$359,22,0),0) -> 0 | Y4: =IFERROR(VLOOKUP(A4,'Gruber Tabelle'!$A$6:$W$359,23,0),0) -> 0 | Z4: =IFERROR(VLOOKUP(A4,'Gruber Tabelle'!$A$6:$AE$359,25,0),0) -> 0 | AA4: =IFERROR(VLOOKUP(A4,'Gruber Tabelle'!$A$6:$AE$359,26,0),0) -> 0 | AB4: =IFERROR(VLOOKUP(A4,'Gruber Tabelle'!$A$6:$AE$359,27,0),0) -> 0 | AC4: =IFERROR(VLOOKUP(A4,'Gruber Tabelle'!$A$6:$AE$359,28,0),0) -> 0 | AD4: =IFERROR(VLOOKUP(A4,'Gruber Tabelle'!$A$6:$AE$359,29,0),0) -> 0 | AE4: =IFERROR(VLOOKUP(A4,'Gruber Tabelle'!$A$6:$AE$359,30,0),0) -> 0 | AF4: =IFERROR(VLOOKUP(A4,'Gruber Tabelle'!$A$6:$AE$359,31,0),0) -> 0
B5: =IFERROR(VLOOKUP(A5,'Gruber Tabelle'!$A$6:$W$359,2,0),0) -> 0 | G5: =IFERROR(VLOOKUP(A5,'Gruber Tabelle'!$A$6:$W$359,4,0),0) -> 0 | H5: =IFERROR(VLOOKUP(A5,'Gruber Tabelle'!$A$6:$W$359,5,0),0) -> 0 | I5: =IFERROR(VLOOKUP(A5,'Gruber Tabelle'!$A$6:$W$359,7,0),0) -> 0 | J5: =IFERROR(VLOOKUP(A5,'Gruber Tabelle'!$A$6:$W$359,8,0),0) -> 0 | K5: =IFERROR(VLOOKUP(A5,'Gruber Tabelle'!$A$6:$W$359,9,0)/100,0) -> 0 | L5: =IFERROR(VLOOKUP(A5,'Gruber Tabelle'!$A$6:$W$359,10,0),0) -> 0 | M5: =IFERROR(VLOOKUP(A5,'Gruber Tabelle'!$A$6:$W$359,11,0),0) -> 0 | N5: =IFERROR(VLOOKUP(A5,'Gruber Tabelle'!$A$6:$W$359,12,0),0) -> 0 | O5: =IFERROR(VLOOKUP(A5,'Gruber Tabelle'!$A$6:$W$359,13,0),0) -> 0 | P5: =IFERROR(VLOOKUP(A5,'Gruber Tabelle'!$A$6:$W$359,14,0),0) -> 0 | Q5: =IFERROR(VLOOKUP(A5,'Gruber Tabelle'!$A$6:$W$359,15,0),0) -> 0 | R5: =IFERROR(VLOOKUP(A5,'Gruber Tabelle'!$A$6:$W$359,16,0),0) -> 0 | S5: =IFERROR(VLOOKUP(A5,'Gruber Tabelle'!$A$6:$W$359,17,0),0) -> 0 | T5: =IFERROR(VLOOKUP(A5,'Gruber Tabelle'!$A$6:$W$359,18,0),0) -> 0 | U5: =IFERROR(VLOOKUP(A5,'Gruber Tabelle'!$A$6:$W$359,19,0),0) -> 0 | V5: =IFERROR(VLOOKUP(A5,'Gruber Tabelle'!$A$6:$W$359,20,0),0) -> 0 | W5: =IFERROR(VLOOKUP(A5,'Gruber Tabelle'!$A$6:$W$359,21,0),0) -> 0 | X5: =IFERROR(VLOOKUP(A5,'Gruber Tabelle'!$A$6:$W$359,22,0),0) -> 0 | Y5: =IFERROR(VLOOKUP(A5,'Gruber Tabelle'!$A$6:$W$359,23,0),0) -> 0 | Z5: =IFERROR(VLOOKUP(A5,'Gruber Tabelle'!$A$6:$AE$359,25,0),0) -> 0 | AA5: =IFERROR(VLOOKUP(A5,'Gruber Tabelle'!$A$6:$AE$359,26,0),0) -> 0 | AB5: =IFERROR(VLOOKUP(A5,'Gruber Tabelle'!$A$6:$AE$359,27,0),0) -> 0 | AC5: =IFERROR(VLOOKUP(A5,'Gruber Tabelle'!$A$6:$AE$359,28,0),0) -> 0 | AD5: =IFERROR(VLOOKUP(A5,'Gruber Tabelle'!$A$6:$AE$359,29,0),0) -> 0 | AE5: =IFERROR(VLOOKUP(A5,'Gruber Tabelle'!$A$6:$AE$359,30,0),0) -> 0 | AF5: =IFERROR(VLOOKUP(A5,'Gruber Tabelle'!$A$6:$AE$359,31,0),0) -> 0
B6: =IFERROR(VLOOKUP(A6,'Gruber Tabelle'!$A$6:$W$359,2,0),0) -> 0 | G6: =IFERROR(VLOOKUP(A6,'Gruber Tabelle'!$A$6:$W$359,4,0),0) -> 0 | H6: =IFERROR(VLOOKUP(A6,'Gruber Tabelle'!$A$6:$W$359,5,0),0) -> 0 | I6: =IFERROR(VLOOKUP(A6,'Gruber Tabelle'!$A$6:$W$359,7,0),0) -> 0 | J6: =IFERROR(VLOOKUP(A6,'Gruber Tabelle'!$A$6:$W$359,8,0),0) -> 0 | K6: =IFERROR(VLOOKUP(A6,'Gruber Tabelle'!$A$6:$W$359,9,0)/100,0) -> 0 | L6: =IFERROR(VLOOKUP(A6,'Gruber Tabelle'!$A$6:$W$359,10,0),0) -> 0 | M6: =IFERROR(VLOOKUP(A6,'Gruber Tabelle'!$A$6:$W$359,11,0),0) -> 0 | N6: =IFERROR(VLOOKUP(A6,'Gruber Tabelle'!$A$6:$W$359,12,0),0) -> 0 | O6: =IFERROR(VLOOKUP(A6,'Gruber Tabelle'!$A$6:$W$359,13,0),0) -> 0 | P6: =IFERROR(VLOOKUP(A6,'Gruber Tabelle'!$A$6:$W$359,14,0),0) -> 0 | Q6: =IFERROR(VLOOKUP(A6,'Gruber Tabelle'!$A$6:$W$359,15,0),0) -> 0 | R6: =IFERROR(VLOOKUP(A6,'Gruber Tabelle'!$A$6:$W$359,16,0),0) -> 0 | S6: =IFERROR(VLOOKUP(A6,'Gruber Tabelle'!$A$6:$W$359,17,0),0) -> 0 | T6: =IFERROR(VLOOKUP(A6,'Gruber Tabelle'!$A$6:$W$359,18,0),0) -> 0 | U6: =IFERROR(VLOOKUP(A6,'Gruber Tabelle'!$A$6:$W$359,19,0),0) -> 0 | V6: =IFERROR(VLOOKUP(A6,'Gruber Tabelle'!$A$6:$W$359,20,0),0) -> 0 | W6: =IFERROR(VLOOKUP(A6,'Gruber Tabelle'!$A$6:$W$359,21,0),0) -> 0 | X6: =IFERROR(VLOOKUP(A6,'Gruber Tabelle'!$A$6:$W$359,22,0),0) -> 0 | Y6: =IFERROR(VLOOKUP(A6,'Gruber Tabelle'!$A$6:$W$359,23,0),0) -> 0 | Z6: =IFERROR(VLOOKUP(A6,'Gruber Tabelle'!$A$6:$AE$359,25,0),0) -> 0 | AA6: =IFERROR(VLOOKUP(A6,'Gruber Tabelle'!$A$6:$AE$359,26,0),0) -> 0 | AB6: =IFERROR(VLOOKUP(A6,'Gruber Tabelle'!$A$6:$AE$359,27,0),0) -> 0 | AC6: =IFERROR(VLOOKUP(A6,'Gruber Tabelle'!$A$6:$AE$359,28,0),0) -> 0 | AD6: =IFERROR(VLOOKUP(A6,'Gruber Tabelle'!$A$6:$AE$359,29,0),0) -> 0 | AE6: =IFERROR(VLOOKUP(A6,'Gruber Tabelle'!$A$6:$AE$359,30,0),0) -> 0 | AF6: =IFERROR(VLOOKUP(A6,'Gruber Tabelle'!$A$6:$AE$359,31,0),0) -> 0
B7: =IFERROR(VLOOKUP(A7,'Gruber Tabelle'!$A$6:$W$359,2,0),0) -> 0 | G7: =IFERROR(VLOOKUP(A7,'Gruber Tabelle'!$A$6:$W$359,4,0),0) -> 0 | H7: =IFERROR(VLOOKUP(A7,'Gruber Tabelle'!$A$6:$W$359,5,0),0) -> 0 | I7: =IFERROR(VLOOKUP(A7,'Gruber Tabelle'!$A$6:$W$359,7,0),0) -> 0 | J7: =IFERROR(VLOOKUP(A7,'Gruber Tabelle'!$A$6:$W$359,8,0),0) -> 0 | K7: =IFERROR(VLOOKUP(A7,'Gruber Tabelle'!$A$6:$W$359,9,0)/100,0) -> 0 | L7: =IFERROR(VLOOKUP(A7,'Gruber Tabelle'!$A$6:$W$359,10,0),0) -> 0 | M7: =IFERROR(VLOOKUP(A7,'Gruber Tabelle'!$A$6:$W$359,11,0),0) -> 0 | N7: =IFERROR(VLOOKUP(A7,'Gruber Tabelle'!$A$6:$W$359,12,0),0) -> 0 | O7: =IFERROR(VLOOKUP(A7,'Gruber Tabelle'!$A$6:$W$359,13,0),0) -> 0 | P7: =IFERROR(VLOOKUP(A7,'Gruber Tabelle'!$A$6:$W$359,14,0),0) -> 0 | Q7: =IFERROR(VLOOKUP(A7,'Gruber Tabelle'!$A$6:$W$359,15,0),0) -> 0 | R7: =IFERROR(VLOOKUP(A7,'Gruber Tabelle'!$A$6:$W$359,16,0),0) -> 0 | S7: =IFERROR(VLOOKUP(A7,'Gruber Tabelle'!$A$6:$W$359,17,0),0) -> 0 | T7: =IFERROR(VLOOKUP(A7,'Gruber Tabelle'!$A$6:$W$359,18,0),0) -> 0 | U7: =IFERROR(VLOOKUP(A7,'Gruber Tabelle'!$A$6:$W$359,19,0),0) -> 0 | V7: =IFERROR(VLOOKUP(A7,'Gruber Tabelle'!$A$6:$W$359,20,0),0) -> 0 | W7: =IFERROR(VLOOKUP(A7,'Gruber Tabelle'!$A$6:$W$359,21,0),0) -> 0 | X7: =IFERROR(VLOOKUP(A7,'Gruber Tabelle'!$A$6:$W$359,22,0),0) -> 0 | Y7: =IFERROR(VLOOKUP(A7,'Gruber Tabelle'!$A$6:$W$359,23,0),0) -> 0 | Z7: =IFERROR(VLOOKUP(A7,'Gruber Tabelle'!$A$6:$AE$359,25,0),0) -> 0 | AA7: =IFERROR(VLOOKUP(A7,'Gruber Tabelle'!$A$6:$AE$359,26,0),0) -> 0 | AB7: =IFERROR(VLOOKUP(A7,'Gruber Tabelle'!$A$6:$AE$359,27,0),0) -> 0 | AC7: =IFERROR(VLOOKUP(A7,'Gruber Tabelle'!$A$6:$AE$359,28,0),0) -> 0 | AD7: =IFERROR(VLOOKUP(A7,'Gruber Tabelle'!$A$6:$AE$359,29,0),0) -> 0 | AE7: =IFERROR(VLOOKUP(A7,'Gruber Tabelle'!$A$6:$AE$359,30,0),0) -> 0 | AF7: =IFERROR(VLOOKUP(A7,'Gruber Tabelle'!$A$6:$AE$359,31,0),0) -> 0
B8: =IFERROR(VLOOKUP(A8,'Gruber Tabelle'!$A$6:$W$359,2,0),0) -> 0 | G8: =IFERROR(VLOOKUP(A8,'Gruber Tabelle'!$A$6:$W$359,4,0),0) -> 0 | H8: =IFERROR(VLOOKUP(A8,'Gruber Tabelle'!$A$6:$W$359,5,0),0) -> 0 | I8: =IFERROR(VLOOKUP(A8,'Gruber Tabelle'!$A$6:$W$359,7,0),0) -> 0 | J8: =IFERROR(VLOOKUP(A8,'Gruber Tabelle'!$A$6:$W$359,8,0),0) -> 0 | K8: =IFERROR(VLOOKUP(A8,'Gruber Tabelle'!$A$6:$W$359,9,0)/100,0) -> 0 | L8: =IFERROR(VLOOKUP(A8,'Gruber Tabelle'!$A$6:$W$359,10,0),0) -> 0 | M8: =IFERROR(VLOOKUP(A8,'Gruber Tabelle'!$A$6:$W$359,11,0),0) -> 0 | N8: =IFERROR(VLOOKUP(A8,'Gruber Tabelle'!$A$6:$W$359,12,0),0) -> 0 | O8: =IFERROR(VLOOKUP(A8,'Gruber Tabelle'!$A$6:$W$359,13,0),0) -> 0 | P8: =IFERROR(VLOOKUP(A8,'Gruber Tabelle'!$A$6:$W$359,14,0),0) -> 0 | Q8: =IFERROR(VLOOKUP(A8,'Gruber Tabelle'!$A$6:$W$359,15,0),0) -> 0 | R8: =IFERROR(VLOOKUP(A8,'Gruber Tabelle'!$A$6:$W$359,16,0),0) -> 0 | S8: =IFERROR(VLOOKUP(A8,'Gruber Tabelle'!$A$6:$W$359,17,0),0) -> 0 | T8: =IFERROR(VLOOKUP(A8,'Gruber Tabelle'!$A$6:$W$359,18,0),0) -> 0 | U8: =IFERROR(VLOOKUP(A8,'Gruber Tabelle'!$A$6:$W$359,19,0),0) -> 0 | V8: =IFERROR(VLOOKUP(A8,'Gruber Tabelle'!$A$6:$W$359,20,0),0) -> 0 | W8: =IFERROR(VLOOKUP(A8,'Gruber Tabelle'!$A$6:$W$359,21,0),0) -> 0 | X8: =IFERROR(VLOOKUP(A8,'Gruber Tabelle'!$A$6:$W$359,22,0),0) -> 0 | Y8: =IFERROR(VLOOKUP(A8,'Gruber Tabelle'!$A$6:$W$359,23,0),0) -> 0 | Z8: =IFERROR(VLOOKUP(A8,'Gruber Tabelle'!$A$6:$AE$359,25,0),0) -> 0 | AA8: =IFERROR(VLOOKUP(A8,'Gruber Tabelle'!$A$6:$AE$359,26,0),0) -> 0 | AB8: =IFERROR(VLOOKUP(A8,'Gruber Tabelle'!$A$6:$AE$359,27,0),0) -> 0 | AC8: =IFERROR(VLOOKUP(A8,'Gruber Tabelle'!$A$6:$AE$359,28,0),0) -> 0 | AD8: =IFERROR(VLOOKUP(A8,'Gruber Tabelle'!$A$6:$AE$359,29,0),0) -> 0 | AE8: =IFERROR(VLOOKUP(A8,'Gruber Tabelle'!$A$6:$AE$359,30,0),0) -> 0 | AF8: =IFERROR(VLOOKUP(A8,'Gruber Tabelle'!$A$6:$AE$359,31,0),0) -> 0
B9: =IFERROR(VLOOKUP(A9,'Gruber Tabelle'!$A$6:$W$359,2,0),0) -> 0 | G9: =IFERROR(VLOOKUP(A9,'Gruber Tabelle'!$A$6:$W$359,4,0),0) -> 0 | H9: =IFERROR(VLOOKUP(A9,'Gruber Tabelle'!$A$6:$W$359,5,0),0) -> 0 | I9: =IFERROR(VLOOKUP(A9,'Gruber Tabelle'!$A$6:$W$359,7,0),0) -> 0 | J9: =IFERROR(VLOOKUP(A9,'Gruber Tabelle'!$A$6:$W$359,8,0),0) -> 0 | K9: =IFERROR(VLOOKUP(A9,'Gruber Tabelle'!$A$6:$W$359,9,0)/100,0) -> 0 | L9: =IFERROR(VLOOKUP(A9,'Gruber Tabelle'!$A$6:$W$359,10,0),0) -> 0 | M9: =IFERROR(VLOOKUP(A9,'Gruber Tabelle'!$A$6:$W$359,11,0),0) -> 0 | N9: =IFERROR(VLOOKUP(A9,'Gruber Tabelle'!$A$6:$W$359,12,0),0) -> 0 | O9: =IFERROR(VLOOKUP(A9,'Gruber Tabelle'!$A$6:$W$359,13,0),0) -> 0 | P9: =IFERROR(VLOOKUP(A9,'Gruber Tabelle'!$A$6:$W$359,14,0),0) -> 0 | Q9: =IFERROR(VLOOKUP(A9,'Gruber Tabelle'!$A$6:$W$359,15,0),0) -> 0 | R9: =IFERROR(VLOOKUP(A9,'Gruber Tabelle'!$A$6:$W$359,16,0),0) -> 0 | S9: =IFERROR(VLOOKUP(A9,'Gruber Tabelle'!$A$6:$W$359,17,0),0) -> 0 | T9: =IFERROR(VLOOKUP(A9,'Gruber Tabelle'!$A$6:$W$359,18,0),0) -> 0 | U9: =IFERROR(VLOOKUP(A9,'Gruber Tabelle'!$A$6:$W$359,19,0),0) -> 0 | V9: =IFERROR(VLOOKUP(A9,'Gruber Tabelle'!$A$6:$W$359,20,0),0) -> 0 | W9: =IFERROR(VLOOKUP(A9,'Gruber Tabelle'!$A$6:$W$359,21,0),0) -> 0 | X9: =IFERROR(VLOOKUP(A9,'Gruber Tabelle'!$A$6:$W$359,22,0),0) -> 0 | Y9: =IFERROR(VLOOKUP(A9,'Gruber Tabelle'!$A$6:$W$359,23,0),0) -> 0 | Z9: =IFERROR(VLOOKUP(A9,'Gruber Tabelle'!$A$6:$AE$359,25,0),0) -> 0 | AA9: =IFERROR(VLOOKUP(A9,'Gruber Tabelle'!$A$6:$AE$359,26,0),0) -> 0 | AB9: =IFERROR(VLOOKUP(A9,'Gruber Tabelle'!$A$6:$AE$359,27,0),0) -> 0 | AC9: =IFERROR(VLOOKUP(A9,'Gruber Tabelle'!$A$6:$AE$359,28,0),0) -> 0 | AD9: =IFERROR(VLOOKUP(A9,'Gruber Tabelle'!$A$6:$AE$359,29,0),0) -> 0 | AE9: =IFERROR(VLOOKUP(A9,'Gruber Tabelle'!$A$6:$AE$359,30,0),0) -> 0 | AF9: =IFERROR(VLOOKUP(A9,'Gruber Tabelle'!$A$6:$AE$359,31,0),0) -> 0
B10: =IFERROR(VLOOKUP(A10,'Gruber Tabelle'!$A$6:$W$359,2,0),0) -> 0 | G10: =IFERROR(VLOOKUP(A10,'Gruber Tabelle'!$A$6:$W$359,4,0),0) -> 0 | H10: =IFERROR(VLOOKUP(A10,'Gruber Tabelle'!$A$6:$W$359,5,0),0) -> 0 | I10: =IFERROR(VLOOKUP(A10,'Gruber Tabelle'!$A$6:$W$359,7,0),0) -> 0 | J10: =IFERROR(VLOOKUP(A10,'Gruber Tabelle'!$A$6:$W$359,8,0),0) -> 0 | K10: =IFERROR(VLOOKUP(A10,'Gruber Tabelle'!$A$6:$W$359,9,0)/100,0) -> 0 | L10: =IFERROR(VLOOKUP(A10,'Gruber Tabelle'!$A$6:$W$359,10,0),0) -> 0 | M10: =IFERROR(VLOOKUP(A10,'Gruber Tabelle'!$A$6:$W$359,11,0),0) -> 0 | N10: =IFERROR(VLOOKUP(A10,'Gruber Tabelle'!$A$6:$W$359,12,0),0) -> 0 | O10: =IFERROR(VLOOKUP(A10,'Gruber Tabelle'!$A$6:$W$359,13,0),0) -> 0 | P10: =IFERROR(VLOOKUP(A10,'Gruber Tabelle'!$A$6:$W$359,14,0),0) -> 0 | Q10: =IFERROR(VLOOKUP(A10,'Gruber Tabelle'!$A$6:$W$359,15,0),0) -> 0 | R10: =IFERROR(VLOOKUP(A10,'Gruber Tabelle'!$A$6:$W$359,16,0),0) -> 0 | S10: =IFERROR(VLOOKUP(A10,'Gruber Tabelle'!$A$6:$W$359,17,0),0) -> 0 | T10: =IFERROR(VLOOKUP(A10,'Gruber Tabelle'!$A$6:$W$359,18,0),0) -> 0 | U10: =IFERROR(VLOOKUP(A10,'Gruber Tabelle'!$A$6:$W$359,19,0),0) -> 0 | V10: =IFERROR(VLOOKUP(A10,'Gruber Tabelle'!$A$6:$W$359,20,0),0) -> 0 | W10: =IFERROR(VLOOKUP(A10,'Gruber Tabelle'!$A$6:$W$359,21,0),0) -> 0 | X10: =IFERROR(VLOOKUP(A10,'Gruber Tabelle'!$A$6:$W$359,22,0),0) -> 0 | Y10: =IFERROR(VLOOKUP(A10,'Gruber Tabelle'!$A$6:$W$359,23,0),0) -> 0 | Z10: =IFERROR(VLOOKUP(A10,'Gruber Tabelle'!$A$6:$AE$359,25,0),0) -> 0 | AA10: =IFERROR(VLOOKUP(A10,'Gruber Tabelle'!$A$6:$AE$359,26,0),0) -> 0 | AB10: =IFERROR(VLOOKUP(A10,'Gruber Tabelle'!$A$6:$AE$359,27,0),0) -> 0 | AC10: =IFERROR(VLOOKUP(A10,'Gruber Tabelle'!$A$6:$AE$359,28,0),0) -> 0 | AD10: =IFERROR(VLOOKUP(A10,'Gruber Tabelle'!$A$6:$AE$359,29,0),0) -> 0 | AE10: =IFERROR(VLOOKUP(A10,'Gruber Tabelle'!$A$6:$AE$359,30,0),0) -> 0 | AF10: =IFERROR(VLOOKUP(A10,'Gruber Tabelle'!$A$6:$AE$359,31,0),0) -> 0
B11: =IFERROR(VLOOKUP(A11,'Gruber Tabelle'!$A$6:$W$359,2,0),0) -> 0 | G11: =IFERROR(VLOOKUP(A11,'Gruber Tabelle'!$A$6:$W$359,4,0),0) -> 0 | H11: =IFERROR(VLOOKUP(A11,'Gruber Tabelle'!$A$6:$W$359,5,0),0) -> 0 | I11: =IFERROR(VLOOKUP(A11,'Gruber Tabelle'!$A$6:$W$359,7,0),0) -> 0 | J11: =IFERROR(VLOOKUP(A11,'Gruber Tabelle'!$A$6:$W$359,8,0),0) -> 0 | K11: =IFERROR(VLOOKUP(A11,'Gruber Tabelle'!$A$6:$W$359,9,0)/100,0) -> 0 | L11: =IFERROR(VLOOKUP(A11,'Gruber Tabelle'!$A$6:$W$359,10,0),0) -> 0 | M11: =IFERROR(VLOOKUP(A11,'Gruber Tabelle'!$A$6:$W$359,11,0),0) -> 0 | N11: =IFERROR(VLOOKUP(A11,'Gruber Tabelle'!$A$6:$W$359,12,0),0) -> 0 | O11: =IFERROR(VLOOKUP(A11,'Gruber Tabelle'!$A$6:$W$359,13,0),0) -> 0 | P11: =IFERROR(VLOOKUP(A11,'Gruber Tabelle'!$A$6:$W$359,14,0),0) -> 0 | Q11: =IFERROR(VLOOKUP(A11,'Gruber Tabelle'!$A$6:$W$359,15,0),0) -> 0 | R11: =IFERROR(VLOOKUP(A11,'Gruber Tabelle'!$A$6:$W$359,16,0),0) -> 0 | S11: =IFERROR(VLOOKUP(A11,'Gruber Tabelle'!$A$6:$W$359,17,0),0) -> 0 | T11: =IFERROR(VLOOKUP(A11,'Gruber Tabelle'!$A$6:$W$359,18,0),0) -> 0 | U11: =IFERROR(VLOOKUP(A11,'Gruber Tabelle'!$A$6:$W$359,19,0),0) -> 0 | V11: =IFERROR(VLOOKUP(A11,'Gruber Tabelle'!$A$6:$W$359,20,0),0) -> 0 | W11: =IFERROR(VLOOKUP(A11,'Gruber Tabelle'!$A$6:$W$359,21,0),0) -> 0 | X11: =IFERROR(VLOOKUP(A11,'Gruber Tabelle'!$A$6:$W$359,22,0),0) -> 0 | Y11: =IFERROR(VLOOKUP(A11,'Gruber Tabelle'!$A$6:$W$359,23,0),0) -> 0 | Z11: =IFERROR(VLOOKUP(A11,'Gruber Tabelle'!$A$6:$AE$359,25,0),0) -> 0 | AA11: =IFERROR(VLOOKUP(A11,'Gruber Tabelle'!$A$6:$AE$359,26,0),0) -> 0 | AB11: =IFERROR(VLOOKUP(A11,'Gruber Tabelle'!$A$6:$AE$359,27,0),0) -> 0 | AC11: =IFERROR(VLOOKUP(A11,'Gruber Tabelle'!$A$6:$AE$359,28,0),0) -> 0 | AD11: =IFERROR(VLOOKUP(A11,'Gruber Tabelle'!$A$6:$AE$359,29,0),0) -> 0 | AE11: =IFERROR(VLOOKUP(A11,'Gruber Tabelle'!$A$6:$AE$359,30,0),0) -> 0 | AF11: =IFERROR(VLOOKUP(A11,'Gruber Tabelle'!$A$6:$AE$359,31,0),0) -> 0
B12: =IFERROR(VLOOKUP(A12,'Gruber Tabelle'!$A$6:$W$359,2,0),0) -> 0 | G12: =IFERROR(VLOOKUP(A12,'Gruber Tabelle'!$A$6:$W$359,4,0),0) -> 0 | H12: =IFERROR(VLOOKUP(A12,'Gruber Tabelle'!$A$6:$W$359,5,0),0) -> 0 | I12: =IFERROR(VLOOKUP(A12,'Gruber Tabelle'!$A$6:$W$359,7,0),0) -> 0 | J12: =IFERROR(VLOOKUP(A12,'Gruber Tabelle'!$A$6:$W$359,8,0),0) -> 0 | K12: =IFERROR(VLOOKUP(A12,'Gruber Tabelle'!$A$6:$W$359,9,0)/100,0) -> 0 | L12: =IFERROR(VLOOKUP(A12,'Gruber Tabelle'!$A$6:$W$359,10,0),0) -> 0 | M12: =IFERROR(VLOOKUP(A12,'Gruber Tabelle'!$A$6:$W$359,11,0),0) -> 0 | N12: =IFERROR(VLOOKUP(A12,'Gruber Tabelle'!$A$6:$W$359,12,0),0) -> 0 | O12: =IFERROR(VLOOKUP(A12,'Gruber Tabelle'!$A$6:$W$359,13,0),0) -> 0 | P12: =IFERROR(VLOOKUP(A12,'Gruber Tabelle'!$A$6:$W$359,14,0),0) -> 0 | Q12: =IFERROR(VLOOKUP(A12,'Gruber Tabelle'!$A$6:$W$359,15,0),0) -> 0 | R12: =IFERROR(VLOOKUP(A12,'Gruber Tabelle'!$A$6:$W$359,16,0),0) -> 0 | S12: =IFERROR(VLOOKUP(A12,'Gruber Tabelle'!$A$6:$W$359,17,0),0) -> 0 | T12: =IFERROR(VLOOKUP(A12,'Gruber Tabelle'!$A$6:$W$359,18,0),0) -> 0 | U12: =IFERROR(VLOOKUP(A12,'Gruber Tabelle'!$A$6:$W$359,19,0),0) -> 0 | V12: =IFERROR(VLOOKUP(A12,'Gruber Tabelle'!$A$6:$W$359,20,0),0) -> 0 | W12: =IFERROR(VLOOKUP(A12,'Gruber Tabelle'!$A$6:$W$359,21,0),0) -> 0 | X12: =IFERROR(VLOOKUP(A12,'Gruber Tabelle'!$A$6:$W$359,22,0),0) -> 0 | Y12: =IFERROR(VLOOKUP(A12,'Gruber Tabelle'!$A$6:$W$359,23,0),0) -> 0 | Z12: =IFERROR(VLOOKUP(A12,'Gruber Tabelle'!$A$6:$AE$359,25,0),0) -> 0 | AA12: =IFERROR(VLOOKUP(A12,'Gruber Tabelle'!$A$6:$AE$359,26,0),0) -> 0 | AB12: =IFERROR(VLOOKUP(A12,'Gruber Tabelle'!$A$6:$AE$359,27,0),0) -> 0 | AC12: =IFERROR(VLOOKUP(A12,'Gruber Tabelle'!$A$6:$AE$359,28,0),0) -> 0 | AD12: =IFERROR(VLOOKUP(A12,'Gruber Tabelle'!$A$6:$AE$359,29,0),0) -> 0 | AE12: =IFERROR(VLOOKUP(A12,'Gruber Tabelle'!$A$6:$AE$359,30,0),0) -> 0 | AF12: =IFERROR(VLOOKUP(A12,'Gruber Tabelle'!$A$6:$AE$359,31,0),0) -> 0
B13: =IFERROR(VLOOKUP(A13,'Gruber Tabelle'!$A$6:$W$359,2,0),0) -> 0 | G13: =IFERROR(VLOOKUP(A13,'Gruber Tabelle'!$A$6:$W$359,4,0),0) -> 0 | H13: =IFERROR(VLOOKUP(A13,'Gruber Tabelle'!$A$6:$W$359,5,0),0) -> 0 | I13: =IFERROR(VLOOKUP(A13,'Gruber Tabelle'!$A$6:$W$359,7,0),0) -> 0 | J13: =IFERROR(VLOOKUP(A13,'Gruber Tabelle'!$A$6:$W$359,8,0),0) -> 0 | K13: =IFERROR(VLOOKUP(A13,'Gruber Tabelle'!$A$6:$W$359,9,0)/100,0) -> 0 | L13: =IFERROR(VLOOKUP(A13,'Gruber Tabelle'!$A$6:$W$359,10,0),0) -> 0 | M13: =IFERROR(VLOOKUP(A13,'Gruber Tabelle'!$A$6:$W$359,11,0),0) -> 0 | N13: =IFERROR(VLOOKUP(A13,'Gruber Tabelle'!$A$6:$W$359,12,0),0) -> 0 | O13: =IFERROR(VLOOKUP(A13,'Gruber Tabelle'!$A$6:$W$359,13,0),0) -> 0 | P13: =IFERROR(VLOOKUP(A13,'Gruber Tabelle'!$A$6:$W$359,14,0),0) -> 0 | Q13: =IFERROR(VLOOKUP(A13,'Gruber Tabelle'!$A$6:$W$359,15,0),0) -> 0 | R13: =IFERROR(VLOOKUP(A13,'Gruber Tabelle'!$A$6:$W$359,16,0),0) -> 0 | S13: =IFERROR(VLOOKUP(A13,'Gruber Tabelle'!$A$6:$W$359,17,0),0) -> 0 | T13: =IFERROR(VLOOKUP(A13,'Gruber Tabelle'!$A$6:$W$359,18,0),0) -> 0 | U13: =IFERROR(VLOOKUP(A13,'Gruber Tabelle'!$A$6:$W$359,19,0),0) -> 0 | V13: =IFERROR(VLOOKUP(A13,'Gruber Tabelle'!$A$6:$W$359,20,0),0) -> 0 | W13: =IFERROR(VLOOKUP(A13,'Gruber Tabelle'!$A$6:$W$359,21,0),0) -> 0 | X13: =IFERROR(VLOOKUP(A13,'Gruber Tabelle'!$A$6:$W$359,22,0),0) -> 0 | Y13: =IFERROR(VLOOKUP(A13,'Gruber Tabelle'!$A$6:$W$359,23,0),0) -> 0 | Z13: =IFERROR(VLOOKUP(A13,'Gruber Tabelle'!$A$6:$AE$359,25,0),0) -> 0 | AA13: =IFERROR(VLOOKUP(A13,'Gruber Tabelle'!$A$6:$AE$359,26,0),0) -> 0 | AB13: =IFERROR(VLOOKUP(A13,'Gruber Tabelle'!$A$6:$AE$359,27,0),0) -> 0 | AC13: =IFERROR(VLOOKUP(A13,'Gruber Tabelle'!$A$6:$AE$359,28,0),0) -> 0 | AD13: =IFERROR(VLOOKUP(A13,'Gruber Tabelle'!$A$6:$AE$359,29,0),0) -> 0 | AE13: =IFERROR(VLOOKUP(A13,'Gruber Tabelle'!$A$6:$AE$359,30,0),0) -> 0 | AF13: =IFERROR(VLOOKUP(A13,'Gruber Tabelle'!$A$6:$AE$359,31,0),0) -> 0
A14: Nr | B14: Futterart | C14: Anteil in % | D14: TS % | E14: TM kg | F14: FM kg | G14: XF g | H14: aNDFom | I14: CP g | J14: nxP g | K14: UDP g | L14: RNB | M14: Nel MJ | N14: ME MJ | O14: ST+ZU | P14: bST | Q14: CL | R14: Ca | S14: P | T14: Mg | U14: Na | V14: K | W14: Cl | X14: S | Y14: Preis | Z14: Fe | AA14: Cu | AB14: Zn | AC14: Mn | AD14: Co | AE14: J | AF14: Se
A15: =A4 -> 0 | B15: 0 | D15: =IFERROR(VLOOKUP(A4,'Gruber Tabelle'!$A$6:$W$359,3,0)/1000,0) -> 0 | E15: =IF(F15>0,F15*D15,0) -> 0 | F15: =IF(C15>0,(1*C15),0) -> 0 | G15: =IF(G4>0,(G4*C15)*D15,0) -> 0 | H15: =IF(H4>0,(H4*C15)*D15,0) -> 0 | I15: =IF(I4>0,(I4*C15)*D15,0) -> 0 | J15: =IF(J4>0,(J4*C15)*D15,0) -> 0 | K15: =IF(K4>0,(I4*K4)*E15,0) -> 0 | L15: =IFERROR(SUM((I15-J15)/6.25),0) -> 0 | M15: =IF(M4>0,(M4*C15)*D15,0) -> 0 | N15: =IF(N4>0,(N4*C15)*D15,0) -> 0 | O15: =IF(O4>0,(O4*C15)*D15,0) -> 0 | P15: =IF(P4>0,(P4*C15)*D15,0) -> 0 | Q15: =IF(Q4>0,(Q4*C15)*D15,0) -> 0 | R15: =IF(R4>0,(R4*C15)*D15,0) -> 0 | S15: =IF(S4>0,(S4*C15)*D15,0) -> 0 | T15: =IF(T4>0,(T4*C15)*D15,0) -> 0 | U15: =IF(U4>0,(U4*C15)*D15,0) -> 0 | V15: =IF(V4>0,(V4*C15)*D15,0) -> 0 | W15: =IF(W4>0,(W4*C15)*D15,0) -> 0 | X15: =IF(X4>0,(X4*C15)*D15,0) -> 0 | Y15: =IF(C15>0,Y4*F15/100,0) -> 0 | Z15: =IF(Z4>0,(Z4*C15)*D15,0) -> 0 | AA15: =IF(AA4>0,(AA4*C15)*D15,0) -> 0 | AB15: =IF(AB4>0,(AB4*C15)*D15,0) -> 0 | AC15: =IF(AC4>0,(AC4*C15)*D15,0) -> 0 | AD15: =IF(AD4>0,(AD4*C15)*D15,0) -> 0 | AE15: =IF(AE4>0,(AE4*C15)*D15,0) -> 0 | AF15: =IF(AF4>0,(AF4*C15)*D15,0) -> 0
A16: 0 | B16: 0 | D16: =IFERROR(VLOOKUP(A5,'Gruber Tabelle'!$A$6:$W$359,3,0)/1000,0) -> 0 | E16: =IF(F16>0,F16*D16,0) -> 0 | F16: =IF(C16>0,(1*C16),0) -> 0 | G16: =IF(G5>0,(G5*C16)*D16,0) -> 0 | H16: =IF(H5>0,(H5*C16)*D16,0) -> 0 | I16: =IF(I5>0,(I5*C16)*D16,0) -> 0 | J16: =IF(J5>0,(J5*C16)*D16,0) -> 0 | K16: =IF(K5>0,(I5*K5)*E16,0) -> 0 | L16: 0 | M16: =IF(M5>0,(M5*C16)*D16,0) -> 0 | N16: =IF(N5>0,(N5*C16)*D16,0) -> 0 | O16: =IF(O5>0,(O5*C16)*D16,0) -> 0 | P16: =IF(P5>0,(P5*C16)*D16,0) -> 0 | Q16: =IF(Q5>0,(Q5*C16)*D16,0) -> 0 | R16: =IF(R5>0,(R5*C16)*D16,0) -> 0 | S16: =IF(S5>0,(S5*C16)*D16,0) -> 0 | T16: =IF(T5>0,(T5*C16)*D16,0) -> 0 | U16: =IF(U5>0,(U5*C16)*D16,0) -> 0 | V16: =IF(V5>0,(V5*C16)*D16,0) -> 0 | W16: =IF(W5>0,(W5*C16)*D16,0) -> 0 | X16: =IF(X5>0,(X5*C16)*D16,0) -> 0 | Y16: 0 | Z16: =IF(Z5>0,(Z5*C16)*D16,0) -> 0 | AA16: =IF(AA5>0,(AA5*C16)*D16,0) -> 0 | AB16: =IF(AB5>0,(AB5*C16)*D16,0) -> 0 | AC16: =IF(AC5>0,(AC5*C16)*D16,0) -> 0 | AD16: =IF(AD5>0,(AD5*C16)*D16,0) -> 0 | AE16: =IF(AE5>0,(AE5*C16)*D16,0) -> 0 | AF16: =IF(AF5>0,(AF5*C16)*D16,0) -> 0
A17: 0 | B17: 0 | D17: =IFERROR(VLOOKUP(A6,'Gruber Tabelle'!$A$6:$W$359,3,0)/1000,0) -> 0 | E17: 0 | F17: 0 | G17: 0 | H17: 0 | I17: 0 | J17: 0 | K17: 0 | L17: 0 | M17: 0 | N17: 0 | O17: 0 | P17: 0 | Q17: 0 | R17: 0 | S17: 0 | T17: 0 | U17: 0 | V17: 0 | W17: 0 | X17: 0 | Y17: 0 | Z17: 0 | AA17: 0 | AB17: 0 | AC17: 0 | AD17: 0 | AE17: 0 | AF17: 0
A18: 0 | B18: 0 | D18: =IFERROR(VLOOKUP(A7,'Gruber Tabelle'!$A$6:$W$359,3,0)/1000,0) -> 0 | E18: 0 | F18: 0 | G18: 0 | H18: 0 | I18: 0 | J18: 0 | K18: 0 | L18: 0 | M18: 0 | N18: 0 | O18: 0 | P18: 0 | Q18: 0 | R18: 0 | S18: 0 | T18: 0 | U18: 0 | V18: 0 | W18: 0 | X18: 0 | Y18: 0 | Z18: 0 | AA18: 0 | AB18: 0 | AC18: 0 | AD18: 0 | AE18: 0 | AF18: 0
A19: 0 | B19: 0 | D19: =IFERROR(VLOOKUP(A8,'Gruber Tabelle'!$A$6:$W$359,3,0)/1000,0) -> 0 | E19: 0 | F19: 0 | G19: 0 | H19: 0 | I19: 0 | J19: 0 | K19: 0 | L19: 0 | M19: 0 | N19: 0 | O19: 0 | P19: 0 | Q19: 0 | R19: 0 | S19: 0 | T19: 0 | U19: 0 | V19: 0 | W19: 0 | X19: 0 | Y19: 0 | Z19: 0 | AA19: 0 | AB19: 0 | AC19: 0 | AD19: 0 | AE19: 0 | AF19: 0
A20: 0 | B20: 0 | D20: =IFERROR(VLOOKUP(A9,'Gruber Tabelle'!$A$6:$W$359,3,0)/1000,0) -> 0 | E20: 0 | F20: 0 | G20: 0 | H20: 0 | I20: 0 | J20: 0 | K20: 0 | L20: 0 | M20: 0 | N20: 0 | O20: 0 | P20: 0 | Q20: 0 | R20: 0 | S20: 0 | T20: 0 | U20: 0 | V20: 0 | W20: 0 | X20: 0 | Y20: 0 | Z20: 0 | AA20: 0 | AB20: 0 | AC20: 0 | AD20: 0 | AE20: 0 | AF20: 0
A21: 0 | B21: 0 | D21: =IFERROR(VLOOKUP(A10,'Gruber Tabelle'!$A$6:$W$359,3,0)/1000,0) -> 0 | E21: 0 | F21: 0 | G21: 0 | H21: 0 | I21: 0 | J21: 0 | K21: 0 | L21: 0 | M21: 0 | N21: 0 | O21: 0 | P21: 0 | Q21: 0 | R21: 0 | S21: 0 | T21: 0 | U21: 0 | V21: 0 | W21: 0 | X21: 0 | Y21: 0 | Z21: 0 | AA21: 0 | AB21: 0 | AC21: 0 | AD21: 0 | AE21: 0 | AF21: 0
A22: 0 | B22: 0 | D22: =IFERROR(VLOOKUP(A11,'Gruber Tabelle'!$A$6:$W$359,3,0)/1000,0) -> 0 | E22: 0 | F22: 0 | G22: 0 | H22: 0 | I22: 0 | J22: 0 | K22: 0 | L22: 0 | M22: 0 | N22: 0 | O22: 0 | P22: 0 | Q22: 0 | R22: 0 | S22: 0 | T22: 0 | U22: 0 | V22: 0 | W22: 0 | X22: 0 | Y22: 0 | Z22: 0 | AA22: 0 | AB22: 0 | AC22: 0 | AD22: 0 | AE22: 0 | AF22: 0
A23: 0 | B23: 0 | D23: =IFERROR(VLOOKUP(A12,'Gruber Tabelle'!$A$6:$W$359,3,0)/1000,0) -> 0 | E23: 0 | F23: 0 | G23: 0 | H23: 0 | I23: 0 | J23: 0 | K23: 0 | L23: 0 | M23: 0 | N23: 0 | O23: 0 | P23: 0 | Q23: 0 | R23: 0 | S23: 0 | T23: 0 | U23: 0 | V23: 0 | W23: 0 | X23: 0 | Y23: 0 | Z23: 0 | AA23: 0 | AB23: 0 | AC23: 0 | AD23: 0 | AE23: 0 | AF23: 0
A24: 0 | B24: 0 | D24: =IFERROR(VLOOKUP(A13,'Gruber Tabelle'!$A$6:$W$359,3,0)/1000,0) -> 0 | E24: 0 | F24: 0 | G24: 0 | H24: 0 | I24: 0 | J24: 0 | K24: 0 | L24: 0 | M24: 0 | N24: 0 | O24: 0 | P24: 0 | Q24: 0 | R24: 0 | S24: 0 | T24: 0 | U24: 0 | V24: 0 | W24: 0 | X24: 0 | Y24: 0 | Z24: 0 | AA24: 0 | AB24: 0 | AC24: 0 | AD24: 0 | AE24: 0 | AF24: 0
B25: Summe je kg FM: | C25: =SUM(C15:C24) -> 0 | E25: =SUM(E15:E24) -> 0 | F25: =SUM(F15:F24) -> 0 | G25: 0 | H25: 0 | I25: 0 | J25: 0 | K25: 0 | L25: 0 | M25: 0 | N25: 0 | O25: 0 | P25: 0 | Q25: 0 | R25: 0 | S25: 0 | T25: 0 | U25: 0 | V25: 0 | W25: 0 | X25: 0 | Y25: 0 | Z25: =SUM(Z15:Z24) -> 0 | AA25: =SUM(AA15:AA24) -> 0 | AB25: 0 | AC25: 0 | AD25: 0 | AE25: 0 | AF25: 0
A26: Milcherzeugungswerte / Kennzahlen | H26: =IF(C25=100%,H25/1000,0) -> 0 | I26: =IFERROR(I25/Einstellung!E16,0) -> 0 | J26: =IFERROR(J25/Einstellung!E16,0) -> 0 | K26: =IF(K25>0,K25/I25,0) -> 0 | L26: =IF(C25=100%,(I25-J25)/6.25,0) -> 0 | M26: =IFERROR(M25/Einstellung!F15,0) -> 0 | N26: Mengenelem. f. kg Milch: | R26: =IF(R25>0,R25/Einstellung!D23,0) -> 0 | S26: =IF(S25>0,S25/Einstellung!E23,0) -> 0 | T26: =IF(T25>0,T25/Einstellung!F23,0) -> 0 | U26: =IF(U25>0,U25/Einstellung!G23,0) -> 0 | Y26: =IFERROR(Y25/M26,0) -> 0

Sheet Gruber Tabelle
A1: Mischung 1
C2: www.LfL.bayern.de | H2: Gruber Tabelle zur Fütterung der Milchkühe – Zuchtrinder – Mastrinder – Schafe – Ziegen
C3: TM | D3: in 1000 g Trockenmasse ( TM ) | W3: Preis | X3: Typ | Y3: Spurenelemente mg / kg TM
D4: XF | E4: aNDF | F4: ADF | G4: CP | H4: nxP | I4: UDP | J4: RNB | K4: NEL | L4: ME | M4: ST+ZU | N4: bST | O4: CL | P4: Ca | Q4: P | R4: Mg | S4: Na | T4: K | U4: Cl | V4: S | W4: FM | Y4: Fe | Z4: Cu | AA4: Zn | AB4: Mn | AC4: Co | AD4: J | AE4: Se
C5: g | D5: g | E5: om g | F5: om g | G5: g | H5: g | I5: g | J5: g | K5: MJ | L5: MJ | M5: g | N5: g | O5: g | P5: g | Q5: g | R5: g | S5: g | T5: g | U5: g | V5: g | W5: € / dt | Y5: mg | Z5: mg | AA5: mg | AB5: mg | AC5: mg | AD5: mg | AE5: mg
A6: 1013 | B6: Wiesengras, 1.Schnitt, im Blattst | C6: 175 | D6: 173 | E6: 433 | F6: 209 | G6: 228 | H6: 153.62 | I6: 43.44 | J6: =(G6-H6)/6.25 -> 11.9008 | K6: 7.12 | L6: 12.87 | M6: 137 | N6: 0 | O6: 33 | P6: 6.9 | Q6: 3.8 | R6: 2.4 | S6: 0.9 | T6: 31.5 | U6: 7.1 | V6: 2.8 | X6: GF | Y6: 100 | Z6: 8 | AA6: 35 | AB6: 59.1 | AC6: 0.12 | AD6: 0.4 | AE6: 0.03
A7: 1014 | B7: Wiesengras, 1.Schnitt, im Scho | C7: 180 | D7: 185 | E7: 439 | F7: 222 | G7: 192 | H7: 145.64 | I7: 36.58 | J7: =(G7-H7)/6.25 -> 7.4176 | K7: 6.84 | L7: 12.13 | M7: 137 | N7: 0 | O7: 32 | P7: 6.7 | Q7: 3.6 | R7: 2.4 | S7: 0.84 | T7: 31.1 | U7: 7 | V7: 2.7 | X7: GF | Y7: 100 | Z7: 7.9 | AA7: 34.7 | AB7: 61.5 | AC7: 0.12 | AD7: 0.4 | AE7: 0.03
A8: 1015 | B8: Wiesengras, 1.Schnitt | C8: 185 | D8: 204 | E8: 457 | F8: 241 | G8: 167 | H8: 143.71 | I8: 31.82 | J8: =(G8-H8)/6.25 -> 3.7264 | K8: 6.56 | L8: 11.48 | M8: 137 | N8: 0 | O8: 30 | P8: 6.5 | Q8: 3.4 | R8: 2.2 | S8: 0.66 | T8: 29.6 | U8: 6.7 | V8: 2.5 | X8: GF | Y8: 100 | Z8: 7.7 | AA8: 33 | AB8: 65 | AC8: 0.12 | AD8: 0.4 | AE8: 0.03
A9: 1016 | B9: Wiesengras, 1.Schnitt, Beginn Bl | C9: 190 | D9: 224 | E9: 486 | F9: 260 | G9: 146 | H9: 136.54 | I9: 27.81 | J9: 1.5136 | K9: 6.29 | L9: 10.8 | M9: 137 | N9: 0 | O9: 28 | P9: 6.4 | Q9: 3.3 | R9: 2.1 | S9: 0.54 | T9: 28.8 | U9: 6.6 | V9: 2.3 | X9: GF | Y9: 100 | Z9: 7.5 | AA9: 32.4 | AB9: 69.8 | AC9: 0.12 | AD9: 0.4 | AE9: 0.03
A10: 1017 | B10: Wiesengras, 1.Schnitt, Ende Bl | C10: 200 | D10: 246 | E10: 515 | F10: 281 | G10: 120 | H10: 127.17 | I10: 22.86 | J10: -1.1472 | K10: 5.93 | L10: 9.97 | M10: 137 | N10: 0 | O10: 25 | P10: 6 | Q10: 3.1 | R10: 2 | S10: 0.46 | T10: 27.6 | U10: 6.6 | V10: 2.1 | W10: 0 | X10: GF | Y10: 100 | Z10: 7.3 | AA10: 30.2 | AB10: 72 | AC10: 0.12 | AD10: 0.4 | AE10: 0.03
A11: 1023 | B11: Wiesengras, 2.u Folge, i Blattst | C11: 200 | D11: 227 | E11: 488 | F11: 270 | G11: 179 | H11: 140.03 | I11: 34.1 | J11: 6.2352 | K11: 6.53 | L11: 11.68 | M11: 63 | N11: 0 | O11: 40 | P11: 7.6 | Q11: 3.7 | R11: 2.8 | S11: 0.89 | T11: 29 | U11: 8.3 | V11: 3.2 | W11: 0 | X11: GF | Y11: 100 | Z11: 8.2 | AA11: 37.6 | AB11: 54.8 | AC11: 0.12 | AD11: 0.4 | AE11: 0.03
A12: 1024 | B12: Wiesengras, 2.u Folge, i Sch | C12: 200 | D12: 233 | E12: 491 | F12: 275 | G12: 159 | H12: 134.82 | I12: 30.29 | J12: 3.8688 | K12: 6.34 | L12: 11.18 | M12: 63 | N12: 0 | O12: 37 | P12: 7.6 | Q12: 3.5 | R12: 2.8 | S12: 0.79 | T12: 28 | U12: 8.1 | V12: 3.2 | W12: 0 | X12: GF | Y12: 100 | Z12: 8.1 | AA12: 35.2 | AB12: 69.2 | AC12: 0.12 | AD12: 0.4 | AE12: 0.03
A13: 1025 | B13: Wiesengras. 2.Schnitt | C13: 200 | D13: 241 | E13: 510 | F13: 285 | G13: 144 | H13: 133.39 | I13: 27.43 | J13: 1.6976 | K13: 6.09 | L13: 10.56 | M13: 63 | N13: 0 | O13: 35 | P13: 7.3 | Q13: 3.4 | R13: 2.6 | S13: 0.62 | T13: 27.4 | U13: 8 | V13: 2.7 | X13: GF | Y13: 100 | Z13: 8 | AA13: 33.1 | AB13: 71.1 | AC13: 0.12 | AD13: 0.4 | AE13: 0.03
A14: 1026 | B14: Wiesengras, 2.u Folge, Beg Blüte | C14: 200 | D14: 259 | E14: 537 | F14: 304 | G14: 124 | H14: 126.59 | I14: 23.62 | J14: -0.4144 | K14: 5.85 | L14: 9.95 | M14: 63 | N14: 0 | O14: 31 | P14: 6.9 | Q14: 3.2 | R14: 2.4 | S14: 0.55 | T14: 25.6 | U14: 7.7 | V14: 2.5 | X14: GF | Y14: 100 | Z14: 7.6 | AA14: 31.8 | AB14: 80.7 | AC14: 0.12 | AD14: 0.4 | AE14: 0.03
A15: 1028 | B15: Wiesengras, 3. Schnitt | C15: 200 | D15: 237 | E15: 480 | F15: 266 | G15: 168 | H15: 135.9 | I15: 32.01 | J15: 5.136 | K15: 6.01 | L15: 10.74 | M15: 72 | N15: 0 | O15: 31 | P15: 8.2 | Q15: 3.4 | R15: 2.9 | S15: 0.78 | T15: 24.3 | U15: 7.6 | V15: 2.7 | X15: GF | Y15: 250 | Z15: 8.1 | AA15: 32.5 | AB15: 72 | AC15: 0.12 | AD15: 0.4 | AE15: 0.03
A16: 1029 | B16: Wiesengras, ab 4. Schnitt | C16: 180 | D16: 212 | E16: 470 | F16: 260 | G16: 202 | H16: 144.64 | I16: 38.49 | J16: 9.1776 | K16: 6.25 | L16: 11.43 | M16: 86 | N16: 0 | O16: 33 | P16: 8.5 | Q16: 3.7 | R16: 3 | S16: 1 | T16: 26.8 | U16: 7.8 | V16: 3.2 | X16: GF | Y16: 300 | Z16: 8.4 | AA16: 33 | AB16: 74.1 | AC16: 0.12 | AD16: 0.4 | AE16: 0.03
A17: 1055 | B17: Weidegras, 1. Aufwuchs | C17: 190 | D17: 180 | E17: 400 | F17: 210 | G17: 196 | H17: 149.54 | I17: 37.34 | J17: 7.4336 | K17: 7.05 | L17: 12.86 | M17: 121 | N17: 0 | O17: 35 | P17: 7 | Q17: 3.7 | R17: 2.4 | S17: 0.7 | T17: 30 | U17: 7 | V17: 3 | X17: GF | Y17: 150 | Z17: 7.9 | AA17: 42 | AB17: 40 | AC17: 0.12 | AD17: 0.4 | AE17: 0.03
A18: 1065 | B18: Weidegras, ab 2.Aufwuchs | C18: 200 | D18: 214 | E18: 430 | F18: 230 | G18: 192 | H18: 141.48 | I18: 36.58 | J18: 8.0832 | K18: 6.55 | L18: 11.91 | M18: 94 | N18: 0 | O18: 35 | P18: 7.6 | Q18: 4.2 | R18: 3 | S18: 0.8 | T18: 25 | U18: 8.3 | V18: 3 | X18: GF | Y18: 250 | Z18: 8.4 | AA18: 42 | AB18: 50 | AC18: 0.12 | AD18: 0.4 | AE18: 0.03
A19: 1075 | B19: Gras, angewelkt, 1.Schnitt | C19: 350 | D19: 220 | E19: 430 | F19: 260 | G19: 160 | H19: 142.52 | I19: 30.48 | J19: 2.7968 | K19: 6.53 | L19: 11.82 | M19: 135 | N19: 0 | O19: 35 | P19: 6.5 | Q19: 3.5 | R19: 2.2 | S19: 0.79 | T19: 28.9 | U19: 6.6 | V19: 2.4 | X19: GF | Y19: 200 | Z19: 7.7 | AA19: 33 | AB19: 50 | AC19: 0.12 | AD19: 0.4 | AE19: 0.03
A20: 1085 | B20: Gras, angewelkt, ab 2.Schnitt | C20: 350 | D20: 230 | E20: 480 | F20: 270 | G20: 165 | H20: 137.4 | I20: 31.43 | J20: 4.416 | K20: 6.14 | L20: 10.9 | M20: 90 | N20: 0 | O20: 35 | P20: 7.8 | Q20: 3.6 | R20: 2.8 | S20: 1.02 | T20: 28.1 | U20: 7.8 | V20: 2.8 | X20: GF | Y20: 300 | Z20: 8 | AA20: 38.8 | AB20: 47.7 | AC20: 0.12 | AD20: 0.4 | AE20: 0.03
A21: 1125 | B21: GrünGerste | C21: 290 | D21: 235 | E21: 580 | F21: 320 | G21: 108 | H21: 143.02 | I21: 21.3 | J21: -5.6032 | K21: 7.01 | L21: 10.3 | M21: 90 | N21: 0 | O21: 25 | P21: 4.8 | Q21: 2.6 | R21: 1.5 | S21: 0.29 | T21: 23.8 | U21: 1.8 | V21: 1.8 | X21: GF | Y21: 100 | Z21: 5.1 | AA21: 29.9 | AB21: 45.4 | AC21: 0.12 | AD21: 0.35 | AE21: 0.02
A22: 1145 | B22: GrünHafer | C22: 290 | D22: 285 | E22: 530 | F22: 340 | G22: 111 | H22: 128.18 | I22: 21.89 | J22: -2.7488 | K22: 6.07 | L22: 10.17 | M22: 104 | N22: 0 | O22: 32 | P22: 5.7 | Q22: 3.4 | R22: 2.2 | S22: 0.71 | T22: 27 | U22: 3.9 | V22: 1.8 | X22: GF | Y22: 191.6 | Z22: 7.3 | AA22: 27.6 | AB22: 50.3 | AC22: 0.12 | AD22: 0.35 | AE22: 0.02
A23: 1165 | B23: GrünRoggen | C23: 260 | D23: 300 | E23: 520 | F23: 330 | G23: 115 | H23: 131.42 | I23: 22.68 | J23: -2.6272 | K23: 6.25 | L23: 10.17 | M23: 93 | N23: 0 | O23: 32 | P23: 4.3 | Q23: 3.7 | R23: 1.6 | S23: 0.33 | T23: 30.2 | U23: 5 | V23: 1.8 | X23: GF | Y23: 202.5 | Z23: 6.5 | AA23: 27.4 | AB23: 43.3 | AC23: 0.12 | AD23: 0.35 | AE23: 0.02
A24: 1203 | B24: GrünMais, in der Kolbenbildung | C24: 200 | D24: 248 | E24: 501 | F24: 284 | G24: 82 | H24: 123.98 | I24: 15.63 | J24: -6.7168 | K24: 5.99 | L24: 10.31 | M24: 226 | N24: 19.78 | O24: 17 | P24: 3 | Q24: 2.2 | R24: 1.7 | S24: 0.2 | T24: 12.1 | U24: 1.5 | V24: 1.1 | X24: GF | Y24: 120 | Z24: 7.7 | AA24: 30 | AB24: 26.5 | AC24: 0.1 | AD24: 0.3 | AE24: 0.01
A25: 1204 | B25: GrünMais, in der Milchreife | C25: 225 | D25: 230 | E25: 475 | F25: 266 | G25: 76 | H25: 124.99 | I25: 14.48 | J25: -7.8384 | K25: 6.17 | L25: 10.61 | M25: 257 | N25: 31.51 | O25: 20 | P25: 2.9 | Q25: 2.2 | R25: 1.7 | S25: 0.2 | T25: 12.1 | U25: 1.5 | V25: 1.1 | X25: GF | Y25: 110 | Z25: 7.7 | AA25: 30 | AB25: 26.5 | AC25: 0.08 | AD25: 0.3 | AE25: 0.01
A26: 1205 | B26: GrünMais | C26: 240 | D26: 210 | E26: 430 | F26: 245 | G26: 74 | H26: 127.75 | I26: 14.1 | J26: -8.6 | K26: 6.4 | L26: 10.94 | M26: 303 | N26: 46.69 | O26: 24 | P26: 2.8 | Q26: 2.2 | R26: 1.7 | S26: 0.2 | T26: 12.1 | U26: 1.5 | V26: 1.1 | X26: GF | Y26: 100 | Z26: 7.7 | AA26: 30 | AB26: 26.5 | AC26: 0.07 | AD26: 0.3 | AE26: 0.01
A27: 1265 | B27: Mais, Restpflanze, grün | C27: 350 | D27: 270 | E27: 553 | F27: 330 | G27: 42 | H27: 101 | I27: 6.34 | J27: -9.44 | K27: 5.13 | L27: 6.26 | M27: 97 | N27: 9.2 | O27: 15 | P27: 3.2 | Q27: 2.5 | R27: 0.9 | S27: 0.02 | T27: 10.9 | U27: 2.2 | V27: 1.1 | X27: GF | Y27: 45.5 | Z27: 4.4 | AA27: 16.2 | AB27: 13.7 | AC27: 0.08 | AD27: 0.3 | AE27: 0.01
A28: 1275 | B28: GrünMais, zum Silieren | C28: 340 | D28: 200 | E28: 400 | F28: 225 | G28: 76 | H28: 132.35 | I28: 14.48 | J28: -9.016 | K28: 6.69 | L28: 11.26 | M28: 410 | N28: 48 | O28: 30 | P28: 2 | Q28: 2.3 | R28: 1.5 | S28: 0.26 | T28: 12 | U28: 1.1 | V28: 1 | X28: GF | Y28: 100 | Z28: 5 | AA28: 34 | AB28: 35 | AC28: 0.07 | AD28: 0.3 | AE28: 0.01
A29: 1305 | B29: Ackerbohnen, grün | C29: 200 | D29: 330 | E29: 506 | F29: 386 | G29: 150 | H29: 110.83 | I29: 12.32 | J29: 6.2672 | K29: 4.87 | L29: 10.82 | M29: 47 | N29: 0 | O29: 20 | P29: 15.5 | Q29: 3.5 | R29: 3.3 | S29: 2 | T29: 23 | U29: 2 | V29: 2 | X29: GF | Y29: 200 | Z29: 9 | AA29: 50 | AB29: 60 | AC29: 0.12 | AD29: 0.35 | AE29: 0.02
A30: 1306 | B30: Sojabohnen, grün | C30: 300 | D30: 274 | E30: 453 | F30: 349 | G30: 186 | H30: 126.24 | I30: 15.27 | J30: 9.5616 | K30: 5.62 | L30: 10.71 | M30: 44 | N30: 0 | O30: 22 | P30: 15.8 | Q30: 3.9 | R30: 4.3 | S30: 0.4 | T30: 27.1 | U30: 1.5 | V30: 2.4 | X30: GF | Y30: 600 | Z30: 10.5 | AA30: 41 | AB30: 64 | AC30: 0.12 | AD30: 0.35 | AE30: 0.02
A31: 1315 | B31: Hülsenfrucht Gemenge | C31: 200 | D31: 265 | E31: 607 | F31: 330 | G31: 120 | H31: 126.85 | I31: 9.85 | J31: -1.096 | K31: 5.89 | L31: 11.13 | M31: 101 | N31: 0 | O31: 22 | P31: 7 | Q31: 4 | R31: 1.8 | S31: 0.4 | T31: 30 | U31: 2 | V31: 3 | X31: GF | Y31: 200 | Z31: 9 | AA31: 50 | AB31: 60 | AC31: 0.12 | AD31: 0.35 | AE31: 0.02
A32: 1335 | B32: Erbs- Wick- Gemenge | C32: 180 | D32: 269 | E32: 571 | F32: 342 | G32: 169 | H32: 134.2 | I32: 13.88 | J32: 5.568 | K32: 5.87 | L32: 11.54 | M32: 52 | N32: 0 | O32: 28 | P32: 7.7 | Q32: 4.8 | R32: 2 | S32: 0.29 | T32: 28.5 | U32: 5.1 | V32: 3.1 | X32: GF | Y32: 378.4 | Z32: 4.8 | AA32: 31.2 | AB32: 36.1 | AC32: 0.12 | AD32: 0.35 | AE32: 0.02
A33: 1345 | B33: Grünerbsen (Ganzpflanze) | C33: 170 | D33: 262 | E33: 453 | F33: 336 | G33: 197 | H33: 145.93 | I33: 16.17 | J33: 8.1712 | K33: 5.91 | L33: 11.3 | M33: 58 | N33: 0 | O33: 27 | P33: 11 | Q33: 5 | R33: 2.5 | S33: 0.5 | T33: 30 | U33: 2 | V33: 2 | X33: GF | Y33: 200 | Z33: 9 | AA33: 50 | AB33: 60 | AC33: 0.12 | AD33: 0.35 | AE33: 0.02
A34: 1355 | B34: Hülsenfrüchte- Sonnenbl- Gem | C34: 240 | D34: 398 | E34: 575 | F34: 461 | G34: 130 | H34: 105.49 | I34: 10.68 | J34: 3.9216 | K34: 4.45 | L34: 10.54 | M34: 59 | N34: 0 | O34: 22 | P34: 0 | Q34: 0 | R34: 0 | S34: 0 | T34: 0 | U34: 0 | V34: 0 | X34: GF | Y34: 0 | Z34: 0 | AA34: 0 | AB34: 0 | AC34: 0.12 | AD34: 0.35 | AE34: 0.01
A35: 1375 | B35: Wick- Roggen | C35: 200 | D35: 300 | E35: 620 | F35: 350 | G35: 120 | H35: 125.1 | I35: 22.86 | J35: -0.816 | K35: 5.78 | L35: 11.6 | M35: 80 | N35: 0 | O35: 21 | P35: 5 | Q35: 4 | R35: 1.9 | S35: 0.1 | T35: 30 | U35: 2 | V35: 2 | X35: GF | Y35: 200 | Z35: 9 | AA35: 50 | AB35: 60 | AC35: 0.12 | AD35: 0.35 | AE35: 0.02
A36: 1424 | B36: Raps, grün, jung, blattreich | C36: 120 | D36: 134 | E36: 367 | F36: 209 | G36: 180 | H36: 146.26 | I36: 17.91 | J36: 5.3984 | K36: 6.65 | L36: 11.41 | M36: 133 | N36: 0 | O36: 41 | P36: 17 | Q36: 4.5 | R36: 2.6 | S36: 1.3 | T36: 32 | U36: 11 | V36: 7 | X36: GF | Y36: 200 | Z36: 7 | AA36: 22 | AB36: 95 | AC36: 0.12 | AD36: 0.35 | AE36: 0.03
A37: 1425 | B37: Raps, grün | C37: 180 | D37: 215 | E37: 435 | F37: 283 | G37: 150 | H37: 127.12 | I37: 14.92 | J37: 3.6608 | K37: 5.69 | L37: 11.27 | M37: 76 | N37: 0 | O37: 37 | P37: 19 | Q37: 5 | R37: 2.6 | S37: 1.4 | T37: 32 | U37: 11 | V37: 7 | X37: GF | Y37: 200 | Z37: 7 | AA37: 22 | AB37: 95 | AC37: 0.12 | AD37: 0.35 | AE37: 0.03
A38: 1435 | B38: Perko, grün | C38: 100 | D38: 127 | E38: 320 | F38: 190 | G38: 216 | H38: 144.95 | I38: 21.48 | J38: 11.368 | K38: 6.26 | L38: 10.58 | M38: 110 | N38: 0 | O38: 38 | P38: 13 | Q38: 6 | R38: 1.2 | S38: 1.1 | T38: 30 | U38: 9 | V38: 4 | X38: GF | Y38: 200 | Z38: 8 | AA38: 50 | AB38: 60 | AC38: 0.12 | AD38: 0.35 | AE38: 0.1
A39: 1444 | B39: Rübsen, jung, blattreich | C39: 110 | D39: 107 | E39: 290 | F39: 170 | G39: 180 | H39: 148.01 | I39: 17.91 | J39: 5.1184 | K39: 6.85 | L39: 11.02 | M39: 90 | N39: 0 | O39: 42 | P39: 16 | Q39: 3.6 | R39: 2.4 | S39: 0.9 | T39: 30 | U39: 9 | V39: 4 | X39: GF | Y39: 200 | Z39: 8 | AA39: 50 | AB39: 60 | AC39: 0.12 | AD39: 0.35 | AE39: 0.1
A40: 1445 | B40: Rübsen, grün | C40: 120 | D40: 146 | E40: 350 | F40: 205 | G40: 189 | H40: 146.34 | I40: 18.8 | J40: =(G40-H40)/6.25 -> 6.8256 | K40: 6.62 | L40: 11.04 | M40: 70 | N40: 0 | O40: 37 | P40: 16 | Q40: 4.6 | R40: 2.7 | S40: 1.4 | T40: 30 | U40: 9 | V40: 4 | X40: GF | Y40: 200 | Z40: 8 | AA40: 50 | AB40: 60 | AC40: 0.12 | AD40: 0.35 | AE40: 0.1
A41: 1455 | B41: Sonnenblumen, grün | C41: 190 | D41: 220 | E41: 430 | F41: 290 | G41: 120 | H41: 120.41 | I41: 9.85 | J41: -0.0656 | K41: 5.51 | L41: 10.25 | M41: 110 | N41: 0 | O41: 50 | P41: 0 | Q41: 0 | R41: 0 | S41: 0 | T41: 0 | U41: 0 | V41: 0 | X41: GF | Y41: 0 | Z41: 0 | AA41: 0 | AB41: 0 | AC41: 0.12 | AD41: 0.35 | AE41: 0.01
A42: 1465 | B42: Senf, grün | C42: 140 | D42: 210 | E42: 430 | F42: 250 | G42: 215 | H42: 138.14 | I42: 21.39 | J42: 12.2976 | K42: 5.75 | L42: 10.96 | M42: 110 | N42: 0 | O42: 26 | P42: 15.5 | Q42: 4 | R42: 3.4 | S42: 0 | T42: 25 | U42: 9 | V42: 4 | X42: GF | Y42: 200 | Z42: 8 | AA42: 50 | AB42: 60 | AC42: 0.12 | AD42: 0.35 | AE42: 0.1
A43: 1485 | B43: Markstammkohl | C43: 115 | D43: 144 | E43: 345 | F43: 205 | G43: 178 | H43: 146.39 | I43: 17.71 | J43: 5.0576 | K43: 6.69 | L43: 11.52 | M43: 50 | N43: 0 | O43: 30 | P43: 19.7 | Q43: 3.5 | R43: 2 | S43: 1.7 | T43: 29 | U43: 11.4 | V43: 6.1 | X43: GF | Y43: 200 | Z43: 6.3 | AA43: 35 | AB43: 27 | AC43: 0.12 | AD43: 0.35 | AE43: 0.1
A44: 1505 | B44: Zuckerrübenblatt, sauber | C44: 160 | D44: 109 | E44: 295 | F44: 175 | G44: 160 | H44: 138.81 | I44: 30.12 | J44: 3.3904 | K44: 6.45 | L44: 10.72 | M44: 220 | N44: 0 | O44: 21 | P44: 12.4 | Q44: 2.5 | R44: 4.8 | S44: 9.5 | T44: 35 | U44: 15 | V44: 5.2 | X44: GF | Y44: 250 | Z44: 11.5 | AA44: 72 | AB44: 179 | AC44: 0.37 | AD44: 0.83 | AE44: 0.1
A45: 1555 | B45: Futterrübenblatt, sauber | C45: 120 | D45: 114 | E45: 300 | F45: 180 | G45: 138 | H45: 126.36 | I45: 25.98 | J45: 1.8624 | K45: 5.86 | L45: 9.83 | M45: 100 | N45: 0 | O45: 22 | P45: 20 | Q45: 2.5 | R45: 6.1 | S45: 6.1 | T45: 45 | U45: 13.3 | V45: 6.2 | X45: GF | Y45: 250 | Z45: 8.3 | AA45: 50 | AB45: 130 | AC45: 0.3 | AD45: 0.8 | AE45: 0.1
A46: 1614 | B46: Rotklee, 1.Schnitt, vor der Knospe | C46: 140 | D46: 200 | E46: 355 | F46: 275 | G46: 261 | H46: 165.55 | I46: 17.75 | J46: 15.272 | K46: 6.38 | L46: 10.36 | M46: 80 | N46: 0 | O46: 34 | P46: 10 | Q46: 3.7 | R46: 2.5 | S46: 0.5 | T46: 32 | U46: 3 | V46: 2.3 | X46: GF | Y46: 150 | Z46: 7.7 | AA46: 30 | AB46: 40 | AC46: 0.12 | AD46: 0.35 | AE46: 0.03
A47: 1615 | B47: Rotklee, 1.Schnitt | C47: 155 | D47: 215 | E47: 385 | F47: 305 | G47: 219 | H47: 151.51 | I47: 14.89 | J47: 10.7984 | K47: 6.01 | L47: 10.01 | M47: 80 | N47: 0 | O47: 28 | P47: 10 | Q47: 3.7 | R47: 2.5 | S47: 0.5 | T47: 32 | U47: 3 | V47: 2.3 | X47: GF | Y47: 150 | Z47: 7.7 | AA47: 30 | AB47: 40 | AC47: 0.12 | AD47: 0.35 | AE47: 0.03
A48: 1616 | B48: Rotklee, 1.Schnitt, Beginn Blüte | C48: 160 | D48: 230 | E48: 425 | F48: 345 | G48: 166 | H48: 134.04 | I48: 11.29 | J48: 5.1136 | K48: 5.57 | L48: 9.56 | M48: 80 | N48: 0 | O48: 24 | P48: 10 | Q48: 3.7 | R48: 2.5 | S48: 0.5 | T48: 32 | U48: 3 | V48: 2.3 | X48: GF | Y48: 150 | Z48: 7.7 | AA48: 30 | AB48: 40 | AC48: 0.12 | AD48: 0.35 | AE48: 0.03
A49: 1624 | B49: Rotklee, 2. FolgeSchnitte, v d Kn | C49: 170 | D49: 210 | E49: 370 | F49: 290 | G49: 235 | H49: 150.48 | I49: 15.98 | J49: 13.5232 | K49: 5.71 | L49: 9.65 | M49: 60 | N49: 0 | O49: 29 | P49: 14 | Q49: 3.9 | R49: 3 | S49: 0.5 | T49: 35 | U49: 4.4 | V49: 2.5 | X49: GF | Y49: 150 | Z49: 8.8 | AA49: 35 | AB49: 45 | AC49: 0.12 | AD49: 0.35 | AE49: 0.03
A50: 1625 | B50: Rotklee, ab 2.Schnitt | C50: 190 | D50: 217 | E50: 410 | F50: 330 | G50: 211 | H50: 140.36 | I50: 14.35 | J50: 11.3024 | K50: 5.36 | L50: 9.14 | M50: 60 | N50: 0 | O50: 27 | P50: 14 | Q50: 3.9 | R50: 3 | S50: 0.5 | T50: 35 | U50: 4.4 | V50: 2.5 | X50: GF | Y50: 150 | Z50: 8.8 | AA50: 35 | AB50: 45 | AC50: 0.12 | AD50: 0.35 | AE50: 0.03
A51: 1626 | B51: Rotklee, 2.und Folge, Begi Blüte | C51: 210 | D51: 282 | E51: 450 | F51: 370 | G51: 164 | H51: 123.6 | I51: 11.15 | J51: 6.464 | K51: 4.9 | L51: 8.57 | M51: 60 | N51: 0 | O51: 25 | P51: 14 | Q51: 3.9 | R51: 3 | S51: 0.5 | T51: 35 | U51: 4.4 | V51: 2.5 | X51: GF | Y51: 150 | Z51: 8.8 | AA51: 35 | AB51: 45 | AC51: 0.12 | AD51: 0.35 | AE51: 0.03
A52: 1633 | B52: KleeGras, 1.Schnitt, vor der Knospe | C52: 150 | D52: 215 | E52: 380 | F52: 220 | G52: 200 | H52: 151.53 | I52: 13.6 | J52: 7.7552 | K52: 6.75 | L52: 11.52 | M52: 80 | N52: 0 | O52: 29 | P52: 8.3 | Q52: 3.9 | R52: 2.7 | S52: 0.6 | T52: 35.1 | U52: 4.5 | V52: 2.5 | X52: GF | Y52: 150 | Z52: 8.4 | AA52: 32 | AB52: 39 | AC52: 0.12 | AD52: 0.35 | AE52: 0.03
A53: 1634 | B53: KleeGras, 1.Schnitt, in der Knospe | C53: 160 | D53: 225 | E53: 410 | F53: 250 | G53: 180 | H53: 143.97 | I53: 12.24 | J53: 5.7648 | K53: 6.44 | L53: 11.07 | M53: 80 | N53: 0 | O53: 28 | P53: 8.3 | Q53: 3.8 | R53: 2.2 | S53: 0.6 | T53: 33 | U53: 4.5 | V53: 2.2 | X53: GF | Y53: 150 | Z53: 7 | AA53: 30 | AB53: 39 | AC53: 0.12 | AD53: 0.35 | AE53: 0.03
A54: 1635 | B54: KleeGras, 1.Schnitt | C54: 175 | D54: 235 | E54: 440 | F54: 280 | G54: 160 | H54: 136.52 | I54: 10.88 | J54: 3.7568 | K54: 6.15 | L54: 10.64 | M54: 80 | N54: 0 | O54: 27 | P54: 8.3 | Q54: 3.5 | R54: 2.1 | S54: 0.6 | T54: 32 | U54: 4.5 | V54: 2 | X54: GF | Y54: 150 | Z54: 6.6 | AA54: 27 | AB54: 39 | AC54: 0.12 | AD54: 0.35 | AE54: 0.03
A55: 1636 | B55: KleeGras, 1.Schnitt, in der Blüte | C55: 200 | D55: 245 | E55: 470 | F55: 310 | G55: 140 | H55: 131.96 | I55: 9.52 | J55: 1.2864 | K55: 5.8 | L55: 10.18 | M55: 80 | N55: 0 | O55: 23 | P55: 8.3 | Q55: 3.3 | R55: 1.9 | S55: 0.6 | T55: 29 | U55: 4 | V55: 1.7 | X55: GF | Y55: 150 | Z55: 6.2 | AA55: 25.1 | AB55: 39 | AC55: 0.12 | AD55: 0.35 | AE55: 0.03
A56: 1644 | B56: KleeGras, 2.u Folge, vor d Kn | C56: 150 | D56: 218 | E56: 430 | F56: 283 | G56: 220 | H56: 140.12 | I56: 14.96 | J56: 12.7808 | K56: 5.76 | L56: 9.86 | M56: 53 | N56: 0 | O56: 29 | P56: 9.4 | Q56: 3.9 | R56: 2.8 | S56: 0.39 | T56: 36.4 | U56: 5.7 | V56: 2.8 | X56: GF | Y56: 175 | Z56: 8.9 | AA56: 33.5 | AB56: 40.7 | AC56: 0.12 | AD56: 0.35 | AE56: 0.03
A57: 1645 | B57: KleeGras, 2. Schnitt | C57: 175 | D57: 248 | E57: 466 | F57: 306 | G57: 180 | H57: 130.66 | I57: 12.24 | J57: 7.8944 | K57: 5.55 | L57: 9.72 | M57: 61 | N57: 0 | O57: 28 | P57: 9.4 | Q57: 3.9 | R57: 2.7 | S57: 0.38 | T57: 32.4 | U57: 5.7 | V57: 2.6 | X57: GF | Y57: 175 | Z57: 8.4 | AA57: 33.5 | AB57: 40.7 | AC57: 0.12 | AD57: 0.35 | AE57: 0.03
A58: 1646 | B58: KleeGras, 2.uFolge, Beg Blüte | C58: 190 | D58: 271 | E58: 509 | F58: 328 | G58: 150 | H58: 128.53 | I58: 10.2 | J58: 3.4352 | K58: 5.41 | L58: 9.68 | M58: 73 | N58: 0 | O58: 25 | P58: 9.4 | Q58: 3.9 | R58: 2.3 | S58: 0.43 | T58: 31 | U58: 5.7 | V58: 2.1 | X58: GF | Y58: 175 | Z58: 6.8 | AA58: 33.5 | AB58: 40.7 | AC58: 0.12 | AD58: 0.35 | AE58: 0.03
A59: 1648 | B59: KleeGras, 3.Schnitt | C59: 190 | D59: 238 | E59: 440 | F59: 295 | G59: 189 | H59: 133.04 | I59: 12.85 | J59: 8.9536 | K59: 5.61 | L59: 9.76 | M59: 56 | N59: 0 | O59: 27 | P59: 12.2 | Q59: 3.7 | R59: 2.9 | S59: 0.41 | T59: 29.8 | U59: 5.7 | V59: 2.5 | X59: GF | Y59: 82.6 | Z59: 8.9 | AA59: 30.6 | AB59: 40.3 | AC59: 0.12 | AD59: 0.35 | AE59: 0.03
A60: 1649 | B60: KleeGras, ab 4.Schnitt | C60: 170 | D60: 212 | E60: 427 | F60: 255 | G60: 211 | H60: 142.21 | I60: 14.35 | J60: 11.0064 | K60: 5.99 | L60: 10.35 | M60: 57 | N60: 0 | O60: 31 | P60: 10.6 | Q60: 4.3 | R60: 2.7 | S60: 0.66 | T60: 31.8 | U60: 7 | V60: 3 | X60: GF | Y60: 111.3 | Z60: 9 | AA60: 31.8 | AB60: 41.2 | AC60: 0.12 | AD60: 0.35 | AE60: 0.03
A61: 1655 | B61: Juraklee- Gras | C61: 170 | D61: 245 | E61: 500 | F61: 290 | G61: 185 | H61: 139.51 | I61: 12.58 | J61: =(G61-H61)/6.25 -> 7.2784 | K61: 6.08 | L61: 10.41 | M61: 50 | N61: 0 | O61: 30 | P61: 10 | Q61: 3.7 | R61: 1.9 | S61: 0.8 | T61: 35 | U61: 6 | V61: 2 | X61: GF | Y61: 200 | Z61: 9 | AA61: 50 | AB61: 60 | AC61: 0.12 | AD61: 0.35 | AE61: 0.1
A62: 1665 | B62: Alexandrinerklee | C62: 125 | D62: 237 | E62: 485 | F62: 285 | G62: 200 | H62: 156 | I62: 13.6 | J62: =(G62-H62)/6.25 -> 7.04 | K62: 6.13 | L62: 10.08 | M62: 80 | N62: 0 | O62: 43 | P62: 16 | Q62: 3.9 | R62: 3.2 | S62: 1.3 | T62: 33 | U62: 6 | V62: 2 | X62: GF | Y62: 150 | Z62: 9 | AA62: 55 | AB62: 60 | AC62: 0.12 | AD62: 0.35 | AE62: 0.1
A63: 1685 | B63: Perserklee | C63: 118 | D63: 218 | E63: 455 | F63: 265 | G63: 203 | H63: 146.74 | I63: 13.8 | J63: 9.0016 | K63: 5.95 | L63: 10.1 | M63: 80 | N63: 0 | O63: 24 | P63: 16 | Q63: 3.5 | R63: 2 | S63: 1.35 | T63: 28 | U63: 6 | V63: 2 | X63: GF | Y63: 150 | Z63: 9 | AA63: 50 | AB63: 60 | AC63: 0.12 | AD63: 0.35 | AE63: 0.1
A64: 1714 | B64: Luzerne, 1.Schnitt, in der Knospe | C64: 150 | D64: 233 | E64: 368 | F64: 310 | G64: 236 | H64: 145.53 | I64: 31.68 | J64: 14.4752 | K64: 5.95 | L64: 9.91 | M64: 50 | N64: 0 | O64: 26 | P64: 16 | Q64: 3.8 | R64: 3.1 | S64: 0.5 | T64: 32 | U64: 2.8 | V64: 2.5 | X64: GF | Y64: 150 | Z64: 7.2 | AA64: 29 | AB64: 29 | AC64: 0.15 | AD64: 0.3 | AE64: 0.03
A65: 1715 | B65: Luzerne, 1.Schnitt | C65: 180 | D65: 246 | E65: 400 | F65: 320 | G65: 203 | H65: 145.05 | I65: 27.24 | J65: 9.272 | K65: 5.79 | L65: 9.87 | M65: 50 | N65: 0 | O65: 23 | P65: 14.5 | Q65: 3.5 | R65: 2.8 | S65: 0.5 | T65: 31 | U65: 2.8 | V65: 2.5 | X65: GF | Y65: 150 | Z65: 7.2 | AA65: 29 | AB65: 29 | AC65: 0.15 | AD65: 0.3 | AE65: 0.03
A66: 1716 | B66: Luzerne, 1.Schnitt, Ende Blüte | C66: 210 | D66: 283 | E66: 465 | F66: 350 | G66: 160 | H66: 136.6 | I66: 21.48 | J66: 3.744 | K66: 5.48 | L66: 9.53 | M66: 50 | N66: 0 | O66: 22 | P66: 13 | Q66: 3 | R66: 2.5 | S66: 0.5 | T66: 30 | U66: 2.8 | V66: 2.5 | X66: GF | Y66: 150 | Z66: 7.2 | AA66: 29 | AB66: 29 | AC66: 0.15 | AD66: 0.3 | AE66: 0.03
A67: 1724 | B67: Luzerne, 2.u FolgeSchn, i d Kn | C67: 180 | D67: 223 | E67: 357 | F67: 264 | G67: 244 | H67: 146.66 | I67: 32.75 | J67: 15.5744 | K67: 5.94 | L67: 10.02 | M67: 55 | N67: 0 | O67: 27 | P67: 16 | Q67: 4.1 | R67: 3.2 | S67: 0.5 | T67: 31 | U67: 3 | V67: 2.9 | X67: GF | Y67: 150 | Z67: 8 | AA67: 27 | AB67: 31 | AC67: 0.15 | AD67: 0.3 | AE67: 0.03
A68: 1725 | B68: Luzerne ab 2.Schnitt | C68: 195 | D68: 280 | E68: 421 | F68: 331 | G68: 208 | H68: 138.47 | I68: 27.92 | J68: 11.1248 | K68: 5.27 | L68: 8.98 | M68: 55 | N68: 0 | O68: 24 | P68: 15 | Q68: 3.7 | R68: 2.8 | S68: 0.5 | T68: 30 | U68: 3 | V68: 2.9 | X68: GF | Y68: 150 | Z68: 8 | AA68: 27 | AB68: 31 | AC68: 0.15 | AD68: 0.3 | AE68: 0.03
A69: 1726 | B69: Luzerne 2.u FolgeSchn, Ende Bl | C69: 210 | D69: 327 | E69: 473 | F69: 379 | G69: 177 | H69: 125.43 | I69: 23.75 | J69: 8.2512 | K69: 4.83 | L69: 8.35 | M69: 55 | N69: 0 | O69: 22 | P69: 14 | Q69: 3.4 | R69: 2.2 | S69: 0.5 | T69: 29 | U69: 3 | V69: 2.9 | X69: GF | Y69: 150 | Z69: 8 | AA69: 27 | AB69: 31 | AC69: 0.15 | AD69: 0.3 | AE69: 0.03
A70: 1734 | B70: LuzerneGras, 1.Schnitt, vor d Kn | C70: 160 | D70: 205 | E70: 385 | F70: 238 | G70: 195 | H70: 148.14 | I70: 26.17 | J70: 7.4976 | K70: 6.57 | L70: 11.29 | M70: 75 | N70: 0 | O70: 25 | P70: 10.4 | Q70: 3.9 | R70: 2.2 | S70: 0.58 | T70: 32.9 | U70: 2.6 | V70: 2.4 | X70: GF | Y70: 100 | Z70: 7.8 | AA70: 36.4 | AB70: 44.7 | AC70: 0.12 | AD70: 0.35 | AE70: 0.03
A71: 1735 | B71: LuzerneGras, 1.Schnitt | C71: 170 | D71: 243 | E71: 432 | F71: 288 | G71: 183 | H71: 139.52 | I71: 24.56 | J71: 6.9568 | K71: 6.1 | L71: 10.52 | M71: 61 | N71: 0 | O71: 25 | P71: 8.9 | Q71: 3.6 | R71: 2.2 | S71: 0.26 | T71: 32 | U71: 2.6 | V71: 2.4 | X71: GF | Y71: 100 | Z71: 7.8 | AA71: 31.3 | AB71: 38.9 | AC71: 0.12 | AD71: 0.35 | AE71: 0.03
A72: 1736 | B72: LuzerneGras, 1.Schnitt, i d Bl | C72: 180 | D72: 300 | E72: 503 | F72: 346 | G72: 161 | H72: 127.4 | I72: 21.61 | J72: 5.376 | K72: 5.53 | L72: 9.58 | M72: 47 | N72: 0 | O72: 24 | P72: 8.7 | Q72: 3.5 | R72: 2.2 | S72: 0.13 | T72: 28.3 | U72: 2.6 | V72: 2.4 | X72: GF | Y72: 100 | Z72: 7.8 | AA72: 30.1 | AB72: 30 | AC72: 0.12 | AD72: 0.35 | AE72: 0.03
A73: 1744 | B73: LuzerneGras, 2.u Folge, i d Kn | C73: 190 | D73: 213 | E73: 381 | F73: 256 | G73: 229 | H73: 145.21 | I73: 30.73 | J73: =(G73-H73)/6.25 -> 13.4064 | K73: 6 | L73: 10.26 | M73: 46 | N73: 0 | O73: 29 | P73: 14.5 | Q73: 4.2 | R73: 3.1 | S73: 0.43 | T73: 33.1 | U73: 4.2 | V73: 3.3 | X73: GF | Y73: 100 | Z73: 9.3 | AA73: 30 | AB73: 45.1 | AC73: 0.12 | AD73: 0.35 | AE73: 0.03
A74: 1745 | B74: LuzerneGras, ab 2.Schnitt | C74: 195 | D74: 259 | E74: 431 | F74: 307 | G74: 196 | H74: 132.7 | I74: 26.31 | J74: 10.128 | K74: 5.52 | L74: 9.58 | M74: 40 | N74: 0 | O74: 27 | P74: 14.5 | Q74: 3.6 | R74: 2.8 | S74: 0.4 | T74: 31.1 | U74: 3.4 | V74: 2.9 | X74: GF | Y74: 100 | Z74: 8.1 | AA74: 30 | AB74: 36.6 | AC74: 0.12 | AD74: 0.35 | AE74: 0.03
A75: 1746 | B75: LuzerneGras, 2.u FolgeSchn, i d Bl | C75: 200 | D75: 315 | E75: 485 | F75: 367 | G75: 177 | H75: 120.82 | I75: 23.75 | J75: 8.9888 | K75: 4.94 | L75: 8.61 | M75: 28 | N75: 0 | O75: 24 | P75: 14.5 | Q75: 3.3 | R75: 2.6 | S75: 0.4 | T75: 29 | U75: 1.7 | V75: 2.7 | X75: GF | Y75: 100 | Z75: 7.6 | AA75: 30 | AB75: 29.6 | AC75: 0.12 | AD75: 0.35 | AE75: 0.03
A76: 1814 | B76: Weidelgras, 1.Schnitt, im Schossen | C76: 170 | D76: 190 | E76: 420 | F76: 200 | G76: 171 | H76: 151.85 | I76: 32.96 | J76: 3.064 | K76: 7.08 | L76: 12.17 | M76: 180 | N76: 0 | O76: 31 | P76: 5.5 | Q76: 3.8 | R76: 1.8 | S76: 0.4 | T76: 36.7 | U76: 6 | V76: 2 | X76: GF | Y76: 200 | Z76: 6 | AA76: 31 | AB76: 50 | AC76: 0.12 | AD76: 0.35 | AE76: 0.03
A77: 1815 | B77: Weidelgras, 1.Schnitt | C77: 180 | D77: 220 | E77: 480 | F77: 260 | G77: 145 | H77: 138.23 | I77: 27.94 | J77: 1.0832 | K77: 6.43 | L77: 11.01 | M77: 150 | N77: 0 | O77: 27 | P77: 5.5 | Q77: 3.3 | R77: 1.8 | S77: 0.39 | T77: 33 | U77: 6 | V77: 2 | X77: GF | Y77: 200 | Z77: 6 | AA77: 31 | AB77: 50 | AC77: 0.12 | AD77: 0.35 | AE77: 0.03
A78: 1816 | B78: Weidelgras, 1.Schnitt, Beginn Blüte | C78: 190 | D78: 260 | E78: 530 | F78: 310 | G78: 110 | H78: 123.12 | I78: 21.2 | J78: -2.0992 | K78: 5.79 | L78: 9.75 | M78: 105 | N78: 0 | O78: 24 | P78: 5.5 | Q78: 3.2 | R78: 1.8 | S78: 0.37 | T78: 32.2 | U78: 6 | V78: 2 | X78: GF | Y78: 200 | Z78: 6 | AA78: 31 | AB78: 50 | AC78: 0.12 | AD78: 0.35 | AE78: 0.03
A79: 1824 | B79: Weidelgras, 2.uFolgeSchni, im Sch | C79: 180 | D79: 210 | E79: 447 | F79: 218 | G79: 195 | H79: 156.76 | I79: 37.58 | J79: 6.1184 | K79: 7.13 | L79: 12.56 | M79: 120 | N79: 0 | O79: 43 | P79: 5.5 | Q79: 3.8 | R79: 1.8 | S79: 0.4 | T79: 36.7 | U79: 6 | V79: 2 | X79: GF | Y79: 200 | Z79: 6 | AA79: 31 | AB79: 50 | AC79: 0.12 | AD79: 0.35 | AE79: 0.03
A80: 1825 | B80: Weidelgras, ab 2.Schnitt | C80: 190 | D80: 229 | E80: 496 | F80: 251 | G80: 175 | H80: 145.16 | I80: 33.73 | J80: 4.7744 | K80: 6.55 | L80: 11.35 | M80: 90 | N80: 0 | O80: 38 | P80: 5.5 | Q80: 3.3 | R80: 1.8 | S80: 0.4 | T80: 33 | U80: 6 | V80: 2 | X80: GF | Y80: 200 | Z80: 6 | AA80: 31 | AB80: 50 | AC80: 0.12 | AD80: 0.35 | AE80: 0.03
A81: 1826 | B81: Weidelgras, 2.und FolgeSchn, Beg Bl | C81: 200 | D81: 261 | E81: 538 | F81: 311 | G81: 160 | H81: 131.94 | I81: 30.83 | J81: 4.4896 | K81: 5.83 | L81: 10.3 | M81: 60 | N81: 0 | O81: 32 | P81: 5.5 | Q81: 3.2 | R81: 1.8 | S81: 0.4 | T81: 32.2 | U81: 6 | V81: 2 | X81: GF | Y81: 200 | Z81: 6 | AA81: 31 | AB81: 50 | AC81: 0.12 | AD81: 0.35 | AE81: 0.03
A82: 1865 | B82: Landsberger Gemenge | C82: 190 | D82: 202 | E82: 442 | F82: 254 | G82: 190 | H82: 141.15 | I82: 18.89 | J82: 7.816 | K82: 6.15 | L82: 10.98 | M82: 105 | N82: 0 | O82: 26 | P82: 7.3 | Q82: 3 | R82: 1.7 | S82: 0.45 | T82: 26 | U82: 5 | V82: 2 | X82: GF | Y82: 150 | Z82: 8 | AA82: 45 | AB82: 70 | AC82: 0.12 | AD82: 0.35 | AE82: 0.02
A83: 1875 | B83: Zuckerhirse | C83: 230 | D83: 315 | E83: 658 | F83: 392 | G83: 92 | H83: 121.98 | I83: 10.63 | J83: -4.7968 | K83: 5.85 | L83: 11.38 | M83: 99 | N83: 0 | O83: 20 | P83: 5.2 | Q83: 2.3 | R83: 2 | S83: 0.24 | T83: 16.1 | U83: 3.8 | V83: 1.4 | X83: GF | Y83: 150 | Z83: 7.3 | AA83: 30.9 | AB83: 33.8 | AC83: 0.12 | AD83: 0.4 | AE83: 0.01
A84: 1885 | B84: SudanGras | C84: 230 | D84: 330 | E84: 681 | F84: 408 | G84: 81 | H84: 108.71 | I84: 9.36 | J84: -4.4336 | K84: 5.11 | L84: 11.32 | M84: 29 | N84: 0 | O84: 18 | P84: 5.2 | Q84: 2.3 | R84: 2 | S84: 0.21 | T84: 16.1 | U84: 3.8 | V84: 1.4 | X84: GF | Y84: 150 | Z84: 7.3 | AA84: 30.9 | AB84: 33.8 | AC84: 0.12 | AD84: 0.4 | AE84: 0.01
A85: 2010 | B85: GrasSilage | C85: 350 | D85: 256 | E85: 515 | F85: 281 | G85: 165 | H85: 135.87 | I85: 21.81 | J85: 4.6608 | K85: 6.04 | L85: 10.62 | M85: 15 | N85: 0 | O85: 38 | P85: 6.3 | Q85: 3.8 | R85: 2.3 | S85: 0.8 | T85: 30 | U85: 7 | V85: 2.2 | X85: GF | Y85: 200 | Z85: 8.5 | AA85: 50 | AB85: 85 | AC85: 0.12 | AD85: 0.4 | AE85: 0.03
A86: 2013 | B86: GrasSilage, angew., 1.Schnitt, i Sch | C86: 350 | D86: 227 | E86: 488 | F86: 270 | G86: 179 | H86: 145.56 | I86: 23.65 | J86: 5.3504 | K86: 6.53 | L86: 11.68 | M86: 63 | N86: 0 | O86: 40 | P86: 6.8 | Q86: 3.7 | R86: 2.4 | S86: 0.89 | T86: 31.1 | U86: 7 | V86: 2.7 | X86: GF | Y86: 350 | Z86: 7.9 | AA86: 34.7 | AB86: 61.5 | AC86: 0.12 | AD86: 0.4 | AE86: 0.03
A87: 2014 | B87: GrasSilage, angew., 1.Sch, RispSch | C87: 350 | D87: 233 | E87: 491 | F87: 275 | G87: 159 | H87: 139.42 | I87: 21.01 | J87: 3.1328 | K87: 6.34 | L87: 11.18 | M87: 63 | N87: 0 | O87: 37 | P87: 6.7 | Q87: 3.5 | R87: 2.3 | S87: 0.71 | T87: 29.6 | U87: 6.7 | V87: 2.5 | X87: GF | Y87: 350 | Z87: 7.7 | AA87: 33 | AB87: 65 | AC87: 0.12 | AD87: 0.4 | AE87: 0.03
A88: 2015 | B88: GrasSilage, angewelkt, 1.Schnitt | C88: 350 | D88: 241 | E88: 510 | F88: 285 | G88: 144 | H88: 133.39 | I88: 19.03 | J88: 1.6976 | K88: 6.09 | L88: 10.56 | M88: 63 | N88: 0 | O88: 35 | P88: 6.5 | Q88: 3.4 | R88: 2.2 | S88: 0.59 | T88: 28.8 | U88: 6.6 | V88: 2.3 | W88: 0 | X88: GF | Y88: 350 | Z88: 7.5 | AA88: 32.4 | AB88: 69.8 | AC88: 0.12 | AD88: 0.4 | AE88: 0.03
A89: 2016 | B89: GrasSilage, angew., 1.Schn, Mitte Bl | C89: 350 | D89: 259 | E89: 537 | F89: 304 | G89: 124 | H89: 126.59 | I89: 16.39 | J89: -0.4144 | K89: 5.85 | L89: 9.95 | M89: 63 | N89: 0 | O89: 31 | P89: 6.1 | Q89: 3.2 | R89: 2 | S89: 0.51 | T89: 27.6 | U89: 6.6 | V89: 2.1 | X89: GF | Y89: 350 | Z89: 7.3 | AA89: 30.2 | AB89: 72 | AC89: 0.12 | AD89: 0.4 | AE89: 0.03
A90: 2024 | B90: GrasSilage, angew., 2.uFolge, Sch | C90: 350 | D90: 255 | E90: 495 | F90: 270 | G90: 169 | H90: 139 | I90: 22.33 | J90: 4.8 | K90: 6.2 | L90: 10.94 | M90: 50 | N90: 0 | O90: 40 | P90: 7.6 | Q90: 3.6 | R90: 2.7 | S90: 0.85 | T90: 28.7 | U90: 8.1 | V90: 2.9 | X90: GF | Y90: 380 | Z90: 8.2 | AA90: 34.5 | AB90: 68.2 | AC90: 0.12 | AD90: 0.4 | AE90: 0.03
A91: 2025 | B91: GrasSilage, angewelkt, 2.Schnitt | C91: 350 | D91: 275 | E91: 510 | F91: 285 | G91: 148 | H91: 130.95 | I91: 19.56 | J91: 2.728 | K91: 5.89 | L91: 10.23 | M91: 50 | N91: 0 | O91: 37 | P91: 7.4 | Q91: 3.5 | R91: 2.6 | S91: 0.75 | T91: 27.4 | U91: 8 | V91: 2.7 | X91: GF | Y91: 380 | Z91: 8 | AA91: 33.1 | AB91: 71.1 | AC91: 0.12 | AD91: 0.4 | AE91: 0.03
A92: 2026 | B92: GrasSil, angew., 2.u F, RispenSpr | C92: 350 | D92: 297 | E92: 535 | F92: 305 | G92: 128 | H92: 124.16 | I92: 16.91 | J92: 0.6144 | K92: 5.65 | L92: 9.64 | M92: 50 | N92: 0 | O92: 33 | P92: 7 | Q92: 3.3 | R92: 2.5 | S92: 0.6 | T92: 25.6 | U92: 7.7 | V92: 2.5 | X92: GF | Y92: 380 | Z92: 7.6 | AA92: 31.8 | AB92: 80.7 | AC92: 0.12 | AD92: 0.4 | AE92: 0.03
A93: 2028 | B93: GrasSilage, angewelkt, 3.Schnitt | C93: 350 | D93: 241 | E93: 488 | F93: 272 | G93: 165 | H93: 134.13 | I93: 21.81 | J93: 4.9392 | K93: 5.93 | L93: 10.49 | M93: 46 | N93: 0 | O93: 38 | P93: 8.3 | Q93: 3.5 | R93: 3 | S93: 0.9 | T93: 26.1 | U93: 7.7 | V93: 2.8 | X93: GF | Y93: 400 | Z93: 8.2 | AA93: 33 | AB93: 75 | AC93: 0.12 | AD93: 0.4 | AE93: 0.03
A94: 2029 | B94: GrasSilage, angewelkt, ab 4.Schnitt | C94: 335 | D94: 217 | E94: 476 | F94: 267 | G94: 180 | H94: 138.84 | I94: 23.79 | J94: 6.5856 | K94: 6.09 | L94: 10.93 | M94: 39 | N94: 0 | O94: 41 | P94: 8.6 | Q94: 3.8 | R94: 3.1 | S94: 1.1 | T94: 28 | U94: 7.8 | V94: 3.3 | X94: GF | Y94: 500 | Z94: 8.5 | AA94: 33.3 | AB94: 76.6 | AC94: 0.12 | AD94: 0.4 | AE94: 0.03
A95: 2034 | B95: GrasSilage, naß, 1.Schn, RispSch | C95: 250 | D95: 224 | E95: 465 | F95: 260 | G95: 180 | H95: 140.7 | I95: 23.79 | J95: 6.288 | K95: 6.23 | L95: 11.2 | M95: 25 | N95: 0 | O95: 40 | P95: 6.5 | Q95: 4 | R95: 2.35 | S95: 0.7 | T95: 31 | U95: 7 | V95: 2.2 | X95: GF | Y95: 200 | Z95: 9 | AA95: 45 | AB95: 80 | AC95: 0.12 | AD95: 0.4 | AE95: 0.03
A96: 2035 | B96: GrasSilage, naß, 1.Schnitt | C96: 250 | D96: 256 | E96: 515 | F96: 280 | G96: 165 | H96: 134.24 | I96: 21.81 | J96: 4.9216 | K96: 5.95 | L96: 10.37 | M96: 15 | N96: 0 | O96: 38 | P96: 6.3 | Q96: 3.8 | R96: 2.3 | S96: 0.8 | T96: 30 | U96: 7 | V96: 2.2 | X96: GF | Y96: 200 | Z96: 8.5 | AA96: 50 | AB96: 85 | AC96: 0.12 | AD96: 0.4 | AE96: 0.03
A97: 2036 | B97: GrasSilage, naß, 1.Sch, Mitte Bl | C97: 250 | D97: 295 | E97: 570 | F97: 308 | G97: 145 | H97: 126.78 | I97: 19.16 | J97: 2.9152 | K97: 5.65 | L97: 9.51 | M97: 10 | N97: 0 | O97: 36 | P97: 5.8 | Q97: 3.7 | R97: 2.15 | S97: 0.8 | T97: 29 | U97: 8 | V97: 2.2 | X97: GF | Y97: 200 | Z97: 8 | AA97: 50 | AB97: 90 | AC97: 0.12 | AD97: 0.4 | AE97: 0.03
A98: 2044 | B98: GrasSilage, naß, 2.und Folge, Scho | C98: 250 | D98: 190 | E98: 405 | F98: 252 | G98: 188 | H98: 139.97 | I98: 24.84 | J98: 7.6848 | K98: 6.12 | L98: 11.46 | M98: 20 | N98: 0 | O98: 42 | P98: 9 | Q98: 3.8 | R98: 3.2 | S98: 1 | T98: 27 | U98: 6 | V98: 2.2 | X98: GF | Y98: 200 | Z98: 9 | AA98: 50 | AB98: 100 | AC98: 0.12 | AD98: 0.4 | AE98: 0.04
A99: 2045 | B99: GrasSilage, naß, ab 2.Schnitt | C99: 250 | D99: 225 | E99: 460 | F99: 272 | G99: 174 | H99: 134.75 | I99: 23 | J99: 6.28 | K99: 5.89 | L99: 10.73 | M99: 20 | N99: 0 | O99: 40 | P99: 8.5 | Q99: 3.7 | R99: 3.1 | S99: 1 | T99: 25 | U99: 7 | V99: 2.4 | X99: GF | Y99: 200 | Z99: 9 | AA99: 50 | AB99: 100 | AC99: 0.12 | AD99: 0.4 | AE99: 0.04
A100: 2046 | B100: GrasSil, naß, 2.u Folge, RispSpr | C100: 250 | D100: 258 | E100: 510 | F100: 303 | G100: 160 | H100: 127.68 | I100: 21.14 | J100: 5.1712 | K100: 5.57 | L100: 9.93 | M100: 15 | N100: 0 | O100: 37 | P100: 7.5 | Q100: 3.6 | R100: 2.7 | S100: 1 | T100: 25 | U100: 7 | V100: 2.3 | X100: GF | Y100: 200 | Z100: 8.5 | AA100: 50 | AB100: 100 | AC100: 0.12 | AD100: 0.4 | AE100: 0.04
A101: 2125 | B101: GrünGersten- Silage | C101: 350 | D101: 260 | E101: 580 | F101: 320 | G101: 102 | H101: 137.87 | I101: 13.11 | J101: -5.7392 | K101: 6.73 | L101: 10.64 | M101: 40 | N101: 0 | O101: 21 | P101: 4.8 | Q101: 3.2 | R101: 1.6 | S101: 0.71 | T101: 28.8 | U101: 5.8 | V101: 2.2 | X101: GF | Y101: 567.6 | Z101: 6.3 | AA101: 33.4 | AB101: 45.4 | AC101: 0.12 | AD101: 0.35 | AE101: 0.02
A102: 2134 | B102: GPS Gerste KornArm | C102: 340 | D102: 300 | E102: 630 | F102: 347 | G102: 91 | H102: 108.95 | I102: 19.64 | J102: -2.872 | K102: 5.03 | L102: 9.55 | M102: 210 | N102: 15 | O102: 22 | P102: 4.5 | Q102: 2.6 | R102: 1.3 | S102: 0.3 | T102: 17.7 | U102: 3.4 | V102: 1.6 | X102: GF | Y102: 158.6 | Z102: 6.8 | AA102: 28.3 | AB102: 43.3 | AC102: 0.12 | AD102: 0.35 | AE102: 0.02
A103: 2135 | B103: GPS Gerste | C103: 360 | D103: 270 | E103: 590 | F103: 315 | G103: 87 | H103: 113.24 | I103: 18.78 | J103: -4.1984 | K103: 5.34 | L103: 9.65 | M103: 270 | N103: 22 | O103: 23 | P103: 4.3 | Q103: 2.6 | R103: 1.3 | S103: 0.3 | T103: 17.7 | U103: 3.4 | V103: 1.6 | X103: GF | Y103: 158.6 | Z103: 6.8 | AA103: 28.3 | AB103: 43.3 | AC103: 0.12 | AD103: 0.35 | AE103: 0.02
A104: 2136 | B104: GPS Gerste KornReich | C104: 380 | D104: 240 | E104: 550 | F104: 294 | G104: 81 | H104: 117 | I104: 17.48 | J104: -5.76 | K104: 5.64 | L104: 9.7 | M104: 330 | N104: 29 | O104: 24 | P104: 4.1 | Q104: 2.6 | R104: 1.3 | S104: 0.3 | T104: 17.7 | U104: 3.4 | V104: 1.6 | X104: GF | Y104: 158.6 | Z104: 6.8 | AA104: 28.3 | AB104: 43.3 | AC104: 0.12 | AD104: 0.35 | AE104: 0.02
A105: 2144 | B105: Grnhafersilage Rispenschieben | C105: 325 | D105: 260 | E105: 485 | F105: 302 | G105: 118 | H105: 134.17 | I105: 15.17 | J105: -2.5872 | K105: 6.42 | L105: 11.12 | M105: 51 | N105: 0 | O105: 36 | P105: 5.7 | Q105: 3.4 | R105: 2.2 | S105: 0.71 | T105: 27 | U105: 3.9 | V105: 1.8 | X105: GF | Y105: 191.6 | Z105: 7.3 | AA105: 27.6 | AB105: 50.3 | AC105: 0.12 | AD105: 0.35 | AE105: 0.02
A106: 2145 | B106: GrünHafer- Silage | C106: 325 | D106: 286 | E106: 529 | F106: 338 | G106: 105 | H106: 127.26 | I106: 13.49 | J106: -3.5616 | K106: 6.08 | L106: 11.93 | M106: 45 | N106: 0 | O106: 32 | P106: 5.7 | Q106: 3.4 | R106: 2.2 | S106: 0.71 | T106: 27 | U106: 3.9 | V106: 1.8 | X106: GF | Y106: 191.6 | Z106: 7.3 | AA106: 27.6 | AB106: 50.3 | AC106: 0.12 | AD106: 0.35 | AE106: 0.02
A107: 2146 | B107: Grünhafersilage abgeblht | C107: 325 | D107: 313 | E107: 583 | F107: 370 | G107: 101 | H107: 123.4 | I107: 12.98 | J107: -3.584 | K107: 5.73 | L107: 9.37 | M107: 36 | N107: 0 | O107: 29 | P107: 5.7 | Q107: 3.4 | R107: 2.2 | S107: 0.71 | T107: 27 | U107: 3.9 | V107: 1.8 | X107: GF | Y107: 191.6 | Z107: 7.3 | AA107: 27.6 | AB107: 50.3 | AC107: 0.12 | AD107: 0.35 | AE107: 0.02
A108: 2164 | B108: Grnroggensilage hrenschieben | C108: 270 | D108: 259 | E108: 481 | F108: 295 | G108: 130 | H108: 137.66 | I108: 16.71 | J108: -1.2256 | K108: 6.53 | L108: 10.25 | M108: 41 | N108: 0 | O108: 35 | P108: 4.3 | Q108: 3.7 | R108: 1.6 | S108: 0.33 | T108: 30.2 | U108: 5 | V108: 1.8 | X108: GF | Y108: 202.5 | Z108: 6.5 | AA108: 27.4 | AB108: 43.3 | AC108: 0.12 | AD108: 0.35 | AE108: 0.02
A109: 2165 | B109: GrünRoggen- Silage | C109: 270 | D109: 305 | E109: 541 | F109: 337 | G109: 110 | H109: 129.66 | I109: 14.13 | J109: -3.1456 | K109: 6.18 | L109: 11.24 | M109: 30 | N109: 0 | O109: 33 | P109: 4.3 | Q109: 3.7 | R109: 1.6 | S109: 0.33 | T109: 30.2 | U109: 5 | V109: 1.8 | X109: GF | Y109: 202.5 | Z109: 6.5 | AA109: 27.4 | AB109: 43.3 | AC109: 0.12 | AD109: 0.35 | AE109: 0.02
A110: 2166 | B110: Grnroggensilage abgeblht | C110: 270 | D110: 335 | E110: 596 | F110: 378 | G110: 98 | H110: 124.87 | I110: 12.59 | J110: -4.2992 | K110: 5.98 | L110: 9.41 | M110: 23 | N110: 0 | O110: 30 | P110: 4.3 | Q110: 3.7 | R110: 1.6 | S110: 0.33 | T110: 30.2 | U110: 5 | V110: 1.8 | X110: GF | Y110: 202.5 | Z110: 6.5 | AA110: 27.4 | AB110: 43.3 | AC110: 0.12 | AD110: 0.35 | AE110: 0.02
A111: 2175 | B111: GPS Roggen u. Tritcale | C111: 350 | D111: 285 | E111: 600 | F111: 329 | G111: 78 | H111: 109.12 | I111: 16.83 | J111: -4.9792 | K111: 5.17 | L111: 9.55 | M111: 244 | N111: 18 | O111: 22 | P111: 3.8 | Q111: 2.7 | R111: 1.3 | S111: 0.26 | T111: 15.8 | U111: 3 | V111: 1.4 | X111: GF | Y111: 100.7 | Z111: 6.8 | AA111: 31.3 | AB111: 45.3 | AC111: 0.12 | AD111: 0.35 | AE111: 0.02
A112: 2185 | B112: GPS Weizen | C112: 400 | D112: 263 | E112: 580 | F112: 312 | G112: 81 | H112: 111.33 | I112: 17.48 | J112: =(G112-H112)/6.25 -> -4.8528 | K112: 5.28 | L112: 9.59 | M112: 340 | N112: 24 | O112: 22 | P112: 3.3 | Q112: 2.7 | R112: 1.5 | S112: 0.27 | T112: 14 | U112: 2.1 | V112: 1.6 | X112: GF | Y112: 100 | Z112: 6.4 | AA112: 27.3 | AB112: 43.2 | AC112: 0.12 | AD112: 0.35 | AE112: 0.02
A113: 2206 | B113: MaisSilage, in Wachsreife | C113: 350 | D113: 200 | E113: 398 | F113: 234 | G113: 76 | H113: 131.84 | I113: 11.47 | J113: -8.9344 | K113: 6.64 | L113: 11.25 | M113: 359 | N113: 48.6 | O113: 30 | P113: 2.7 | Q113: 2.3 | R113: 1.5 | S113: 0.23 | T113: 12 | U113: 1.5 | V113: 1.1 | X113: GF | Y113: 87.8 | Z113: 7.8 | AA113: 29.8 | AB113: 25.7 | AC113: 0.08 | AD113: 0.3 | AE113: 0.01
A114: 2216 | B114: MaisSil, Wachsr körn arm | C114: 350 | D114: 221 | E114: 430 | F114: 253 | G114: 77 | H114: 129.13 | I114: 11.62 | J114: -8.3408 | K114: 6.43 | L114: 10.98 | M114: 315 | N114: 41.55 | O114: 27 | P114: 2.8 | Q114: 2.2 | R114: 1.6 | S114: 0.23 | T114: 13.2 | U114: 1.7 | V114: 1.2 | X114: GF | Y114: 92.5 | Z114: 7.5 | AA114: 30.9 | AB114: 28.9 | AC114: 0.08 | AD114: 0.3 | AE114: 0.01
A115: 2226 | B115: MaisSilage, in Wachsreife, körnerreich, 36% TM | C115: 350 | D115: 183 | E115: 369 | F115: 216 | G115: 75 | H115: 133.93 | I115: 11.32 | J115: -9.4288 | K115: 6.82 | L115: 11.47 | M115: 403 | N115: 55.05 | O115: 31 | P115: 2.7 | Q115: 2.2 | R115: 1.5 | S115: 0.23 | T115: 11.2 | U115: 1.4 | V115: 1.1 | W115: 0 | X115: GF | Y115: 84.6 | Z115: 7.8 | AA115: 29.6 | AB115: 25.1 | AC115: 0.08 | AD115: 0.3 | AE115: 0.01
A116: 2245 | B116: MaisSilage, Pflückhäcksel 24 | C116: 400 | D116: 180 | E116: 365 | F116: 215 | G116: 80 | H116: 135.73 | I116: 12.07 | J116: -8.9168 | K116: 6.85 | L116: 11.49 | M116: 396 | N116: 54 | O116: 33 | P116: 2.7 | Q116: 2.4 | R116: 1.4 | S116: 0.2 | T116: 9.7 | U116: 1.2 | V116: 1.1 | W116: 0 | X116: GF | Y116: 85 | Z116: 7.5 | AA116: 30 | AB116: 18 | AC116: 0.08 | AD116: 0.3 | AE116: 0.01
A117: 2246 | B117: MaisSilage, Pflückhäcksel 22 | C117: 410 | D117: 151 | E117: 313 | F117: 175 | G117: 78 | H117: 140.33 | I117: 11.77 | J117: -9.9728 | K117: 7.23 | L117: 11.97 | M117: 477 | N117: 65.85 | O117: 34 | P117: 2.6 | Q117: 2.4 | R117: 1.3 | S117: 0.2 | T117: 8.5 | U117: 0.9 | V117: 1.1 | X117: GF | Y117: 85 | Z117: 7.2 | AA117: 30 | AB117: 18 | AC117: 0.08 | AD117: 0.3 | AE117: 0.01
A118: 2305 | B118: GPS Ackerbohne | C118: 310 | D118: 272 | E118: 373 | F118: 315 | G118: 163 | H118: 125.31 | I118: 18.89 | J118: 6.0304 | K118: 5.39 | L118: 9.5 | M118: 32 | N118: 0 | O118: 28 | P118: 15.8 | Q118: 3.9 | R118: 4.3 | S118: 0.41 | T118: 27.1 | U118: 1.5 | V118: 2.4 | X118: GF | Y118: 683.1 | Z118: 10.5 | AA118: 41 | AB118: 64 | AC118: 0.12 | AD118: 0.35 | AE118: 0.01
A119: 2315 | B119: GPS Hülsenfrüchte | C119: 310 | D119: 274 | E119: 490 | F119: 334 | G119: 116 | H119: 120.88 | I119: 13.44 | J119: -0.7808 | K119: 5.55 | L119: 10.32 | M119: 44 | N119: 0 | O119: 27 | P119: 9.1 | Q119: 3.5 | R119: 1.9 | S119: 0.43 | T119: 19.4 | U119: 3.1 | V119: 1.7 | X119: GF | Y119: 151 | Z119: 6.7 | AA119: 33.8 | AB119: 44.6 | AC119: 0.12 | AD119: 0.35 | AE119: 0.01
A120: 2424 | B120: RapsSilage, jung, blattreich, | C120: 170 | D120: 150 | E120: 283 | F120: 239 | G120: 165 | H120: 142.42 | I120: 19.11 | J120: 3.6128 | K120: 6.6 | L120: 10.82 | M120: 13 | N120: 0 | O120: 38 | P120: 18 | Q120: 3.5 | R120: 2.7 | S120: 0.4 | T120: 25 | U120: 9 | V120: 5 | X120: GF | Y120: 200 | Z120: 5 | AA120: 25 | AB120: 60 | AC120: 0.12 | AD120: 0.35 | AE120: 0.03
A121: 2425 | B121: RapsSilage | C121: 200 | D121: 225 | E121: 373 | F121: 284 | G121: 150 | H121: 127.66 | I121: 17.38 | J121: 3.5744 | K121: 5.77 | L121: 9.11 | M121: 13 | N121: 0 | O121: 22 | P121: 18 | Q121: 3.5 | R121: 2.7 | S121: 0.4 | T121: 25 | U121: 9 | V121: 5 | X121: GF | Y121: 200 | Z121: 5 | AA121: 25 | AB121: 60 | AC121: 0.12 | AD121: 0.35 | AE121: 0.03
A122: 2435 | B122: PerkoSilage | C122: 140 | D122: 165 | E122: 380 | F122: 225 | G122: 185 | H122: 146.38 | I122: 21.43 | J122: =(G122-H122)/6.25 -> 6.1792 | K122: 6.64 | L122: 9.36 | M122: 5 | N122: 0 | O122: 41 | P122: 13 | Q122: 6 | R122: 1.2 | S122: 1.1 | T122: 30 | U122: 9 | V122: 4 | X122: GF | Y122: 200 | Z122: 8 | AA122: 50 | AB122: 60 | AC122: 0.12 | AD122: 0.35 | AE122: 0.1
A123: 2445 | B123: RübsenSilage | C123: 170 | D123: 226 | E123: 334 | F123: 318 | G123: 114 | H123: 138.46 | I123: 13.21 | J123: -3.9136 | K123: 6.81 | L123: 9.77 | M123: 73 | N123: 0 | O123: 30 | P123: 0 | Q123: 0 | R123: 0 | S123: 0 | T123: 0 | U123: 0 | V123: 0 | X123: GF | Y123: 0 | Z123: 0 | AA123: 0 | AB123: 0 | AC123: 0.12 | AD123: 0.35 | AE123: 0.03
A124: 2485 | B124: Markstammkohl- Silage | C124: 140 | D124: 170 | E124: 385 | F124: 225 | G124: 160 | H124: 122.34 | I124: 18.53 | J124: 6.0256 | K124: 5.28 | L124: 8.76 | M124: 5 | N124: 0 | O124: 30 | P124: 19.7 | Q124: 3.5 | R124: 2 | S124: 1.7 | T124: 29 | U124: 11.4 | V124: 6.1 | X124: GF | Y124: 200 | Z124: 6.3 | AA124: 35 | AB124: 27 | AC124: 0.12 | AD124: 0.35 | AE124: 0.1
A125: 2505 | B125: Zuckerrübenblatt- Silage, sauber | C125: 180 | D125: 145 | E125: 350 | F125: 205 | G125: 150 | H125: 130.39 | I125: 20.7 | J125: 3.1376 | K125: 5.98 | L125: 10.64 | M125: 16 | N125: 0 | O125: 32 | P125: 10 | Q125: 2.4 | R125: 4 | S125: 7 | T125: 27 | U125: 15 | V125: 5 | X125: GF | Y125: 250 | Z125: 15 | AA125: 59 | AB125: 157 | AC125: 0.35 | AD125: 0.8 | AE125: 0.1
A126: 2506 | B126: Zuckerrübenblatt- Sil, verschm | C126: 180 | D126: 130 | E126: 325 | F126: 195 | G126: 140 | H126: 117.07 | I126: 19.32 | J126: 3.6688 | K126: 5.28 | L126: 9.76 | M126: 10 | N126: 0 | O126: 31 | P126: 12 | Q126: 2 | R126: 4.5 | S126: 9 | T126: 29 | U126: 15 | V126: 5 | X126: GF | Y126: 250 | Z126: 14.7 | AA126: 59 | AB126: 157 | AC126: 0.35 | AD126: 0.8 | AE126: 0.1
A127: 2555 | B127: Futterrübenblatt- Silage | C127: 180 | D127: 145 | E127: 335 | F127: 195 | G127: 145 | H127: 122.86 | I127: 20.01 | J127: 3.5424 | K127: 5.57 | L127: 10.14 | M127: 20 | N127: 0 | O127: 29 | P127: 20 | Q127: 2.4 | R127: 5 | S127: 3.5 | T127: 33 | U127: 13 | V127: 6 | X127: GF | Y127: 250 | Z127: 9 | AA127: 50 | AB127: 130 | AC127: 0.3 | AD127: 0.8 | AE127: 0.1
A128: 2615 | B128: RotkleeSilage, 1.Schnitt | C128: 330 | D128: 242 | E128: 412 | F128: 305 | G128: 166 | H128: 137.95 | I128: 17.37 | J128: 4.488 | K128: 5.84 | L128: 10.13 | M128: 38 | N128: 0 | O128: 27 | P128: 12 | Q128: 3.5 | R128: 2.5 | S128: 0.5 | T128: 30 | U128: 3 | V128: 2 | X128: GF | Y128: 270 | Z128: 7.7 | AA128: 30 | AB128: 50 | AC128: 0.15 | AD128: 0.35 | AE128: 0.03
A129: 2625 | B129: RotkleeSilage, ab 2.Schnitt | C129: 330 | D129: 236 | E129: 395 | F129: 314 | G129: 177 | H129: 132.72 | I129: 18.52 | J129: =(G129-H129)/6.25 -> 7.0848 | K129: 5.33 | L129: 9.31 | M129: 35 | N129: 0 | O129: 27 | P129: 14 | Q129: 3.5 | R129: 3 | S129: 0.5 | T129: 30 | U129: 3 | V129: 2 | X129: GF | Y129: 270 | Z129: 8.5 | AA129: 30 | AB129: 50 | AC129: 0.15 | AD129: 0.35 | AE129: 0.03
A130: 2634 | B130: KleeGrasSilage, 1. Schnitt, i d Kn | C130: 330 | D130: 221 | E130: 401 | F130: 270 | G130: 184 | H130: 146.88 | I130: 22.21 | J130: 5.9392 | K130: 6.57 | L130: 11.09 | M130: 50 | N130: 0 | O130: 41 | P130: 8.1 | Q130: 3.7 | R130: 2.6 | S130: 0.6 | T130: 33.9 | U130: 4.5 | V130: 2.6 | X130: GF | Y130: 260 | Z130: 7.5 | AA130: 31.8 | AB130: 56.9 | AC130: 0.12 | AD130: 0.35 | AE130: 0.03
A131: 2635 | B131: KleeGrasSilage, 1.Schnitt | C131: 330 | D131: 231 | E131: 422 | F131: 283 | G131: 161 | H131: 139.07 | I131: 19.44 | J131: 3.5088 | K131: 6.29 | L131: 10.79 | M131: 50 | N131: 0 | O131: 37 | P131: 8.1 | Q131: 3.6 | R131: 2.5 | S131: 0.6 | T131: 31.4 | U131: 4.5 | V131: 2.5 | X131: GF | Y131: 260 | Z131: 7.2 | AA131: 30.2 | AB131: 59.6 | AC131: 0.12 | AD131: 0.35 | AE131: 0.03
A132: 2636 | B132: KleeGrasSilage, 1.Schnitt, in der Blüte | C132: 330 | D132: 243 | E132: 449 | F132: 295 | G132: 143 | H132: 137.02 | I132: 17.27 | J132: 0.9568 | K132: 6.09 | L132: 10.55 | M132: 50 | N132: 0 | O132: 35 | P132: 8.1 | Q132: 3 | R132: 2 | S132: 1 | T132: 31 | U132: 4 | V132: 2 | X132: GF | Y132: 260 | Z132: 7 | AA132: 29 | AB132: 63 | AC132: 0.12 | AD132: 0.35 | AE132: 0.03
A133: 2644 | B133: KleeGrasSilage, 2.u FoSchn, v d Kn | C133: 340 | D133: 240 | E133: 422 | F133: 298 | G133: 178 | H133: 131.01 | I133: 21.49 | J133: 7.5184 | K133: 5.58 | L133: 9.86 | M133: 42 | N133: 0 | O133: 37 | P133: 10.7 | Q133: 3.6 | R133: 2.7 | S133: 0.59 | T133: 32.2 | U133: 5.3 | V133: 2.6 | X133: GF | Y133: 300 | Z133: 7.9 | AA133: 29.7 | AB133: 53.2 | AC133: 0.12 | AD133: 0.35 | AE133: 0.03
A134: 2645 | B134: KleeGrasSilage, 2.Schnitt | C134: 340 | D134: 256 | E134: 457 | F134: 316 | G134: 155 | H134: 124.4 | I134: 18.72 | J134: 4.896 | K134: 5.38 | L134: 9.63 | M134: 44 | N134: 0 | O134: 35 | P134: 9.4 | Q134: 3.5 | R134: 2.6 | S134: 0.58 | T134: 30.6 | U134: 5.3 | V134: 2.4 | X134: GF | Y134: 300 | Z134: 7.6 | AA134: 29.7 | AB134: 59 | AC134: 0.12 | AD134: 0.35 | AE134: 0.03
A135: 2646 | B135: KleeGrasSilage, 2.und Folge, Beg Bl | C135: 340 | D135: 273 | E135: 483 | F135: 327 | G135: 130 | H135: 117.81 | I135: 15.7 | J135: 1.9504 | K135: 5.22 | L135: 9.45 | M135: 50 | N135: 0 | O135: 32 | P135: 8.9 | Q135: 3.3 | R135: 2.4 | S135: 0.62 | T135: 28.2 | U135: 5.3 | V135: 2.4 | X135: GF | Y135: 300 | Z135: 7 | AA135: 29.7 | AB135: 67.3 | AC135: 0.12 | AD135: 0.35 | AE135: 0.03
A136: 2648 | B136: KleeGrasSilage, 3.Schnitt | C136: 340 | D136: 244 | E136: 430 | F136: 304 | G136: 174 | H136: 127.99 | I136: 21.01 | J136: 7.3616 | K136: 5.43 | L136: 9.56 | M136: 50 | N136: 0 | O136: 34 | P136: 10.4 | Q136: 3.4 | R136: 2.8 | S136: 0.6 | T136: 30.4 | U136: 5.6 | V136: 2.8 | X136: GF | Y136: 400 | Z136: 7.8 | AA136: 30 | AB136: 60 | AC136: 0.12 | AD136: 0.35 | AE136: 0.03
A137: 2649 | B137: KleeGrasSilage, ab 4.Schnitt | C137: 330 | D137: 218 | E137: 393 | F137: 272 | G137: 182 | H137: 132.94 | I137: 21.98 | J137: =(G137-H137)/6.25 -> 7.8496 | K137: 5.69 | L137: 10.01 | M137: 52 | N137: 0 | O137: 36 | P137: 10.9 | Q137: 3.7 | R137: 3 | S137: 0.6 | T137: 30.9 | U137: 7.4 | V137: 3.1 | X137: GF | Y137: 600 | Z137: 8.2 | AA137: 30.6 | AB137: 73.2 | AC137: 0.12 | AD137: 0.35 | AE137: 0.03
A138: 2714 | B138: LuzerneSilage, in der Knospe 1.Schnitt | C138: 350 | D138: 235 | E138: 374 | F138: 319 | G138: 190 | H138: 137.12 | I138: 24.74 | J138: 8.4608 | K138: 5.86 | L138: 9.94 | M138: 40 | N138: 0 | O138: 32 | P138: 16 | Q138: 3.5 | R138: 2.9 | S138: 0.5 | T138: 31 | U138: 3.1 | V138: 2.1 | X138: GF | Y138: 400 | Z138: 7.5 | AA138: 26 | AB138: 44 | AC138: 0.15 | AD138: 0.3 | AE138: 0.03
A139: 2715 | B139: LuzerneSilage, 1.Schnitt | C139: 350 | D139: 253 | E139: 406 | F139: 330 | G139: 175 | H139: 137.48 | I139: 22.79 | J139: 6.0032 | K139: 5.67 | L139: 9.71 | M139: 40 | N139: 0 | O139: 29 | P139: 14.5 | Q139: 3.3 | R139: 2.7 | S139: 0.5 | T139: 30 | U139: 3.1 | V139: 2.1 | X139: GF | Y139: 400 | Z139: 7.5 | AA139: 26 | AB139: 44 | AC139: 0.15 | AD139: 0.3 | AE139: 0.03
A140: 2716 | B140: LuzerneSilage, Ende Blüte, 1.Schnitt | C140: 350 | D140: 270 | E140: 456 | F140: 344 | G140: 150 | H140: 133.62 | I140: 19.53 | J140: 2.6208 | K140: 5.46 | L140: 9.47 | M140: 40 | N140: 0 | O140: 28 | P140: 13 | Q140: 3.2 | R140: 2.5 | S140: 0.5 | T140: 29 | U140: 3.1 | V140: 2.1 | X140: GF | Y140: 400 | Z140: 7.5 | AA140: 26 | AB140: 44 | AC140: 0.15 | AD140: 0.3 | AE140: 0.03
A141: 2725 | B141: LuzerneSilage, ab 2. Schnitt | C141: 350 | D141: 280 | E141: 420 | F141: 352 | G141: 176 | H141: 128.5 | I141: 22.92 | J141: 7.6 | K141: 5.05 | L141: 8.81 | M141: 45 | N141: 0 | O141: 29 | P141: 14.7 | Q141: 3.2 | R141: 2.5 | S141: 0.5 | T141: 29 | U141: 3.6 | V141: 2.5 | X141: GF | Y141: 400 | Z141: 8 | AA141: 25.6 | AB141: 44.3 | AC141: 0.15 | AD141: 0.3 | AE141: 0.03
A142: 2734 | B142: LuzerneGrasSilage, i d Kn, 1.Sch | C142: 350 | D142: 233 | E142: 408 | F142: 302 | G142: 186 | H142: 139.88 | I142: 24.21 | J142: 7.3792 | K142: 6.09 | L142: 10.3 | M142: 48 | N142: 0 | O142: 35 | P142: 13 | Q142: 3.4 | R142: 2.6 | S142: 0.5 | T142: 30.9 | U142: 4.5 | V142: 2.4 | X142: GF | Y142: 400 | Z142: 7.2 | AA142: 26.7 | AB142: 50.2 | AC142: 0.12 | AD142: 0.35 | AE142: 0.03
A143: 2735 | B143: LuzerneGras- Silage, 1.Schnitt | C143: 350 | D143: 261 | E143: 454 | F143: 329 | G143: 162 | H143: 130.5 | I143: 21.09 | J143: 5.04 | K143: 5.72 | L143: 9.83 | M143: 44 | N143: 0 | O143: 31 | P143: 12 | Q143: 3.2 | R143: 2.3 | S143: 0.4 | T143: 29.2 | U143: 4.5 | V143: 2.1 | X143: GF | Y143: 400 | Z143: 7.2 | AA143: 26.7 | AB143: 50.2 | AC143: 0.12 | AD143: 0.35 | AE143: 0.03
A144: 2736 | B144: LuzerneGrasSilage, in der Blüte, 1.Sch | C144: 350 | D144: 279 | E144: 484 | F144: 344 | G144: 138 | H144: 124.06 | I144: 17.96 | J144: 2.2304 | K144: 5.55 | L144: 9.67 | M144: 42 | N144: 0 | O144: 29 | P144: 10 | Q144: 2.9 | R144: 2.3 | S144: 0.4 | T144: 27.2 | U144: 4.5 | V144: 2 | X144: GF | Y144: 400 | Z144: 7.2 | AA144: 26.7 | AB144: 50.2 | AC144: 0.12 | AD144: 0.35 | AE144: 0.03
A145: 2745 | B145: LuzerneGras- Silage, ab 2. Schnitt | C145: 350 | D145: 251 | E145: 447 | F145: 334 | G145: 172 | H145: 123.32 | I145: 22.39 | J145: 7.7888 | K145: 5.15 | L145: 9.02 | M145: 47 | N145: 0 | O145: 33 | P145: 12.3 | Q145: 3.2 | R145: 2.7 | S145: 0.6 | T145: 28.1 | U145: 5.3 | V145: 2.5 | X145: GF | Y145: 400 | Z145: 7.8 | AA145: 27.3 | AB145: 47.4 | AC145: 0.12 | AD145: 0.35 | AE145: 0.03
A146: 2814 | B146: WeidelGrasSilage, im Schossen | C146: 350 | D146: 196 | E146: 384 | F146: 223 | G146: 170 | H146: 149.51 | I146: 22.46 | J146: 3.2784 | K146: 6.93 | L146: 12.57 | M146: 102 | N146: 0 | O146: 38 | P146: 5.8 | Q146: 3.8 | R146: 1.8 | S146: 0.49 | T146: 36.7 | U146: 6 | V146: 2 | X146: GF | Y146: 250 | Z146: 6.2 | AA146: 28 | AB146: 65 | AC146: 0.12 | AD146: 0.35 | AE146: 0.03
A147: 2815 | B147: Weidelgras- Silage | C147: 350 | D147: 227 | E147: 431 | F147: 262 | G147: 150 | H147: 137.92 | I147: 19.82 | J147: 1.9328 | K147: 6.35 | L147: 11.45 | M147: 67 | N147: 0 | O147: 36 | P147: 5.8 | Q147: 3.3 | R147: 1.8 | S147: 0.53 | T147: 33.6 | U147: 6 | V147: 2 | X147: GF | Y147: 250 | Z147: 6.2 | AA147: 28 | AB147: 65 | AC147: 0.12 | AD147: 0.35 | AE147: 0.03
A148: 2816 | B148: WeidelGras- Silage, in der Blüte | C148: 350 | D148: 259 | E148: 482 | F148: 304 | G148: 125 | H148: 124.13 | I148: 16.52 | J148: 0.1392 | K148: 5.7 | L148: 10.1 | M148: 41 | N148: 0 | O148: 34 | P148: 5.8 | Q148: 3.2 | R148: 1.8 | S148: 0.5 | T148: 32.9 | U148: 6 | V148: 2 | X148: GF | Y148: 250 | Z148: 6.2 | AA148: 28 | AB148: 65 | AC148: 0.12 | AD148: 0.35 | AE148: 0.03
A149: 2865 | B149: Landsberger Gemenge- Silage | C149: 320 | D149: 234 | E149: 427 | F149: 278 | G149: 143 | H149: 132.91 | I149: 17.27 | J149: 1.6144 | K149: 6.09 | L149: 10.75 | M149: 44 | N149: 0 | O149: 34 | P149: 6.2 | Q149: 3.9 | R149: 1.9 | S149: 0.42 | T149: 32.9 | U149: 6.6 | V149: 2 | X149: GF | Y149: 186.7 | Z149: 6.9 | AA149: 29.8 | AB149: 80.7 | AC149: 0.12 | AD149: 0.35 | AE149: 0.02
A150: 2885 | B150: SudanGras- Silage | C150: 300 | D150: 315 | E150: 614 | F150: 380 | G150: 73 | H150: 106.71 | I150: 10.58 | J150: -5.3936 | K150: 5.06 | L150: 9.49 | M150: 20 | N150: 0 | O150: 20 | P150: 5.2 | Q150: 2.3 | R150: 2 | S150: 0.23 | T150: 16.1 | U150: 3.8 | V150: 1.4 | X150: GF | Y150: 150 | Z150: 7.3 | AA150: 30.9 | AB150: 33.8 | AC150: 0.12 | AD150: 0.4 | AE150: 0.01
A151: 3014 | B151: Heu Wiese, 1.Schnitt, RispenSch | C151: 860 | D151: 260 | E151: 537 | F151: 304 | G151: 127 | H151: 130.45 | I151: 20.64 | J151: -0.552 | K151: 5.86 | L151: 9.99 | M151: 120 | N151: 0 | O151: 25 | P151: 6.1 | Q151: 3 | R151: 2 | S151: 0.4 | T151: 26.6 | U151: 6.9 | V151: 1.9 | X151: GF | Y151: 150 | Z151: 7.3 | AA151: 32 | AB151: 68 | AC151: 0.12 | AD151: 0.4 | AE151: 0.02
A152: 3015 | B152: Heu Wiese, 1.Schnitt | C152: 860 | D152: 297 | E152: 594 | F152: 346 | G152: 97 | H152: 113.81 | I152: 15.76 | J152: -2.6896 | K152: 5.16 | L152: 8.55 | M152: 118 | N152: 0 | O152: 18 | P152: 5.8 | Q152: 2.7 | R152: 2 | S152: 0.4 | T152: 22.5 | U152: 5.6 | V152: 1.8 | X152: GF | Y152: 150 | Z152: 7.2 | AA152: 30.5 | AB152: 68 | AC152: 0.12 | AD152: 0.4 | AE152: 0.02
A153: 3016 | B153: Heu Wiese, 1.Schnitt, in der Blüte | C153: 860 | D153: 331 | E153: 624 | F153: 380 | G153: 82 | H153: 104.96 | I153: 13.33 | J153: =(G153-H153)/6.25 -> -3.6736 | K153: 4.69 | L153: 7.75 | M153: 116 | N153: 0 | O153: 16 | P153: 5.5 | Q153: 2.2 | R153: 2 | S153: 0.4 | T153: 20.7 | U153: 5.1 | V153: 1.6 | W153: 0 | X153: GF | Y153: 150 | Z153: 6.6 | AA153: 29 | AB153: 68 | AC153: 0.12 | AD153: 0.4 | AE153: 0.02
A154: 3017 | B154: Heu Wiese, 1.Schnitt, abgeblüht | C154: 860 | D154: 345 | E154: 636 | F154: 391 | G154: 64 | H154: 97.46 | I154: 10.4 | J154: -5.3536 | K154: 4.5 | L154: 7.32 | M154: 114 | N154: 0 | O154: 14 | P154: 5.2 | Q154: 2.2 | R154: 2 | S154: 0.4 | T154: 18.4 | U154: 4.4 | V154: 1.5 | X154: GF | Y154: 150 | Z154: 6.5 | AA154: 27.5 | AB154: 68 | AC154: 0.12 | AD154: 0.4 | AE154: 0.02
A155: 3024 | B155: Heu Wiese, 2.und FolgeSch, i Sch | C155: 860 | D155: 230 | E155: 485 | F155: 272 | G155: 145 | H155: 137.85 | I155: 23.56 | J155: 1.144 | K155: 6.12 | L155: 10.66 | M155: 120 | N155: 0 | O155: 30 | P155: 8 | Q155: 3.4 | R155: 2.9 | S155: 0.5 | T155: 26.4 | U155: 6.5 | V155: 2.4 | X155: GF | Y155: 220 | Z155: 7.5 | AA155: 30 | AB155: 65 | AC155: 0.12 | AD155: 0.4 | AE155: 0.02
A156: 3025 | B156: Heu Wiese, 2.Schnitt | C156: 860 | D156: 256 | E156: 527 | F156: 304 | G156: 131 | H156: 129.05 | I156: 21.29 | J156: 0.312 | K156: 5.71 | L156: 9.86 | M156: 106 | N156: 0 | O156: 26 | P156: 7.8 | Q156: 3.3 | R156: 2.8 | S156: 0.5 | T156: 24.6 | U156: 6.5 | V156: 2.2 | X156: GF | Y156: 220 | Z156: 7.4 | AA156: 30 | AB156: 65 | AC156: 0.12 | AD156: 0.4 | AE156: 0.02
A157: 3026 | B157: Heu Wiese, 2.u Folge, Beg Bl | C157: 860 | D157: 288 | E157: 581 | F157: 340 | G157: 113 | H157: 119.01 | I157: 18.36 | J157: -0.9616 | K157: 5.29 | L157: 8.92 | M157: 96 | N157: 0 | O157: 22 | P157: 6.4 | Q157: 3.1 | R157: 2.4 | S157: 0.5 | T157: 23 | U157: 6.5 | V157: 2.1 | X157: GF | Y157: 220 | Z157: 7.2 | AA157: 30 | AB157: 65 | AC157: 0.12 | AD157: 0.4 | AE157: 0.02
A158: 3028 | B158: Heu Wiese 3. Schnitt | C158: 860 | D158: 244 | E158: 515 | F158: 292 | G158: 147 | H158: 134.99 | I158: 23.89 | J158: 1.9216 | K158: 5.9 | L158: 10.26 | M158: 120 | N158: 0 | O158: 26 | P158: 7 | Q158: 3.5 | R158: 2.7 | S158: 0.6 | T158: 26.2 | U158: 7.2 | V158: 2.9 | X158: GF | Y158: 250 | Z158: 7.9 | AA158: 30 | AB158: 65 | AC158: 0.12 | AD158: 0.4 | AE158: 0.02
A159: 3029 | B159: Heu Wiese ab 4.Schnitt | C159: 860 | D159: 210 | E159: 462 | F159: 254 | G159: 180 | H159: 149.61 | I159: 29.25 | J159: 4.8624 | K159: 6.43 | L159: 11.55 | M159: 97 | N159: 0 | O159: 32 | P159: 7.8 | Q159: 4.3 | R159: 3.4 | S159: 0.6 | T159: 27.1 | U159: 8 | V159: 3.1 | X159: GF | Y159: 350 | Z159: 8.5 | AA159: 35 | AB159: 65 | AC159: 0.12 | AD159: 0.4 | AE159: 0.02
A160: 3034 | B160: Heu Unt. DachTr, 1.Schn, RispSch | C160: 870 | D160: 236 | E160: 498 | F160: 281 | G160: 142 | H160: 138.29 | I160: 23.07 | J160: 0.5936 | K160: 6.19 | L160: 10.72 | M160: 142 | N160: 0 | O160: 27 | P160: 6.6 | Q160: 3.2 | R160: 2.1 | S160: 0.5 | T160: 28.2 | U160: 5.4 | V160: 2 | X160: GF | Y160: 150 | Z160: 7.3 | AA160: 33.1 | AB160: 68 | AC160: 0.12 | AD160: 0.4 | AE160: 0.02
A161: 3035 | B161: Heu Unt. DachTr, 1.Schnitt | C161: 870 | D161: 263 | E161: 541 | F161: 307 | G161: 111 | H161: 127.47 | I161: 18.04 | J161: -2.6352 | K161: 5.89 | L161: 9.85 | M161: 140 | N161: 0 | O161: 24 | P161: 6.2 | Q161: 2.9 | R161: 2.1 | S161: 0.5 | T161: 23.9 | U161: 5.4 | V161: 1.9 | X161: GF | Y161: 150 | Z161: 7.1 | AA161: 32.5 | AB161: 68 | AC161: 0.12 | AD161: 0.4 | AE161: 0.02
A162: 3036 | B162: Heu Unt. DachTr, 1.Sch, i d Bl | C162: 870 | D162: 298 | E162: 582 | F162: 350 | G162: 91 | H162: 116.07 | I162: 14.79 | J162: -4.0112 | K162: 5.29 | L162: 8.81 | M162: 138 | N162: 0 | O162: 19 | P162: 5.8 | Q162: 2.4 | R162: 2.1 | S162: 0.5 | T162: 23.1 | U162: 5.4 | V162: 1.8 | X162: GF | Y162: 150 | Z162: 6.7 | AA162: 28.1 | AB162: 68 | AC162: 0.12 | AD162: 0.4 | AE162: 0.02
A163: 3044 | B163: Heu Unt. DachTr, 2.u. FolgeSchn., Sch | C163: 870 | D163: 222 | E163: 461 | F163: 260 | G163: 172 | H163: 145.32 | I163: 27.95 | J163: 4.2688 | K163: 6.25 | L163: 11.24 | M163: 112 | N163: 0 | O163: 28 | P163: 8.4 | Q163: 3.8 | R163: 3 | S163: 0.6 | T163: 29.5 | U163: 7.8 | V163: 2.7 | X163: GF | Y163: 220 | Z163: 7.9 | AA163: 38.1 | AB163: 65 | AC163: 0.12 | AD163: 0.4 | AE163: 0.02
A164: 3045 | B164: Heu Unt. DachTr, ab 2.Schnitt | C164: 870 | D164: 249 | E164: 514 | F164: 287 | G164: 148 | H164: 135.73 | I164: 24.05 | J164: 1.9632 | K164: 5.93 | L164: 10.28 | M164: 110 | N164: 0 | O164: 27 | P164: 7.4 | Q164: 3.7 | R164: 2.8 | S164: 0.6 | T164: 28.5 | U164: 7.8 | V164: 2.6 | X164: GF | Y164: 220 | Z164: 7.8 | AA164: 33 | AB164: 65 | AC164: 0.12 | AD164: 0.4 | AE164: 0.02
A165: 3046 | B165: Heu Unt. DachTr, 2.u. FolgSch, Beg Bl | C165: 870 | D165: 272 | E165: 553 | F165: 312 | G165: 137 | H165: 128.92 | I165: 22.26 | J165: 1.2928 | K165: 5.62 | L165: 9.61 | M165: 108 | N165: 0 | O165: 25 | P165: 7.4 | Q165: 3.6 | R165: 2.6 | S165: 0.6 | T165: 26.3 | U165: 7.8 | V165: 2.5 | X165: GF | Y165: 220 | Z165: 7.7 | AA165: 27.7 | AB165: 65 | AC165: 0.12 | AD165: 0.4 | AE165: 0.02
A166: 3074 | B166: GrasCobs, 1.Schnitt, im Blattstadium | C166: 900 | D166: 172 | E166: 425 | F166: 208 | G166: 174 | H166: 175.49 | I166: 33.12 | J166: -0.2384 | K166: 6.91 | L166: 12.03 | M166: 154 | N166: 0 | O166: 30 | P166: 6.9 | Q166: 3.9 | R166: 2.9 | S166: 1.1 | T166: 26 | U166: 6.3 | V166: 2.2 | X166: GF | Y166: 400 | Z166: 7.7 | AA166: 33 | AB166: 80 | AC166: 0.15 | AD166: 0.4 | AE166: 0.03
A167: 3075 | B167: GrasCobs, 1.Schnitt | C167: 900 | D167: 209 | E167: 464 | F167: 253 | G167: 152 | H167: 160.44 | I167: 28.94 | J167: -1.3504 | K167: 6.43 | L167: 11.16 | M167: 135 | N167: 0 | O167: 30 | P167: 6.9 | Q167: 3.9 | R167: 2.9 | S167: 1.1 | T167: 26 | U167: 6.3 | V167: 2.2 | X167: GF | Y167: 400 | Z167: 7.7 | AA167: 33 | AB167: 80 | AC167: 0.15 | AD167: 0.4 | AE167: 0.03
A168: 3076 | B168: GrasCobs, 1.Schnitt, RispenSch | C168: 900 | D168: 228 | E168: 499 | F168: 274 | G168: 131 | H168: 147.65 | I168: 24.94 | J168: -2.664 | K168: 6.1 | L168: 10.34 | M168: 120 | N168: 0 | O168: 30 | P168: 6.7 | Q168: 3.6 | R168: 2.9 | S168: 1.1 | T168: 26 | U168: 6.3 | V168: 2.2 | X168: GF | Y168: 400 | Z168: 7.7 | AA168: 33 | AB168: 80 | AC168: 0.15 | AD168: 0.4 | AE168: 0.03
A169: 3084 | B169: GrasCobs, 2.u FolgeSch, i Blattst | C169: 900 | D169: 177 | E169: 393 | F169: 220 | G169: 183 | H169: 176.99 | I169: 34.83 | J169: 0.9616 | K169: 6.72 | L169: 12.28 | M169: 111 | N169: 0 | O169: 37 | P169: 9.8 | Q169: 3.7 | R169: 3.4 | S169: 1 | T169: 24 | U169: 7.5 | V169: 2.7 | X169: GF | Y169: 600 | Z169: 8.6 | AA169: 32 | AB169: 111 | AC169: 0.15 | AD169: 0.4 | AE169: 0.03
A170: 3085 | B170: GrasCobs, ab 2.Schnitt | C170: 900 | D170: 201 | E170: 448 | F170: 252 | G170: 173 | H170: 168.63 | I170: 32.93 | J170: =(G170-H170)/6.25 -> 0.6992 | K170: 6.38 | L170: 11.49 | M170: 95 | N170: 0 | O170: 34 | P170: 9.8 | Q170: 3.7 | R170: 3.4 | S170: 1 | T170: 24 | U170: 7.5 | V170: 2.7 | X170: GF | Y170: 600 | Z170: 8.6 | AA170: 32 | AB170: 111 | AC170: 0.15 | AD170: 0.4 | AE170: 0.03
A171: 3086 | B171: GrasCobs, 2.und Folge, RispSch | C171: 900 | D171: 221 | E171: 479 | F171: 271 | G171: 162 | H171: 161.06 | I171: 30.83 | J171: 0.1504 | K171: 6.14 | L171: 10.9 | M171: 89 | N171: 0 | O171: 32 | P171: 9.8 | Q171: 3.7 | R171: 3.4 | S171: 1 | T171: 24 | U171: 7.5 | V171: 2.7 | X171: GF | Y171: 600 | Z171: 8.6 | AA171: 32 | AB171: 111 | AC171: 0.15 | AD171: 0.4 | AE171: 0.03
A172: 3125 | B172: Stroh Gerste | C172: 880 | D172: 452 | E172: 847 | F172: 542 | G172: 30 | H172: 73.36 | I172: 1.58 | J172: -6.9376 | K172: 3.7 | L172: 7.09 | M172: 12 | N172: 0 | O172: 15 | P172: 4.4 | Q172: 1 | R172: 1.1 | S172: 0.37 | T172: 15.2 | U172: 2.8 | V172: 0.9 | X172: GF | Y172: 79.7 | Z172: 4.1 | AA172: 11.2 | AB172: 15.1 | AC172: 0.1 | AD172: 0.35 | AE172: 0.01
A173: 3134 | B173: Stroh Gerste, NaOH aufgeschlossen | C173: 880 | D173: 440 | E173: 761 | F173: 489 | G173: 27 | H173: 86.58 | I173: 1.01 | J173: -9.5328 | K173: 4.72 | L173: 9.73 | M173: 3 | N173: 0 | O173: 15 | P173: 4.4 | Q173: 1 | R173: 1.1 | S173: 5.18 | T173: 15.2 | U173: 2.8 | V173: 0.9 | X173: GF | Y173: 79.7 | Z173: 4.1 | AA173: 11.2 | AB173: 15.1 | AC173: 0.1 | AD173: 0.35 | AE173: 0.01
A174: 3135 | B174: Stroh Gerste, NH3 aufgeschlossen | C174: 880 | D174: 452 | E174: 847 | F174: 542 | G174: 59 | H174: 96.79 | I174: 2.22 | J174: -6.0464 | K174: 4.53 | L174: 9.63 | M174: 3 | N174: 0 | O174: 15 | P174: 4.4 | Q174: 1 | R174: 1.1 | S174: 0.37 | T174: 15.2 | U174: 2.8 | V174: 0.9 | X174: GF | Y174: 79.7 | Z174: 4.1 | AA174: 11.2 | AB174: 15.1 | AC174: 0.1 | AD174: 0.35 | AE174: 0.01
A175: 3145 | B175: Stroh Hafer | C175: 880 | D175: 454 | E175: 790 | F175: 516 | G175: 36 | H175: 76.3 | I175: 1.9 | J175: -6.448 | K175: 3.68 | L175: 7.01 | M175: 49 | N175: 0 | O175: 19 | P175: 4 | Q175: 1.4 | R175: 1 | S175: 2 | T175: 21 | U175: 8 | V175: 2 | X175: GF | Y175: 200 | Z175: 7 | AA175: 40 | AB175: 80 | AC175: 0.06 | AD175: 0.35 | AE175: 0.01
A176: 3155 | B176: Stroh Hafer, NH3 aufgeschlossen | C176: 880 | D176: 454 | E176: 790 | F176: 516 | G176: 82 | H176: 90.95 | I176: 3.08 | J176: -1.432 | K176: 3.77 | L176: 9.52 | M176: 7 | N176: 0 | O176: 17 | P176: 4 | Q176: 1.4 | R176: 1 | S176: 2 | T176: 21 | U176: 8 | V176: 2 | W176: 0 | X176: GF | Y176: 200 | Z176: 7 | AA176: 40 | AB176: 80 | AC176: 0.06 | AD176: 0.35 | AE176: 0.01
A177: 3165 | B177: Stroh Roggen | C177: 880 | D177: 470 | E177: 850 | F177: 550 | G177: 37 | H177: 70.67 | I177: 1.96 | J177: -5.3872 | K177: 3.28 | L177: 7.05 | M177: 10 | N177: 0 | O177: 13 | P177: 3 | Q177: 1 | R177: 1 | S177: 0.4 | T177: 10 | U177: 3 | V177: 0.7 | X177: GF | Y177: 80 | Z177: 4 | AA177: 10 | AB177: 20 | AC177: 0.05 | AD177: 0.35 | AE177: 0.01
A178: 3185 | B178: Stroh Weizen | C178: 880 | D178: 453 | E178: 835 | F178: 527 | G178: 40 | H178: 75.07 | I178: 2.11 | J178: -5.6112 | K178: 3.49 | L178: 7.05 | M178: 17 | N178: 0 | O178: 13 | P178: 3.6 | Q178: 1.1 | R178: 0.9 | S178: 0.25 | T178: 10 | U178: 2.2 | V178: 0.7 | X178: GF | Y178: 67.2 | Z178: 5.3 | AA178: 9.3 | AB178: 26.9 | AC178: 0.06 | AD178: 0.35 | AE178: 0.01
A179: 3194 | B179: Stroh Weizen, NaOH aufgeschlossen | C179: 880 | D179: 448 | E179: 825 | F179: 521 | G179: 37 | H179: 89.04 | I179: 1.39 | J179: -8.3264 | K179: 4.58 | L179: 7.89 | M179: 4 | N179: 0 | O179: 14 | P179: 3.6 | Q179: 1.1 | R179: 0.9 | S179: 4.67 | T179: 10 | U179: 2.2 | V179: 0.7 | X179: GF | Y179: 67.2 | Z179: 5.3 | AA179: 9.3 | AB179: 26.9 | AC179: 0.06 | AD179: 0.35 | AE179: 0.01
A180: 3195 | B180: Stroh Weizen, NH3 aufgeschlossen | C180: 880 | D180: 453 | E180: 835 | F180: 527 | G180: 94 | H180: 101.81 | I180: 3.53 | J180: -1.2496 | K180: 4.26 | L180: 7.67 | M180: 4 | N180: 0 | O180: 12 | P180: 3.6 | Q180: 1.1 | R180: 0.9 | S180: 0.25 | T180: 10 | U180: 2.2 | V180: 0.7 | X180: GF | Y180: 67.2 | Z180: 5.3 | AA180: 9.3 | AB180: 26.9 | AC180: 0.06 | AD180: 0.35 | AE180: 0.01
A181: 3205 | B181: MaisCobs, Ganzpflanze | C181: 890 | D181: 188 | E181: 432 | F181: 219 | G181: 75 | H181: 132.2 | I181: 14.27 | J181: -9.152 | K181: 6.69 | L181: 11.31 | M181: 356 | N181: 115.92 | O181: 28 | P181: 3.1 | Q181: 2.5 | R181: 2.1 | S181: 0.23 | T181: 10.7 | U181: 1 | V181: 1 | X181: GF | Y181: 241.7 | Z181: 7.1 | AA181: 30.1 | AB181: 34.7 | AC181: 0.09 | AD181: 0.3 | AE181: 0.01
A182: 3615 | B182: RotkleeHeu, 1. Schnitt | C182: 860 | D182: 269 | E182: 463 | F182: 344 | G182: 154 | H182: 134.54 | I182: 17.08 | J182: =(G182-H182)/6.25 -> 3.1136 | K182: 5.45 | L182: 9.51 | M182: 66 | N182: 0 | O182: 21 | P182: 11 | Q182: 3.3 | R182: 3.2 | S182: 0.5 | T182: 30 | U182: 3 | V182: 2 | X182: GF | Y182: 250 | Z182: 8.5 | AA182: 25 | AB182: 50 | AC182: 0.15 | AD182: 0.35 | AE182: 0.02
A183: 3625 | B183: RotkleeHeu, ab 2.Schnitt | C183: 860 | D183: 261 | E183: 459 | F183: 345 | G183: 171 | H183: 135.85 | I183: 18.97 | J183: =(G183-H183)/6.25 -> 5.624 | K183: 5.24 | L183: 9.17 | M183: 66 | N183: 0 | O183: 21 | P183: 11 | Q183: 3.3 | R183: 3.2 | S183: 0.5 | T183: 30 | U183: 3 | V183: 2 | X183: GF | Y183: 250 | Z183: 8.5 | AA183: 25 | AB183: 50 | AC183: 0.15 | AD183: 0.35 | AE183: 0.02
A184: 3635 | B184: KleeGrasHeu, 1. Schnitt | C184: 860 | D184: 260 | E184: 481 | F184: 320 | G184: 130 | H184: 127.79 | I184: 17.24 | J184: =(G184-H184)/6.25 -> 0.3536 | K184: 5.66 | L184: 10.03 | M184: 87 | N184: 0 | O184: 19 | P184: 8.3 | Q184: 2.9 | R184: 2.2 | S184: 0.4 | T184: 26.2 | U184: 7.1 | V184: 1.8 | X184: GF | Y184: 200 | Z184: 7.5 | AA184: 28 | AB184: 54 | AC184: 0.12 | AD184: 0.35 | AE184: 0.02
A185: 3645 | B185: KleeGrasHeu, ab 2.Schnitt | C185: 860 | D185: 260 | E185: 490 | F185: 330 | G185: 160 | H185: 129.22 | I185: 21.22 | J185: =(G185-H185)/6.25 -> 4.9248 | K185: 5.33 | L185: 9.38 | M185: 74 | N185: 0 | O185: 20 | P185: 10.6 | Q185: 3.2 | R185: 3.3 | S185: 0.4 | T185: 26.7 | U185: 4.2 | V185: 2.1 | X185: GF | Y185: 200 | Z185: 7.5 | AA185: 28 | AB185: 54 | AC185: 0.12 | AD185: 0.35 | AE185: 0.02
A186: 3675 | B186: Rotklee-, KleeGrasCobs | C186: 900 | D186: 227 | E186: 446 | F186: 299 | G186: 172 | H186: 156.86 | I186: 22.82 | J186: 2.4224 | K186: 5.93 | L186: 10.16 | M186: 68 | N186: 0 | O186: 29 | P186: 11 | Q186: 3.3 | R186: 3 | S186: 0.6 | T186: 29 | U186: 4.3 | V186: 2.5 | X186: GF | Y186: 300 | Z186: 8.3 | AA186: 28 | AB186: 50 | AC186: 0.15 | AD186: 0.35 | AE186: 0.03
A187: 3714 | B187: LuzerneHeu, 1.Schnitt, Beginn Blüte | C187: 860 | D187: 278 | E187: 461 | F187: 332 | G187: 174 | H187: 141.33 | I187: 21.2 | J187: 5.2272 | K187: 5.56 | L187: 9.65 | M187: 65 | N187: 0 | O187: 20 | P187: 15 | Q187: 2.8 | R187: 3 | S187: 0.8 | T187: 28 | U187: 4 | V187: 2 | X187: GF | Y187: 200 | Z187: 7 | AA187: 20 | AB187: 25 | AC187: 0.15 | AD187: 0.3 | AE187: 0.02
A188: 3715 | B188: LuzerneHeu, 1.Schnitt | C188: 860 | D188: 320 | E188: 515 | F188: 379 | G188: 166 | H188: 139.16 | I188: 20.22 | J188: 4.2944 | K188: 5.16 | L188: 8.98 | M188: 40 | N188: 0 | O188: 19 | P188: 15 | Q188: 2.8 | R188: 2.7 | S188: 0.6 | T188: 27 | U188: 4 | V188: 2 | X188: GF | Y188: 200 | Z188: 7 | AA188: 20 | AB188: 25 | AC188: 0.15 | AD188: 0.3 | AE188: 0.02
A189: 3716 | B189: LuzerneHeu, 1.Schnitt, abgeblüht | C189: 860 | D189: 347 | E189: 536 | F189: 406 | G189: 148 | H189: 128.66 | I189: 18.03 | J189: 3.0944 | K189: 4.82 | L189: 8.53 | M189: 36 | N189: 0 | O189: 15 | P189: 15 | Q189: 2.8 | R189: 2.3 | S189: 0.5 | T189: 26 | U189: 4 | V189: 2 | X189: GF | Y189: 200 | Z189: 7 | AA189: 20 | AB189: 25 | AC189: 0.15 | AD189: 0.3 | AE189: 0.02
A190: 3724 | B190: LuzerneHeu, 2. FolgeSchn, Beg Bl | C190: 860 | D190: 271 | E190: 456 | F190: 318 | G190: 185 | H190: 141.61 | I190: 22.54 | J190: 6.9424 | K190: 5.38 | L190: 9.34 | M190: 54 | N190: 0 | O190: 21 | P190: 15 | Q190: 3.1 | R190: 2.6 | S190: 0.5 | T190: 30 | U190: 4 | V190: 2 | X190: GF | Y190: 200 | Z190: 7 | AA190: 20 | AB190: 25 | AC190: 0.15 | AD190: 0.3 | AE190: 0.02
A191: 3725 | B191: LuzerneHeu, ab 2.Schnitt | C191: 860 | D191: 305 | E191: 488 | F191: 362 | G191: 173 | H191: 132.69 | I191: 21.08 | J191: 6.4496 | K191: 4.98 | L191: 8.68 | M191: 40 | N191: 0 | O191: 19 | P191: 15 | Q191: 3.1 | R191: 2.4 | S191: 0.5 | T191: 29 | U191: 4 | V191: 2 | X191: GF | Y191: 200 | Z191: 7 | AA191: 20 | AB191: 25 | AC191: 0.15 | AD191: 0.3 | AE191: 0.02
A192: 3726 | B192: LuzerneHeu, 2.u FolgeSchn, abgebl | C192: 860 | D192: 348 | E192: 522 | F192: 398 | G192: 149 | H192: 126.3 | I192: 18.15 | J192: 3.632 | K192: 4.64 | L192: 8.2 | M192: 33 | N192: 0 | O192: 16 | P192: 15 | Q192: 3.1 | R192: 2.2 | S192: 0.4 | T192: 28 | U192: 4 | V192: 2 | X192: GF | Y192: 200 | Z192: 7 | AA192: 20 | AB192: 25 | AC192: 0.15 | AD192: 0.3 | AE192: 0.02
A193: 3735 | B193: LuzerneGrasHeu, 1. Schnitt | C193: 860 | D193: 330 | E193: 563 | F193: 378 | G193: 141 | H193: 122.03 | I193: 17.18 | J193: 3.0352 | K193: 5.11 | L193: 9 | M193: 78 | N193: 0 | O193: 17 | P193: 12.7 | Q193: 4.2 | R193: 2.9 | S193: 0.38 | T193: 36.5 | U193: 8.6 | V193: 3.1 | W193: 0 | X193: GF | Y193: 466.6 | Z193: 8.9 | AA193: 31.7 | AB193: 92 | AC193: 0.12 | AD193: 0.35 | AE193: 0.02
A194: 3745 | B194: LuzerneGrasHeu, ab 2.Schnitt | C194: 860 | D194: 320 | E194: 516 | F194: 363 | G194: 155 | H194: 123.22 | I194: 18.88 | J194: 5.0848 | K194: 4.99 | L194: 8.82 | M194: 52 | N194: 0 | O194: 20 | P194: 10.1 | Q194: 3.2 | R194: 2.2 | S194: 0.46 | T194: 29.5 | U194: 3.5 | V194: 2 | X194: GF | Y194: 75 | Z194: 7.6 | AA194: 26.1 | AB194: 31.7 | AC194: 0.12 | AD194: 0.35 | AE194: 0.02
A195: 3774 | B195: LuzerneCobs,-Grünm, vor Knose | C195: 900 | D195: 225 | E195: 427 | F195: 301 | G195: 209 | H195: 178.22 | I195: 45.91 | J195: 4.9248 | K195: 5.97 | L195: 10 | M195: 55 | N195: 0 | O195: 31 | P195: 15 | Q195: 3.7 | R195: 2.9 | S195: 0.6 | T195: 28 | U195: 3.7 | V195: 2.5 | X195: KF | Y195: 400 | Z195: 8 | AA195: 26 | AB195: 55 | AC195: 0.15 | AD195: 0.3 | AE195: 0.03
A196: 3775 | B196: LuzerneCobs, -Grünmehl | C196: 900 | D196: 238 | E196: 449 | F196: 310 | G196: 184 | H196: 165.9 | I196: 40.43 | J196: 2.896 | K196: 5.82 | L196: 9.9 | M196: 55 | N196: 0 | O196: 29 | P196: 15 | Q196: 3.7 | R196: 2.9 | S196: 0.6 | T196: 28 | U196: 3.7 | V196: 2.5 | X196: KF | Y196: 400 | Z196: 8 | AA196: 26 | AB196: 55 | AC196: 0.15 | AD196: 0.3 | AE196: 0.03
A197: 3776 | B197: LuzerneCobs,-Grünm Beg Blüte | C197: 900 | D197: 267 | E197: 480 | F197: 338 | G197: 153 | H197: 148.52 | I197: 33.62 | J197: 0.7168 | K197: 5.47 | L197: 9.49 | M197: 55 | N197: 0 | O197: 25 | P197: 15 | Q197: 3.7 | R197: 2.9 | S197: 0.6 | T197: 28 | U197: 3.7 | V197: 2.5 | X197: KF | Y197: 400 | Z197: 8 | AA197: 26 | AB197: 55 | AC197: 0.15 | AD197: 0.3 | AE197: 0.03
A198: 3815 | B198: Heu WeidelGras | C198: 860 | D198: 210 | E198: 471 | F198: 238 | G198: 144 | H198: 140.71 | I198: 23.4 | J198: 0.5264 | K198: 6.35 | L198: 10.74 | M198: 133 | N198: 0 | O198: 28 | P198: 5.5 | Q198: 3.3 | R198: 1.8 | S198: 0.4 | T198: 33 | U198: 6 | V198: 2 | X198: GF | Y198: 200 | Z198: 6 | AA198: 31 | AB198: 50 | AC198: 0.12 | AD198: 0.35 | AE198: 0.03
A199: 3865 | B199: Heu, Landsberger Gemenge | C199: 860 | D199: 285 | E199: 560 | F199: 325 | G199: 150 | H199: 125.57 | I199: 18.27 | J199: 3.9088 | K199: 5.23 | L199: 10.76 | M199: 60 | N199: 0 | O199: 21 | P199: 8.5 | Q199: 3 | R199: 1.8 | S199: 0.45 | T199: 30 | U199: 5 | V199: 2 | X199: GF | Y199: 150 | Z199: 8 | AA199: 50 | AB199: 80 | AC199: 0.12 | AD199: 0.35 | AE199: 0.1
A200: 4025 | B200: Gerste, 2-zeilig | C200: 880 | D200: 50 | E200: 162 | F200: 63 | G200: 117 | H200: 162.64 | I200: 14.5 | J200: -7.3024 | K200: 8.19 | L200: 13.1 | M200: 625 | N200: 60.6 | O200: 20 | P200: 0.6 | Q200: 3.8 | R200: 1.3 | S200: 0.08 | T200: 5.5 | U200: 1 | V200: 1.5 | W200: 0 | X200: KF | Y200: 43.1 | Z200: 7.8 | AA200: 28.7 | AB200: 19.4 | AC200: 0.1 | AD200: 0.3 | AE200: 0
... 153 more rows

Sheet Zielwerte
A3: Die bereits eingetragenen Werte können überschrieben werden. | B3: Kenn | C3: TM | E3: XF | G3: aNDFom | I3: S-Index | K3: CP | M3: nxP | O3: RNB | Q3: NEL | S3: ST+ZU | U3: bST | W3: CL | Y3: Ca | AA3: P | AC3: Mg | AE3: Na | AG3: K | AI3: DCAB | AK3: Fe | AM3: Cu | AO3: Zn | AQ3: Mg | AS3: Co | AU3: J | AW3: Se
B4: Nr. | C4: kg | E4: %/kg TM | G4: %/TM | K4: %/kg TM | M4: %/kg TM | O4: g | Q4: MJ/kg TM | S4: %/kg TM | U4: %/kg TM | W4: %/kg TM | Y4: g/kg TM | AA4: g/kg TM | AC4: g/kg TM | AE4: g/kg TM | AG4: g/kg TM | AI4: mEq/kg TM | AK4: mg/kg TM | AM4: mg/kg TM | AO4: mg/kg TM | AQ4: mg/kg TM | AS4: mg/kg TM | AU4: mg/kg TM | AW4: mg/kg TM
C5: min | D5: max | E5: min | F5: max | G5: min | H5: max | I5: min | J5: max | K5: min | L5: max | M5: min | N5: max | O5: min | P5: max | Q5: min | R5: max | S5: min | T5: max | U5: min | V5: max | W5: min | X5: max | Y5: min | Z5: max | AA5: min | AB5: max | AC5: min | AD5: max | AE5: min | AF5: max | AG5: min | AH5: max | AI5: min | AJ5: max | AK5: min | AL5: max | AM5: min | AN5: max | AO5: min | AP5: max | AQ5: min | AR5: max | AS5: min | AT5: max | AU5: min | AV5: max | AW5: min | AX5: max
A6: Trockensteher | B6: 1 | C6: 10 | D6: 14 | E6: 0 | F6: 0 | G6: 28 | I6: 50 | K6: 10 | L6: 13 | M6: 10 | N6: 13 | O6: -5 | P6: 15 | Q6: 5.5 | R6: 6 | S6: 12 | T6: 15 | Y6: 4 | Z6: 6 | AA6: 2 | AB6: 3.5 | AC6: 1 | AD6: 2 | AE6: 1.5 | AF6: 2.5 | AG6: 10 | AH6: 20 | AI6: 100 | AJ6: 300 | AK6: 50 | AL6: 450 | AM6: 10 | AN6: 30 | AO6: 50 | AP6: 120 | AQ6: 50 | AR6: 150 | AS6: 0.2 | AT6: 1 | AU6: 0.5 | AV6: 5 | AW6: 0.2 | AX6: 0.5
A7: Transit | B7: 2 | C7: 11 | D7: 15 | E7: 0 | F7: 0 | G7: 28 | I7: 50 | K7: 13 | L7: 15 | M7: 13 | N7: 15 | O7: -5 | P7: 10 | Q7: 6.3 | R7: 6.8 | S7: 14 | T7: 20 | Y7: 3 | Z7: 5 | AA7: 2 | AB7: 3.5 | AC7: 2 | AD7: 4 | AE7: 1.5 | AF7: 2 | AG7: 10 | AH7: 15 | AI7: 0 | AJ7: 200 | AK7: 50 | AL7: 450 | AM7: 10 | AN7: 30 | AO7: 50 | AP7: 120 | AQ7: 50 | AR7: 150 | AS7: 0.2 | AT7: 1 | AU7: 0.5 | AV7: 5 | AW7: 0.2 | AX7: 0.5
A8: Hochleistung | B8: 3 | C8: 20 | D8: 26 | E8: 0 | F8: 0 | G8: 28 | I8: 50 | K8: 15.5 | L8: 17.5 | M8: 15.5 | N8: 17.5 | O8: -10 | P8: 10 | Q8: 6.8 | R8: 7.5 | S8: 22 | T8: 30 | U8: 3.5 | V8: 5.5 | W8: 3 | X8: 5 | Y8: 5.5 | Z8: 7.5 | AA8: 3.5 | AB8: 4.2 | AC8: 1 | AD8: 2.5 | AE8: 1.5 | AF8: 2 | AG8: 10 | AH8: 20 | AI8: 150 | AJ8: 350 | AK8: 50 | AL8: 450 | AM8: 10 | AN8: 30 | AO8: 50 | AP8: 120 | AQ8: 50 | AR8: 150 | AS8: 0.2 | AT8: 1 | AU8: 0.5 | AV8: 5 | AW8: 0.2 | AX8: 0.5
A9: Altmelker | B9: 4 | C9: 16 | D9: 20 | E9: 0 | F9: 0 | G9: 28 | I9: 50 | K9: 15 | L9: 17 | M9: 15 | N9: 17 | O9: -5 | P9: 15 | Q9: 6.3 | R9: 7 | S9: 20 | T9: 28 | U9: 1 | V9: 3.5 | Y9: 5 | Z9: 7 | AA9: 3.5 | AB9: 4 | AC9: 1 | AD9: 2.5 | AE9: 1.5 | AF9: 2 | AG9: 10 | AH9: 20 | AI9: 150 | AJ9: 350 | AK9: 50 | AL9: 450 | AM9: 10 | AN9: 30 | AO9: 50 | AP9: 120 | AQ9: 50 | AR9: 150 | AS9: 0.2 | AT9: 1 | AU9: 0.5 | AV9: 5 | AW9: 0.2 | AX9: 0.5
B10: 5
B11: 6
B12: 7
B13: 8
B14: 9
B15: 10
A16: Bitte Gruppe auswählen! | B16: 11

Sheet Mengenberechnung
B2: Grundfutter – Ration für | G2: 10 | H2: Tiere | I2: Die Tabelle zur Mengenberechnung zeigt die Gewichte der einzelnen Futtermittel für die Beladung des Mischwagens oder bei der Kraftfuttermischung den Gewichtsanteil der einzelnen Komponenten. Geben Sie in das Eingabefeld die Anzahl der Tiere ein, für welche eine Ration gemischt werden soll (Anzeige = Tagesmenge).
B3: Nr. | C3: Futtermittel | F3: kg.
B4: =Ration!A15 -> 0 | C4: =Ration!B15 -> 0 | F4: =Ration!E4*G2 -> 0 | G4: Gesamt GF und KF in kg:
B5: =Ration!A16 -> 0 | C5: =Ration!B16 -> 0 | F5: =Ration!E5*G2 -> 0
B6: =Ration!A17 -> 0 | C6: =Ration!B17 -> 0 | F6: =Ration!E6*G2 -> 0
B7: =Ration!A18 -> 0 | C7: =Ration!B18 -> 0 | F7: =Ration!E7*G2 -> 0
B8: =Ration!A19 -> 0 | C8: =Ration!B19 -> 0 | F8: =Ration!E8*G2 -> 0
B9: =Ration!A20 -> 0 | C9: =Ration!B20 -> 0 | F9: =Ration!E9*G2 -> 0
B10: =Ration!A21 -> 0 | C10: =Ration!B21 -> 0 | F10: =Ration!E10*G2 -> 0
B11: =Ration!A22 -> 0 | C11: =Ration!B22 -> 0 | F11: =Ration!E11*G2 -> 0 | G11: =SUM(F4:F16) -> 0
B12: =Ration!A23 -> 0 | C12: =Ration!B23 -> 0 | F12: =Ration!E12*G2 -> 0
B13: =Ration!A24 -> 0 | C13: =Ration!B24 -> 0 | F13: =Ration!E13*G2 -> 0
B14: KF 1 | C14: Mischung 1 | F14: =Ration!E27*G2 -> 0
B15: KF 2 | C15: Mischung 2 | F15: =Ration!E28*G2 -> 0
C16: Zugabe Liter / kg Wasser | F16: =Ration!E29*G2 -> 0
B17: Kraftfutter – Mischung 1 Mischergröße: | G17: 1000 | H17: kg | I17: Bitte die Gesamtmenge einer Mischung ins Eingabefeld eintragen. Die Tabelle darunter zeigt die Komponenten der Kraftfutter – Mischung 1 in kg Frischmasse an. Mittels der Tierzahl sowie der geplanten Futtermengemenge pro Tag wird die Anzahl Tage berechnet, bis wieder gemischt werden muß.
B18: Nr. | C18: Futtermittel | F18: kg.
B19: ='Mischung 1'!A15 -> 0 | C19: ='Mischung 1'!B15 -> 0 | F19: =$G$17*'Mischung 1'!F15 -> 0 | G19: Tiere gesamt: | H19: 10
B20: ='Mischung 1'!A16 -> 0 | C20: ='Mischung 1'!B16 -> 0 | F20: =$G$17*'Mischung 1'!F16 -> 0 | G20: kg je Tier/Tag: | H20: =Ration!E27 -> 0
B21: ='Mischung 1'!A17 -> 0 | C21: ='Mischung 1'!B17 -> 0 | F21: =$G$17*'Mischung 1'!F17 -> 0 | G21: 1 Mischung reicht für eine Anzahl an Futtertagen von:
B22: ='Mischung 1'!A18 -> 0 | C22: ='Mischung 1'!B18 -> 0 | F22: =$G$17*'Mischung 1'!F18 -> 0
B23: ='Mischung 1'!A19 -> 0 | C23: ='Mischung 1'!B19 -> 0 | F23: =$G$17*'Mischung 1'!F19 -> 0
B24: ='Mischung 1'!A20 -> 0 | C24: ='Mischung 1'!B20 -> 0 | F24: =$G$17*'Mischung 1'!F20 -> 0
B25: ='Mischung 1'!A21 -> 0 | C25: ='Mischung 1'!B21 -> 0 | F25: =$G$17*'Mischung 1'!F21 -> 0 | G25: =IFERROR(G17/(H19*H20)," ") -> 
B26: ='Mischung 1'!A22 -> 0 | C26: ='Mischung 1'!B22 -> 0 | F26: =$G$17*'Mischung 1'!F22 -> 0
B27: ='Mischung 1'!A23 -> 0 | C27: ='Mischung 1'!B23 -> 0 | F27: =$G$17*'Mischung 1'!F23 -> 0
B28: ='Mischung 1'!A24 -> 0 | C28: ='Mischung 1'!B24 -> 0 | F28: =$G$17*'Mischung 1'!F24 -> 0
B29: Kraftfutter – Mischung 2 Mischergröße: | G29: 1000 | H29: kg
B30: Nr. | C30: Futtermittel | F30: kg.
B31: ='Mischung 2'!A15 -> 0 | C31: ='Mischung 2'!B15 -> 0 | F31: =$G$29*'Mischung 2'!F15 -> 0 | G31: Tiere gesamt: | H31: 10
B32: ='Mischung 2'!A16 -> 0 | C32: ='Mischung 2'!B16 -> 0 | F32: =$G$29*'Mischung 2'!F16 -> 0 | G32: kg je Tier/Tag: | H32: =Ration!E28 -> 0
B33: ='Mischung 2'!A17 -> 0 | C33: ='Mischung 2'!B17 -> 0 | F33: =$G$29*'Mischung 2'!F17 -> 0 | G33: 1 Mischung reicht für eine Anzahl an Futtertagen von:
B34: ='Mischung 2'!A18 -> 0 | C34: ='Mischung 2'!B18 -> 0 | F34: =$G$29*'Mischung 2'!F18 -> 0
B35: ='Mischung 2'!A19 -> 0 | C35: ='Mischung 2'!B19 -> 0 | F35: =$G$29*'Mischung 2'!F19 -> 0
B36: ='Mischung 2'!A20 -> 0 | C36: ='Mischung 2'!B20 -> 0 | F36: =$G$29*'Mischung 2'!F20 -> 0
B37: ='Mischung 2'!A21 -> 0 | C37: ='Mischung 2'!B21 -> 0 | F37: =$G$29*'Mischung 2'!F21 -> 0 | G37: =IFERROR(G29/(H31*H32)," ") -> 
B38: ='Mischung 2'!A22 -> 0 | C38: ='Mischung 2'!B22 -> 0 | F38: =$G$29*'Mischung 2'!F22 -> 0
B39: ='Mischung 2'!A23 -> 0 | C39: ='Mischung 2'!B23 -> 0 | F39: =$G$29*'Mischung 2'!F23 -> 0
B40: ='Mischung 2'!A24 -> 0 | C40: ='Mischung 2'!B24 -> 0 | F40: =$G$29*'Mischung 2'!F24 -> 0

Sheet Ausdruck
B2: Betriebs - Nr. | D2: =Einstellung!F6 -> 09 000 000 0000 | G2: Basis - Ration | J2: =Ration!B36 -> Bitte Gruppe auswählen!
B3: =Einstellung!C5 -> Tierhaltungsschule | E3: =Einstellung!F5 -> Triesdorf | G3: FM gesamt Grundfutter + KF kg | M3: =Ration!E30 -> 0
B4: =Einstellung!C6 -> Markgrafenstraße 1 | G4: TM gesamt Grundfutter + KF kg | M4: =Ration!F30 -> 0
B5: =Einstellung!C7 -> 91746 | D5: =Einstellung!E7 -> Weidenbach | G5: KF 1 kg | H5: =Ration!E27 -> 0 | I5: KF 2 kg | J5: =Ration!E28 -> 0 | L5: Wasser l. | N5: =Ration!E29 -> 0
B7: Nr. | C7: Futtermittel | F7: FM kg | G7: TM | H7: TM kg | I7: aNDFom | J7: CP g | K7: nxP g | L7: NEL MJ | M7: CL g | N7: Preis €
B8: =Ration!A4 -> 0 | C8: =Ration!B4 -> 0 | F8: =Ration!E4 -> 0 | G8: =Ration!C15 -> 0 | H8: =Ration!F15 -> 0 | I8: =Ration!G15 -> 0 | J8: =Ration!H15 -> 0 | K8: =Ration!I15 -> 0 | L8: =Ration!L15 -> 0 | M8: =Ration!P15 -> 0 | N8: =Ration!X15 -> 0
B9: =Ration!A5 -> 0 | C9: =Ration!B5 -> 0 | F9: =Ration!E5 -> 0 | G9: =Ration!C16 -> 0 | H9: =Ration!F16 -> 0 | I9: =Ration!G16 -> 0 | J9: =Ration!H16 -> 0 | K9: =Ration!I16 -> 0 | L9: =Ration!L16 -> 0 | M9: =Ration!P16 -> 0 | N9: =Ration!X16 -> 0
B10: =Ration!A6 -> 0 | C10: =Ration!B6 -> 0 | F10: =Ration!E6 -> 0 | G10: =Ration!C17 -> 0 | H10: =Ration!F17 -> 0 | I10: =Ration!G17 -> 0 | J10: =Ration!H17 -> 0 | K10: =Ration!I17 -> 0 | L10: =Ration!L17 -> 0 | M10: =Ration!P17 -> 0 | N10: =Ration!X17 -> 0
B11: =Ration!A7 -> 0 | C11: =Ration!B7 -> 0 | F11: =Ration!E7 -> 0 | G11: =Ration!C18 -> 0 | H11: =Ration!F18 -> 0 | I11: =Ration!G18 -> 0 | J11: =Ration!H18 -> 0 | K11: =Ration!I18 -> 0 | L11: =Ration!L18 -> 0 | M11: =Ration!P18 -> 0 | N11: =Ration!X18 -> 0
B12: =Ration!A8 -> 0 | C12: =Ration!B8 -> 0 | F12: =Ration!E8 -> 0 | G12: =Ration!C19 -> 0 | H12: =Ration!F19 -> 0 | I12: =Ration!G19 -> 0 | J12: =Ration!H19 -> 0 | K12: =Ration!I19 -> 0 | L12: =Ration!L19 -> 0 | M12: =Ration!P19 -> 0 | N12: =Ration!X19 -> 0
B13: =Ration!A9 -> 0 | C13: =Ration!B9 -> 0 | F13: =Ration!E9 -> 0 | G13: =Ration!C20 -> 0 | H13: =Ration!F20 -> 0 | I13: =Ration!G20 -> 0 | J13: =Ration!H20 -> 0 | K13: =Ration!I20 -> 0 | L13: =Ration!L20 -> 0 | M13: =Ration!P20 -> 0 | N13: =Ration!X20 -> 0
B14: =Ration!A10 -> 0 | C14: =Ration!B10 -> 0 | F14: =Ration!E10 -> 0 | G14: =Ration!C21 -> 0 | H14: =Ration!F21 -> 0 | I14: =Ration!G21 -> 0 | J14: =Ration!H21 -> 0 | K14: =Ration!I21 -> 0 | L14: =Ration!L21 -> 0 | M14: =Ration!P21 -> 0 | N14: =Ration!X21 -> 0
B15: =Ration!A11 -> 0 | C15: =Ration!B11 -> 0 | F15: =Ration!E11 -> 0 | G15: =Ration!C22 -> 0 | H15: =Ration!F22 -> 0 | I15: =Ration!G22 -> 0 | J15: =Ration!H22 -> 0 | K15: =Ration!I22 -> 0 | L15: =Ration!L22 -> 0 | M15: =Ration!P22 -> 0 | N15: =Ration!X22 -> 0
B16: =Ration!A12 -> 0 | C16: =Ration!B12 -> 0 | F16: =Ration!E12 -> 0 | G16: =Ration!C23 -> 0 | H16: =Ration!F23 -> 0 | I16: =Ration!G23 -> 0 | J16: =Ration!H23 -> 0 | K16: =Ration!I23 -> 0 | L16: =Ration!L23 -> 0 | M16: =Ration!P23 -> 0 | N16: =Ration!X23 -> 0
B17: =Ration!A13 -> 0 | C17: =Ration!B13 -> 0 | F17: =Ration!E13 -> 0 | G17: =Ration!C24 -> 0 | H17: =Ration!F24 -> 0 | I17: =Ration!G24 -> 0 | J17: =Ration!H24 -> 0 | K17: =Ration!I24 -> 0 | L17: =Ration!L24 -> 0 | M17: =Ration!P24 -> 0 | N17: =Ration!X24 -> 0
B19: Kennzahlen der Ration und Vergleich mit Zielwerten
B21: Wert | D21: Ist | F21: min | G21: max | I21: Wert | K21: Ist | M21: min | N21: max
B22: TM kg | D22: =Ration!F30 -> 0 | F22: =Ration!F38 -> 0 | G22: =Ration!F39 -> 0 | I22: bST % / kg TM | K22: =Ration!O31 -> 0 | M22: =Ration!O38 -> 0 | N22: =Ration!O39 -> 0
B23: aNDFom % | D23: =Ration!G31 -> 0 | F23: =Ration!G38 -> 0 | G23: =Ration!G39 -> 0 | I23: CL % / kg TM | K23: =Ration!P31 -> 0 | M23: =Ration!P38 -> 0 | N23: =Ration!P39 -> 0
B24: Struktur - Index | D24: =Ration!G32 -> 0 | F24: 50 | I24: Ca g / kg TM | K24: =Ration!Q31 -> 0 | M24: =Ration!Q38 -> 0 | N24: =Ration!Q39 -> 0
B25: CP % / kg TM | D25: =Ration!H31 -> 0 | F25: =Ration!H38 -> 0 | G25: =Ration!H39 -> 0 | I25: P g / kg TM | K25: =Ration!R31 -> 0 | M25: =Ration!R38 -> 0 | N25: =Ration!R39 -> 0
B26: nxP % / kg TM | D26: =Ration!I31 -> 0 | F26: =Ration!I38 -> 0 | G26: =Ration!I39 -> 0 | I26: Mg g / kg TM | K26: =Ration!S31 -> 0 | M26: =Ration!S38 -> 0 | N26: =Ration!S39 -> 0
B27: RNB | D27: =Ration!K31 -> 0 | F27: =Ration!K38 -> 0 | G27: =Ration!K39 -> 0 | I27: Na g / kg TM | K27: =Ration!T31 -> 0 | M27: =Ration!T38 -> 0 | N27: =Ration!T39 -> 0
B28: NEL MJ / kg TM | D28: =Ration!L31 -> 0 | F28: =Ration!L38 -> 0 | G28: =Ration!L39 -> 0 | I28: K g /kg TM | K28: =Ration!U31 -> 0 | M28: =Ration!U38 -> 0 | N28: =Ration!U39 -> 0
B29: ST+ZU % / kg TM | D29: =Ration!N31 -> 0 | F29: =Ration!N38 -> 0 | G29: =Ration!N39 -> 0 | I29: DCAB mEq/kgTM | K29: =Ration!V32 -> 0 | M29: =Ration!X38 -> 0 | N29: =Ration!X39 -> 0
B31: Weitere Kennzahlen, Futterkosten und Milcherzeugungswerte (MEW)
B33: TM % Gesamtration | E33: =Ration!F31 -> 0 | H33: Mengenelem. für kg Milch | L33: Spurenelemente mg/kg TM
B34: Wasser Zusatz / l | E34: =Ration!E29 -> 0
B35: Ration reicht für kg Milch | H35: Ca | I35: =Ration!Q34 -> 0 | L35: Fe | M35: =Ration!Z31 -> 0
B36: CP MEW kg | E36: =Ration!H34 -> -5.402298851 | H36: P | I36: =Ration!R34 -> 0 | L36: Cu | M36: =Ration!AA31 -> 0
B37: nxP MEW kg | E37: =Ration!I34 -> -5.402298851 | H37: Mg | I37: =Ration!S34 -> 0 | L37: Zn | M37: =Ration!AB31 -> 0
B38: NEL MEW kg | E38: =Ration!L34 -> -12.09090909 | H38: Na | I38: =Ration!T34 -> 0 | L38: Mn | M38: =Ration!AC31 -> 0
L39: Co | M39: =Ration!AD31 -> 0
B40: Futterkosten Kuh / Tag | E40: =Ration!X30 -> 0 | L40: J | M40: =Ration!AE31 -> 0
B41: Futterkosten je kg Milch | E41: =Ration!X34 -> 0 | L41: Se | M41: =Ration!AF31 -> 0
B43: Betriebs - Nr. | D43: =Einstellung!F6 -> 09 000 000 0000 | G43: KF - Mischung 1
B44: =Einstellung!C5 -> Tierhaltungsschule | E44: =Einstellung!F5 -> Triesdorf
B45: =Einstellung!C6 -> Markgrafenstraße 1
B46: =Einstellung!C7 -> 91746 | D46: =Einstellung!E7 -> Weidenbach
B48: Nr. | C48: Futtermittel | F48: % Ant. | G48: FM kg | H48: TM kg | I48: XF g | J48: CP g | K48: nxP g | L48: NEL MJ | M48: CL g | N48: Preis €
B49: ='Mischung 1'!A15 -> 0 | C49: ='Mischung 1'!B15 -> 0 | F49: ='Mischung 1'!C15 -> 0 | G49: ='Mischung 1'!F15 -> 0 | H49: ='Mischung 1'!E15 -> 0 | I49: ='Mischung 1'!G15 -> 0 | J49: ='Mischung 1'!I15 -> 0 | K49: ='Mischung 1'!J15 -> 0 | L49: ='Mischung 1'!M15 -> 0 | M49: ='Mischung 1'!Q15 -> 0 | N49: ='Mischung 1'!Y15 -> 0
B50: ='Mischung 1'!A16 -> 0 | C50: ='Mischung 1'!B16 -> 0 | F50: ='Mischung 1'!C16 -> 0 | G50: ='Mischung 1'!F16 -> 0 | H50: ='Mischung 1'!E16 -> 0 | I50: ='Mischung 1'!G16 -> 0 | J50: ='Mischung 1'!I16 -> 0 | K50: ='Mischung 1'!J16 -> 0 | L50: ='Mischung 1'!M16 -> 0 | M50: ='Mischung 1'!Q16 -> 0 | N50: ='Mischung 1'!Y16 -> 0
B51: ='Mischung 1'!A17 -> 0 | C51: ='Mischung 1'!B17 -> 0 | F51: ='Mischung 1'!C17 -> 0 | G51: ='Mischung 1'!F17 -> 0 | H51: ='Mischung 1'!E17 -> 0 | I51: ='Mischung 1'!G17 -> 0 | J51: ='Mischung 1'!I17 -> 0 | K51: ='Mischung 1'!J17 -> 0 | L51: ='Mischung 1'!M17 -> 0 | M51: ='Mischung 1'!Q17 -> 0 | N51: ='Mischung 1'!Y17 -> 0
B52: ='Mischung 1'!A18 -> 0 | C52: ='Mischung 1'!B18 -> 0 | F52: ='Mischung 1'!C18 -> 0 | G52: ='Mischung 1'!F18 -> 0 | H52: ='Mischung 1'!E18 -> 0 | I52: ='Mischung 1'!G18 -> 0 | J52: ='Mischung 1'!I18 -> 0 | K52: ='Mischung 1'!J18 -> 0 | L52: ='Mischung 1'!M18 -> 0 | M52: ='Mischung 1'!Q18 -> 0 | N52: ='Mischung 1'!Y18 -> 0
B53: ='Mischung 1'!A19 -> 0 | C53: ='Mischung 1'!B19 -> 0 | F53: ='Mischung 1'!C19 -> 0 | G53: ='Mischung 1'!F19 -> 0 | H53: ='Mischung 1'!E19 -> 0 | I53: ='Mischung 1'!G19 -> 0 | J53: ='Mischung 1'!I19 -> 0 | K53: ='Mischung 1'!J19 -> 0 | L53: ='Mischung 1'!M19 -> 0 | M53: ='Mischung 1'!Q19 -> 0 | N53: ='Mischung 1'!Y19 -> 0
B54: ='Mischung 1'!A20 -> 0 | C54: ='Mischung 1'!B20 -> 0 | F54: ='Mischung 1'!C20 -> 0 | G54: ='Mischung 1'!F20 -> 0 | H54: ='Mischung 1'!E20 -> 0 | I54: ='Mischung 1'!G20 -> 0 | J54: ='Mischung 1'!I20 -> 0 | K54: ='Mischung 1'!J20 -> 0 | L54: ='Mischung 1'!M20 -> 0 | M54: ='Mischung 1'!Q20 -> 0 | N54: ='Mischung 1'!Y20 -> 0
B55: ='Mischung 1'!A21 -> 0 | C55: ='Mischung 1'!B21 -> 0 | F55: ='Mischung 1'!C21 -> 0 | G55: ='Mischung 1'!F21 -> 0 | H55: ='Mischung 1'!E21 -> 0 | I55: ='Mischung 1'!G21 -> 0 | J55: ='Mischung 1'!I21 -> 0 | K55: ='Mischung 1'!J21 -> 0 | L55: ='Mischung 1'!M21 -> 0 | M55: ='Mischung 1'!Q21 -> 0 | N55: ='Mischung 1'!Y21 -> 0
B56: ='Mischung 1'!A22 -> 0 | C56: ='Mischung 1'!B22 -> 0 | F56: ='Mischung 1'!C22 -> 0 | G56: ='Mischung 1'!F22 -> 0 | H56: ='Mischung 1'!E22 -> 0 | I56: ='Mischung 1'!G22 -> 0 | J56: ='Mischung 1'!I22 -> 0 | K56: ='Mischung 1'!J22 -> 0 | L56: ='Mischung 1'!M22 -> 0 | M56: ='Mischung 1'!Q22 -> 0 | N56: ='Mischung 1'!Y22 -> 0
B57: ='Mischung 1'!A23 -> 0 | C57: ='Mischung 1'!B23 -> 0 | F57: ='Mischung 1'!C23 -> 0 | G57: ='Mischung 1'!F23 -> 0 | H57: ='Mischung 1'!E23 -> 0 | I57: ='Mischung 1'!G23 -> 0 | J57: ='Mischung 1'!I23 -> 0 | K57: ='Mischung 1'!J23 -> 0 | L57: ='Mischung 1'!M23 -> 0 | M57: ='Mischung 1'!Q23 -> 0 | N57: ='Mischung 1'!Y23 -> 0
B58: ='Mischung 1'!A24 -> 0 | C58: ='Mischung 1'!B24 -> 0 | F58: ='Mischung 1'!C24 -> 0 | G58: ='Mischung 1'!F24 -> 0 | H58: ='Mischung 1'!E24 -> 0 | I58: ='Mischung 1'!G24 -> 0 | J58: ='Mischung 1'!I24 -> 0 | K58: ='Mischung 1'!J24 -> 0 | L58: ='Mischung 1'!M24 -> 0 | M58: ='Mischung 1'!Q24 -> 0 | N58: ='Mischung 1'!Y24 -> 0
B59: Summe | E59: ='Mischung 1'!C25 -> 0 | G59: ='Mischung 1'!F25 -> 0 | H59: ='Mischung 1'!E25 -> 0 | I59: ='Mischung 1'!G25 -> 0 | J59: ='Mischung 1'!I25 -> 0 | K59: ='Mischung 1'!J25 -> 0 | L59: ='Mischung 1'!M25 -> 0 | M59: ='Mischung 1'!Q25 -> 0 | N59: ='Mischung 1'!Y25 -> 0
B63: Milcherzeugungswerte (MEW) in kg | H63: Spurenelemente mg / kg TM
B64: CP | C64: ='Mischung 1'!I26 -> 0 | E64: Ca | F64: ='Mischung 1'!R26 -> 0 | H64: Fe | I64: Cu | J64: Zn | K64: Mn | L64: Co | M64: J | N64: Se
B65: nxP | C65: ='Mischung 1'!J26 -> 0 | E65: P | F65: ='Mischung 1'!S26 -> 0 | H65: ='Mischung 1'!Z25 -> 0 | I65: ='Mischung 1'!AA25 -> 0 | J65: ='Mischung 1'!AB25 -> 0 | K65: ='Mischung 1'!AC25 -> 0 | L65: ='Mischung 1'!AD25 -> 0 | M65: ='Mischung 1'!AE25 -> 0 | N65: ='Mischung 1'!AF25 -> 0
B66: NEL | C66: ='Mischung 1'!M26 -> 0 | E66: Mg | F66: ='Mischung 1'!T26 -> 0
E67: Na | F67: ='Mischung 1'!U26 -> 0
B69: Zusammensetzung einer KF 1 - Mischung bei Mischergröße in kg | L69: =Mengenberechnung!G17 -> 1000
G72: =Mengenberechnung!C19 -> 0 | M72: =Mengenberechnung!F19 -> 0
G73: =Mengenberechnung!C20 -> 0 | M73: =Mengenberechnung!F20 -> 0
G74: =Mengenberechnung!C21 -> 0 | M74: =Mengenberechnung!F21 -> 0
G75: =Mengenberechnung!C22 -> 0 | M75: =Mengenberechnung!F22 -> 0
G76: =Mengenberechnung!C23 -> 0 | M76: =Mengenberechnung!F23 -> 0
G77: =Mengenberechnung!C24 -> 0 | M77: =Mengenberechnung!F24 -> 0
G78: =Mengenberechnung!C25 -> 0 | M78: =Mengenberechnung!F25 -> 0
G79: =Mengenberechnung!C26 -> 0 | M79: =Mengenberechnung!F26 -> 0
G80: =Mengenberechnung!C27 -> 0 | M80: =Mengenberechnung!F27 -> 0
G81: =Mengenberechnung!C28 -> 0 | M81: =Mengenberechnung!F28 -> 0
B83: Betriebs - Nr. | D83: =Einstellung!F6 -> 09 000 000 0000 | G83: KF - Mischung 2
B84: =Einstellung!C5 -> Tierhaltungsschule | E84: =Einstellung!F5 -> Triesdorf
B85: =Einstellung!C6 -> Markgrafenstraße 1
B86: =Einstellung!C7 -> 91746 | D86: =Einstellung!E7 -> Weidenbach
B88: Nr. | C88: Futtermittel | F88: % Ant. | G88: FM kg | H88: TM kg | I88: XF g | J88: CP g | K88: nxP g | L88: NEL MJ | M88: CL g | N88: Preis €
B89: ='Mischung 2'!A15 -> 0 | C89: ='Mischung 2'!B15 -> 0 | F89: ='Mischung 2'!C15 -> 0 | G89: ='Mischung 2'!F15 -> 0 | H89: ='Mischung 2'!E15 -> 0 | I89: ='Mischung 2'!G15 -> 0 | J89: ='Mischung 2'!I15 -> 0 | K89: ='Mischung 2'!J15 -> 0 | L89: ='Mischung 2'!M15 -> 0 | M89: ='Mischung 2'!Q15 -> 0 | N89: ='Mischung 2'!Y15 -> 0
B90: ='Mischung 2'!A16 -> 0 | C90: ='Mischung 2'!B16 -> 0 | F90: ='Mischung 2'!C16 -> 0 | G90: ='Mischung 2'!F16 -> 0 | H90: ='Mischung 2'!E16 -> 0 | I90: ='Mischung 2'!G16 -> 0 | J90: ='Mischung 2'!I16 -> 0 | K90: ='Mischung 2'!J16 -> 0 | L90: ='Mischung 2'!M16 -> 0 | M90: ='Mischung 2'!Q16 -> 0 | N90: ='Mischung 2'!Y16 -> 0
B91: ='Mischung 2'!A17 -> 0 | C91: ='Mischung 2'!B17 -> 0 | F91: ='Mischung 2'!C17 -> 0 | G91: ='Mischung 2'!F17 -> 0 | H91: ='Mischung 2'!E17 -> 0 | I91: ='Mischung 2'!G17 -> 0 | J91: ='Mischung 2'!I17 -> 0 | K91: ='Mischung 2'!J17 -> 0 | L91: ='Mischung 2'!M17 -> 0 | M91: ='Mischung 2'!Q17 -> 0 | N91: ='Mischung 2'!Y17 -> 0
B92: ='Mischung 2'!A18 -> 0 | C92: ='Mischung 2'!B18 -> 0 | F92: ='Mischung 2'!C18 -> 0 | G92: ='Mischung 2'!F18 -> 0 | H92: ='Mischung 2'!E18 -> 0 | I92: ='Mischung 2'!G18 -> 0 | J92: ='Mischung 2'!I18 -> 0 | K92: ='Mischung 2'!J18 -> 0 | L92: ='Mischung 2'!M18 -> 0 | M92: ='Mischung 2'!Q18 -> 0 | N92: ='Mischung 2'!Y18 -> 0
B93: ='Mischung 2'!A19 -> 0 | C93: ='Mischung 2'!B19 -> 0 | F93: ='Mischung 2'!C19 -> 0 | G93: ='Mischung 2'!F19 -> 0 | H93: ='Mischung 2'!E19 -> 0 | I93: ='Mischung 2'!G19 -> 0 | J93: ='Mischung 2'!I19 -> 0 | K93: ='Mischung 2'!J19 -> 0 | L93: ='Mischung 2'!M19 -> 0 | M93: ='Mischung 2'!Q19 -> 0 | N93: ='Mischung 2'!Y19 -> 0
B94: ='Mischung 2'!A20 -> 0 | C94: ='Mischung 2'!B20 -> 0 | F94: ='Mischung 2'!C20 -> 0 | G94: ='Mischung 2'!F20 -> 0 | H94: ='Mischung 2'!E20 -> 0 | I94: ='Mischung 2'!G20 -> 0 | J94: ='Mischung 2'!I20 -> 0 | K94: ='Mischung 2'!J20 -> 0 | L94: ='Mischung 2'!M20 -> 0 | M94: ='Mischung 2'!Q20 -> 0 | N94: ='Mischung 2'!Y20 -> 0
B95: ='Mischung 2'!A21 -> 0 | C95: ='Mischung 2'!B21 -> 0 | F95: ='Mischung 2'!C21 -> 0 | G95: ='Mischung 2'!F21 -> 0 | H95: ='Mischung 2'!E21 -> 0 | I95: ='Mischung 2'!G21 -> 0 | J95: ='Mischung 2'!I21 -> 0 | K95: ='Mischung 2'!J21 -> 0 | L95: ='Mischung 2'!M21 -> 0 | M95: ='Mischung 2'!Q21 -> 0 | N95: ='Mischung 2'!Y21 -> 0
B96: ='Mischung 2'!A22 -> 0 | C96: ='Mischung 2'!B22 -> 0 | F96: ='Mischung 2'!C22 -> 0 | G96: ='Mischung 2'!F22 -> 0 | H96: ='Mischung 2'!E22 -> 0 | I96: ='Mischung 2'!G22 -> 0 | J96: ='Mischung 2'!I22 -> 0 | K96: ='Mischung 2'!J22 -> 0 | L96: ='Mischung 2'!M22 -> 0 | M96: ='Mischung 2'!Q22 -> 0 | N96: ='Mischung 2'!Y22 -> 0
B97: ='Mischung 2'!A23 -> 0 | C97: ='Mischung 2'!B23 -> 0 | F97: ='Mischung 2'!C23 -> 0 | G97: ='Mischung 2'!F23 -> 0 | H97: ='Mischung 2'!E23 -> 0 | I97: ='Mischung 2'!G23 -> 0 | J97: ='Mischung 2'!I23 -> 0 | K97: ='Mischung 2'!J23 -> 0 | L97: ='Mischung 2'!M23 -> 0 | M97: ='Mischung 2'!Q23 -> 0 | N97: ='Mischung 2'!Y23 -> 0
B98: ='Mischung 2'!A24 -> 0 | C98: ='Mischung 2'!B24 -> 0 | F98: ='Mischung 2'!C24 -> 0 | G98: ='Mischung 2'!F24 -> 0 | H98: ='Mischung 2'!E24 -> 0 | I98: ='Mischung 2'!G24 -> 0 | J98: ='Mischung 2'!I24 -> 0 | K98: ='Mischung 2'!J24 -> 0 | L98: ='Mischung 2'!M24 -> 0 | M98: ='Mischung 2'!Q24 -> 0 | N98: ='Mischung 2'!Y24 -> 0
B99: Summe | E99: ='Mischung 2'!C25 -> 0 | G99: ='Mischung 2'!F25 -> 0 | H99: ='Mischung 2'!E25 -> 0 | I99: ='Mischung 2'!G25 -> 0 | J99: ='Mischung 2'!I25 -> 0 | K99: ='Mischung 2'!J25 -> 0 | L99: ='Mischung 2'!M25 -> 0 | M99: ='Mischung 2'!Q25 -> 0 | N99: ='Mischung 2'!Y25 -> 0
B103: Milcherzeugungswerte (MEW) in kg | H103: Spurenelemente mg / kg TM
B104: CP | C104: ='Mischung 2'!I26 -> 0 | E104: Ca | F104: ='Mischung 2'!R26 -> 0 | H104: Fe | I104: Cu | J104: Zn | K104: Mn | L104: Co | M104: J | N104: Se
B105: nxP | C105: ='Mischung 2'!J26 -> 0 | E105: P | F105: ='Mischung 2'!S26 -> 0 | H105: ='Mischung 2'!Z25 -> 0 | I105: ='Mischung 2'!AA25 -> 0 | J105: ='Mischung 2'!AB25 -> 0 | K105: ='Mischung 2'!AC25 -> 0 | L105: ='Mischung 2'!AD25 -> 0 | M105: ='Mischung 2'!AE25 -> 0 | N105: ='Mischung 2'!AF25 -> 0
B106: NEL | C106: ='Mischung 2'!M26 -> 0 | E106: Mg | F106: ='Mischung 2'!T26 -> 0
E107: Na | F107: ='Mischung 2'!U26 -> 0
B109: Zusammensetzung einer KF 2 - Mischung bei Mischergröße in kg | L109: =Mengenberechnung!G29 -> 1000
G112: =Mengenberechnung!C31 -> 0 | M112: =Mengenberechnung!F31 -> 0
G113: =Mengenberechnung!C32 -> 0 | M113: =Mengenberechnung!F32 -> 0
G114: =Mengenberechnung!C33 -> 0 | M114: =Mengenberechnung!F33 -> 0
G115: =Mengenberechnung!C34 -> 0 | M115: =Mengenberechnung!F34 -> 0
G116: =Mengenberechnung!C35 -> 0 | M116: =Mengenberechnung!F35 -> 0
G117: =Mengenberechnung!C36 -> 0 | M117: =Mengenberechnung!F36 -> 0
G118: =Mengenberechnung!C37 -> 0 | M118: =Mengenberechnung!F37 -> 0
G119: =Mengenberechnung!C38 -> 0 | M119: =Mengenberechnung!F38 -> 0
G120: =Mengenberechnung!C39 -> 0 | M120: =Mengenberechnung!F39 -> 0
G121: =Mengenberechnung!C40 -> 0 | M121: =Mengenberechnung!F40 -> 0
B123: Betriebs - Nr. | D123: =Einstellung!F6 -> 09 000 000 0000 | G123: Ladeliste Mischwagen
B124: =Einstellung!C5 -> Tierhaltungsschule | E124: =Einstellung!F5 -> Triesdorf
B125: =Einstellung!C6 -> Markgrafenstraße 1
B126: =Einstellung!C7 -> 91746 | D126: =Einstellung!E7 -> Weidenbach
B128: Tagesration für Anzahl Kühe | L128: =Mengenberechnung!G2 -> 10
B130: =Mengenberechnung!B4 -> 0 | D130: =Mengenberechnung!C4 -> 0 | L130: =Mengenberechnung!F4 -> 0
B131: =Mengenberechnung!B5 -> 0 | D131: =Mengenberechnung!C5 -> 0 | L131: =Mengenberechnung!F5 -> 0
B132: =Mengenberechnung!B6 -> 0 | D132: =Mengenberechnung!C6 -> 0 | L132: =Mengenberechnung!F6 -> 0
B133: =Mengenberechnung!B7 -> 0 | D133: =Mengenberechnung!C7 -> 0 | L133: =Mengenberechnung!F7 -> 0
B134: =Mengenberechnung!B8 -> 0 | D134: =Mengenberechnung!C8 -> 0 | L134: =Mengenberechnung!F8 -> 0
B135: =Mengenberechnung!B9 -> 0 | D135: =Mengenberechnung!C9 -> 0 | L135: =Mengenberechnung!F9 -> 0
B136: =Mengenberechnung!B10 -> 0 | D136: =Mengenberechnung!C10 -> 0 | L136: =Mengenberechnung!F10 -> 0
B137: =Mengenberechnung!B11 -> 0 | D137: =Mengenberechnung!C11 -> 0 | L137: =Mengenberechnung!F11 -> 0
B138: =Mengenberechnung!B12 -> 0 | D138: =Mengenberechnung!C12 -> 0 | L138: =Mengenberechnung!F12 -> 0
B139: =Mengenberechnung!B13 -> 0 | D139: =Mengenberechnung!C13 -> 0 | L139: =Mengenberechnung!F13 -> 0
B141: =Mengenberechnung!B14 -> KF 1 | D141: =Mengenberechnung!C14 -> Mischung 1 | L141: =Mengenberechnung!F14 -> 0
B142: =Mengenberechnung!B15 -> KF 2 | D142: =Mengenberechnung!C15 -> Mischung 2 | L142: =Mengenberechnung!F15 -> 0
D143: Wasser zugeben l / kg | L143: =Mengenberechnung!F16 -> 0
D144: Gesamtgewicht aller Komponenten in kg | L144: =Mengenberechnung!G11 -> 0
